{"text_format":"1","workbook":"xlsx","n_sheets":30,"sheets":["BAG_BestAutor&C.C","BAG_Médailles_1","BAG_Médailles_2","BAG_Médailles_3","BAG_Ruban FIAP_1","BAG_Ruban FIAP_2","BAG_Ruban FIAP_3","BAG_Ruban FIAP_4","BAG_Ruban FIAP_5","BAG_Ruban FIAP_6","BAG_Ruban FIAP_7","BAG_RubanPSA_GPU_IUP_1","BAG_RubanPSA_GPU_IUP_2","BAG_Diplome_FDT_1","BAG_Diplome_FDT_2","BAG_Diplome_FDT_3","BAG_Diplome_FDT_4","Feuil1","BAG_Diplome_FDT_5","BAG_Diplome_FDT_6","BAG_Diplome_FDT_EC","Spécial","Médailles","Ruban FIAP","Ruban_PSA_GPU_IUP","Diplôme","F_Palmares_S4","Controle","Données","Ordre récompense"],"not_rendered":{"charts":0,"images":23,"macros":1,"external_links":0,"defined_names":609,"comments":1,"pivot_tables":0},"unopened":[],"bounds":{"document_bytes":16777216,"sheet_cells":100000,"rows_first":2000,"rows_last":500,"rows_between":2000,"halvings":0,"cell_chars":16384,"cell_head_chars":4096},"cells_cut":0,"cells_raw":0,"read":"whole","date_system":"1900"}

{"sheet":"BAG_BestAutor&C.C","index":0,"n_rows":46,"n_cols":34,"rows_kept":46,"cut":false,"hidden":false,"merged":[[7,2,8,6],[15,2,16,6],[18,2,18,6],[22,2,22,6],[24,2,24,6],[19,2,19,6],[21,2,21,6],[25,2,25,6],[27,2,27,6],[28,2,28,6],[44,2,44,6],[45,2,45,6],[39,2,39,6],[40,2,40,6],[41,2,41,6],[42,2,42,6],[43,2,43,6],[43,10,43,14],[43,18,43,22],[43,26,43,30],[45,10,45,14],[45,18,45,22],[45,26,45,30],[44,10,44,14],[44,18,44,22],[44,26,44,30],[41,10,41,14],[41,18,41,22],[41,26,41,30],[42,10,42,14],[42,18,42,22],[42,26,42,30],[39,10,39,14],[39,18,39,22],[39,26,39,30],[40,10,40,14],[40,18,40,22],[40,26,40,30],[28,10,28,14],[28,18,28,22],[28,26,28,30],[29,10,29,14],[29,18,29,22],[29,26,29,30],[25,10,25,14],[25,18,25,22],[25,26,25,30],[27,10,27,14],[27,18,27,22],[27,26,27,30],[22,10,22,14],[22,18,22,22],[22,26,22,30],[24,10,24,14],[24,18,24,22],[24,26,24,30],[5,33,44,44],[7,10,8,14],[7,18,8,22],[7,26,8,30],[15,10,16,14],[15,18,16,22],[15,26,16,30],[18,10,18,14],[18,18,18,22],[18,26,18,30],[19,10,19,14],[19,18,19,22],[19,26,19,30],[21,10,21,14],[21,18,21,22],[21,26,21,30]]}
[null,null,{"$f":"Ville4","v":"Bagnols Marcoule"},null,null,null,null,null,null,null,1]
[]
[]
[]
[]
[null,null,null,null,null,null,null,null,null,null,null,null,null,null,null,null,null,null,null,null,null,null,null,null,null,null,null,null,null,null,null,null,null,"Le but de ce classeur est de créer des sitckers autocollant pour des récompenses attribuées lors d'un salon International de\nPhotographie.\n\nIl y a des trames (de fond) différentes. Elles sont fixes sur chaque onglet et varie selon le type de récompense.\n\nJ'utilise quatre classeurs différents, un par salon, et il y a quatre salon par circuit chaque année. l'usage de classeurs différents est imposé par la personnalisation des stickers par salon. Le fonctionnement des différents classeurs est identique.\n\nJe voudrais être certain de deux choses :\n- Que l'ensemble des stickers est bien crée et qu'il n'en manque pas.\n- Qu'il n'y ai pas d'erreur ou inversion entre les trois informations, Titre, Auteur et Pays, pour une même photo.\n\nJe suis preneur de toutes solution aboutissant à ce résultat.\n\nMistral\n\nPS : Pour passer sous la barre des 15Mo admissible sur CiJoint j'ai été obligé de supprimer des onglets."]
[]
[null,null,{"$f":"FDT","v":"12ème French Digital Tour"},null,null,null,null,null,null,null,{"$f":"FDT","v":"12ème French Digital Tour"},null,null,null,null,null,null,null,{"$f":"FDT","v":"12ème French Digital Tour"},null,null,null,null,null,null,null,{"$f":"FDT","v":"12ème French Digital Tour"}]
[]
[]
[]
[]
[]
[]
[]
[null,null,{"$f":"Salon4","v":"20ème salon Bagnols Marcoule"},null,null,null,null,null,null,null,{"$f":"Salon4","v":"20ème salon Bagnols Marcoule"},null,null,null,null,null,null,null,{"$f":"Salon4","v":"20ème salon Bagnols Marcoule"},null,null,null,null,null,null,null,{"$f":"Salon4","v":"20ème salon Bagnols Marcoule"}]
[]
[]
[null,null,"Mention d'honneur",null,null,null,null,null,null,null,"Mention d'honneur",null,null,null,null,null,null,null,"Mention d'honneur",null,null,null,null,null,null,null,"Mention d'honneur"]
[null,null,"Honourable mention",null,null,null,null,null,null,null,"Honourable mention",null,null,null,null,null,null,null,"Honourable mention",null,null,null,null,null,null,null,"Honourable mention"]
[]
[null,null,"décernée à",null,null,null,null,null,null,null,"décernée à",null,null,null,null,null,null,null,"décernée à",null,null,null,null,null,null,null,"décernée à"]
[null,null," award to",null,null,null,null,null,null,null," award to",null,null,null,null,null,null,null," award to",null,null,null,null,null,null,null," award to"]
[]
[null,null,"Meilleur auteur du salon",null,null,null,null,null,null,null,"Coup de cœur juge 1",null,null,null,null,null,null,null,"Coup de cœur juge 2",null,null,null,null,null,null,null,"Coup de cœur juge 3"]
[null,null,"Best autor",null,null,null,null,null,null,null,"Favorite judge 1",null,null,null,null,null,null,null,"Favorite judge 2",null,null,null,null,null,null,null,"Favorite judge 3"]
[]
[null,null,{"$f":"Auteur1","v":"Che  Arnaldo Paulo"},null,null,null,null,null,null,null,{"$f":"Titre2","v":"Harvest"},null,null,null,null,null,null,null,{"$f":"Titre3","v":"Fashion girl"},null,null,null,null,null,null,null,{"$f":"Titre4","v":"Mama i am hungry"}]
[null,null,{"$f":"Pays1","v":"Hong Kong"},null,null,null,null,null,null,null,{"$f":"Auteur2","v":"Gan  Yongan"},null,null,null,null,null,null,null,{"$f":"Auteur3","v":"Alexandrino Lei   Airosa"},null,null,null,null,null,null,null,{"$f":"Auteur4","v":"Cheang  Sherman"}]
[null,null,null,null,null,null,null,null,null,null,{"$f":"Pays2","v":"Chine"},null,null,null,null,null,null,null,{"$f":"Pays3","v":"Macau"},null,null,null,null,null,null,null,{"$f":"Pays4","v":"Macau"}]
[]
[]
[]
[]
[]
[]
[]
[]
[]
[null,null,{"$f":"IF(Données!$D10=\"\",\"\",Données!$D10)","v":"FIAP : 2017/294-295-296-297"},null,null,null,null,null,null,null,{"$f":"IF(Données!$D10=\"\",\"\",Données!$D10)","v":"FIAP : 2017/294-295-296-297"},null,null,null,null,null,null,null,{"$f":"IF(Données!$D10=\"\",\"\",Données!$D10)","v":"FIAP : 2017/294-295-296-297"},null,null,null,null,null,null,null,{"$f":"IF(Données!$D10=\"\",\"\",Données!$D10)","v":"FIAP : 2017/294-295-296-297"}]
[null,null,{"$f":"IF(Données!$D11=\"\",\"\",Données!$D11)","v":"PSA : 2017/249"},null,null,null,null,null,null,null,{"$f":"IF(Données!$D11=\"\",\"\",Données!$D11)","v":"PSA : 2017/249"},null,null,null,null,null,null,null,{"$f":"IF(Données!$D11=\"\",\"\",Données!$D11)","v":"PSA : 2017/249"},null,null,null,null,null,null,null,{"$f":"IF(Données!$D11=\"\",\"\",Données!$D11)","v":"PSA : 2017/249"}]
[null,null,{"$f":"IF(Données!$D12=\"\",\"\",Données!$D12)","v":"FPF : 2017/020-021-022-023"},null,null,null,null,null,null,null,{"$f":"IF(Données!$D12=\"\",\"\",Données!$D12)","v":"FPF : 2017/020-021-022-023"},null,null,null,null,null,null,null,{"$f":"IF(Données!$D12=\"\",\"\",Données!$D12)","v":"FPF : 2017/020-021-022-023"},null,null,null,null,null,null,null,{"$f":"IF(Données!$D12=\"\",\"\",Données!$D12)","v":"FPF : 2017/020-021-022-023"}]
[null,null,{"$f":"IF(Données!$D13=\"\",\"\",Données!$D13)","v":"RPS : 2017/30-31-32-33"},null,null,null,null,null,null,null,{"$f":"IF(Données!$D13=\"\",\"\",Données!$D13)","v":"RPS : 2017/30-31-32-33"},null,null,null,null,null,null,null,{"$f":"IF(Données!$D13=\"\",\"\",Données!$D13)","v":"RPS : 2017/30-31-32-33"},null,null,null,null,null,null,null,{"$f":"IF(Données!$D13=\"\",\"\",Données!$D13)","v":"RPS : 2017/30-31-32-33"}]
[null,null,{"$f":"IF(Données!$D14=\"\",\"\",Données!$D14)","v":"GPU : License L170086"},null,null,null,null,null,null,null,{"$f":"IF(Données!$D14=\"\",\"\",Données!$D14)","v":"GPU : License L170086"},null,null,null,null,null,null,null,{"$f":"IF(Données!$D14=\"\",\"\",Données!$D14)","v":"GPU : License L170086"},null,null,null,null,null,null,null,{"$f":"IF(Données!$D14=\"\",\"\",Données!$D14)","v":"GPU : License L170086"}]
[null,null,{"$f":"IF(Données!$D15=\"\",\"\",Données!$D15)","v":"IUP 2017/022"},null,null,null,null,null,null,null,{"$f":"IF(Données!$D15=\"\",\"\",Données!$D15)","v":"IUP 2017/022"},null,null,null,null,null,null,null,{"$f":"IF(Données!$D15=\"\",\"\",Données!$D15)","v":"IUP 2017/022"},null,null,null,null,null,null,null,{"$f":"IF(Données!$D15=\"\",\"\",Données!$D15)","v":"IUP 2017/022"}]
[null,null,{"$f":"IF(Données!$D16=\"\",\"\",Données!$D16)","v":""},null,null,null,null,null,null,null,{"$f":"IF(Données!$D16=\"\",\"\",Données!$D16)","v":""},null,null,null,null,null,null,null,{"$f":"IF(Données!$D16=\"\",\"\",Données!$D16)","v":""},null,null,null,null,null,null,null,{"$f":"IF(Données!$D16=\"\",\"\",Données!$D16)","v":""}]

{"sheet":"BAG_Médailles_1","index":1,"n_rows":109,"n_cols":17,"rows_kept":109,"cut":false,"hidden":false,"merged":[[99,13,101,14],[99,16,101,17],[108,16,110,17],[105,1,107,2],[105,4,107,5],[105,7,107,8],[105,10,107,11],[105,13,107,14],[105,16,107,17],[108,1,110,2],[108,4,110,5],[108,7,110,8],[108,10,110,11],[108,13,110,14],[79,16,81,17],[102,1,104,2],[102,4,104,5],[102,7,104,8],[102,10,104,11],[79,1,81,2],[79,4,81,5],[79,7,81,8],[79,10,81,11],[79,13,81,14],[102,13,104,14],[102,16,104,17],[99,1,101,2],[99,4,101,5],[99,7,101,8],[99,10,101,11],[76,16,78,17],[73,1,75,2],[73,4,75,5],[73,7,75,8],[73,10,75,11],[73,13,75,14],[73,16,75,17],[76,1,78,2],[76,4,78,5],[76,7,78,8],[76,10,78,11],[76,13,78,14],[41,1,43,2],[41,4,43,5],[70,16,72,17],[50,1,52,2],[50,4,52,5],[50,7,52,8],[50,10,52,11],[50,13,52,14],[50,16,52,17],[70,1,72,2],[70,4,72,5],[70,7,72,8],[70,10,72,11],[70,13,72,14],[47,16,49,17],[44,1,46,2],[44,4,46,5],[44,7,46,8],[44,10,46,11],[44,13,46,14],[44,16,46,17],[47,1,49,2],[47,4,49,5],[47,7,49,8],[47,10,49,11],[47,13,49,14],[41,7,43,8],[41,10,43,11],[41,13,43,14],[41,16,43,17],[12,16,14,17],[15,16,17,17],[12,13,14,14],[18,7,20,8],[18,10,20,11],[18,13,20,14],[21,1,23,2],[21,4,23,5],[21,7,23,8],[21,10,23,11],[21,13,23,14],[87,1,87,4],[58,1,58,4],[29,1,29,4],[21,16,23,17],[12,1,14,2],[12,4,14,5],[12,7,14,8],[12,10,14,11],[18,16,20,17],[15,1,17,2],[15,4,17,5],[15,7,17,8],[15,10,17,11],[15,13,17,14],[18,1,20,2],[18,4,20,5]]}
[]
[]
[]
[]
[]
[]
[]
[]
[]
[]
[]
[]
[null,{"$f":"FDT","v":"12ème French Digital Tour"},null,null,{"$f":"FDT","v":"12ème French Digital Tour"},null,null,{"$f":"FDT","v":"12ème French Digital Tour"},null,null,{"$f":"FDT","v":"12ème French Digital Tour"},null,null,{"$f":"FDT","v":"12ème French Digital Tour"},null,null,{"$f":"FDT","v":"12ème French Digital Tour"}]
[]
[]
[null,{"$f":"Titre201","v":"The runaway"},null,null,{"$f":"Titre202","v":"Two butterfly"},null,null,{"$f":"Titre203","v":"Classy julie in purple hat"},null,null,{"$f":"Titre204","v":"Women power"},null,null,{"$f":"Titre205","v":"Loving you 3"},null,null,{"$f":"Titre206","v":"Homeward journey in the…"}]
[]
[]
[null,{"$f":"Auteur201","v":"English  Dianne"},null,null,{"$f":"Auteur202","v":"Kyndt  Daniel"},null,null,{"$f":"Auteur203","v":"Cowles  Larry"},null,null,{"$f":"Auteur204","v":"Miojevic  Véronique"},null,null,{"$f":"Auteur205","v":"Che  Arnaldo Paulo"},null,null,{"$f":"Auteur206","v":"Ouyang  Guanlai"}]
[]
[]
[null,{"$f":"Pays201","v":"Australie"},null,null,{"$f":"Pays202","v":"Belgique"},null,null,{"$f":"Pays203","v":"Etats Unis"},null,null,{"$f":"Pays204","v":"France"},null,null,{"$f":"Pays205","v":"Hong Kong"},null,null,{"$f":"Pays206","v":"Chine"}]
[]
[]
[]
[]
[]
[]
[]
[null,{"$f":"Ville4","v":"Bagnols Marcoule"},null,null,null,1]
[]
[]
[]
[]
[]
[]
[]
[]
[]
[]
[]
[null,{"$f":"FDT","v":"12ème French Digital Tour"},null,null,{"$f":"FDT","v":"12ème French Digital Tour"},null,null,{"$f":"FDT","v":"12ème French Digital Tour"},null,null,{"$f":"FDT","v":"12ème French Digital Tour"},null,null,{"$f":"FDT","v":"12ème French Digital Tour"},null,null,{"$f":"FDT","v":"12ème French Digital Tour"}]
[]
[]
[null,{"$f":"Titre207","v":"Back way"},null,null,{"$f":"Titre208","v":"Chinese painting 2"},null,null,{"$f":"Titre209","v":"Le soigneur de pigeons"},null,null,{"$f":"Titre210","v":"Friends"},null,null,{"$f":"Titre211","v":"Expire"},null,null,{"$f":"Titre212","v":"No phone no life"}]
[]
[]
[null,{"$f":"Auteur207","v":"Huang  Zhixiong"},null,null,{"$f":"Auteur208","v":"Chen  Zhong"},null,null,{"$f":"Auteur209","v":"Bacle  Jean Claude"},null,null,{"$f":"Auteur210","v":"Fry  Martin"},null,null,{"$f":"Auteur211","v":"Van Balken  Marcel"},null,null,{"$f":"Auteur212","v":"Feng  Tracy Shuxi"}]
[]
[]
[null,{"$f":"Pays207","v":"Chine"},null,null,{"$f":"Pays208","v":"Chine"},null,null,{"$f":"Pays209","v":"France"},null,null,{"$f":"Pays210","v":"Royaume-Uni"},null,null,{"$f":"Pays211","v":"Pays-Bas"},null,null,{"$f":"Pays212","v":"Etats Unis"}]
[]
[]
[]
[]
[]
[]
[]
[null,{"$f":"Ville4","v":"Bagnols Marcoule"},null,null,null,1]
[]
[]
[]
[]
[]
[]
[]
[]
[]
[]
[]
[null,{"$f":"FDT","v":"12ème French Digital Tour"},null,null,{"$f":"FDT","v":"12ème French Digital Tour"},null,null,{"$f":"FDT","v":"12ème French Digital Tour"},null,null,{"$f":"FDT","v":"12ème French Digital Tour"},null,null,{"$f":"FDT","v":"12ème French Digital Tour"},null,null,{"$f":"FDT","v":"12ème French Digital Tour"}]
[]
[]
[null,{"$f":"Titre213","v":"Colorful dreams"},null,null,{"$f":"Titre214","v":"Discussion between gree…"},null,null,{"$f":"Titre215","v":"Match"},null,null,{"$f":"Titre216","v":"Old woman 4"},null,null,{"$f":"Titre217","v":"La yaya"},null,null,{"$f":"Titre218","v":"Red eyed tree frog trio"}]
[]
[]
[null,{"$f":"Auteur213","v":"Hu  Youshu"},null,null,{"$f":"Auteur214","v":"Fabbri  Giovanni"},null,null,{"$f":"Auteur215","v":"Qiu  Yanping"},null,null,{"$f":"Auteur216","v":"Li  Yong Zhi"},null,null,{"$f":"Auteur217","v":"Noguero Cazorla  Andreu"},null,null,{"$f":"Auteur218","v":"Sandra Crook  Sandra"}]
[]
[]
[null,{"$f":"Pays213","v":"Chine"},null,null,{"$f":"Pays214","v":"Italie"},null,null,{"$f":"Pays215","v":"Hong Kong"},null,null,{"$f":"Pays216","v":"Chine"},null,null,{"$f":"Pays217","v":"Espagne"},null,null,{"$f":"Pays218","v":"Royaume-Uni"}]
[]
[]
[]
[]
[]
[]
[]
[null,{"$f":"Ville4","v":"Bagnols Marcoule"},null,null,null,1]
[]
[]
[]
[]
[]
[]
[]
[]
[]
[]
[]
[null,{"$f":"FDT","v":"12ème French Digital Tour"},null,null,{"$f":"FDT","v":"12ème French Digital Tour"},null,null,{"$f":"FDT","v":"12ème French Digital Tour"},null,null,{"$f":"FDT","v":"12ème French Digital Tour"},null,null,{"$f":"FDT","v":"12ème French Digital Tour"},null,null,{"$f":"FDT","v":"12ème French Digital Tour"}]
[]
[]
[null,{"$f":"Titre219","v":"Catching three horses 2"},null,null,{"$f":"Titre220","v":"Buy a pig"},null,null,{"$f":"Titre221","v":"Maramures 30"},null,null,{"$f":"Titre222","v":"Collared inca hummingbird"},null,null,{"$f":"Titre223","v":"The james dean look"},null,null,{"$f":"Titre224","v":"Peaceful chefchaoeun"}]
[]
[]
[null,{"$f":"Auteur219","v":"Wong  Shiu Gun"},null,null,{"$f":"Auteur220","v":"Nie  Jingsheng"},null,null,{"$f":"Auteur221","v":"Fieni  Eugenio"},null,null,{"$f":"Auteur222","v":"Hearn  Tim"},null,null,{"$f":"Auteur223","v":"King  Fred"},null,null,{"$f":"Auteur224","v":"Wong  Danny Yen Sin"}]
[]
[]
[null,{"$f":"Pays219","v":"Hong Kong"},null,null,{"$f":"Pays220","v":"Chine"},null,null,{"$f":"Pays221","v":"Italie"},null,null,{"$f":"Pays222","v":"Royaume-Uni"},null,null,{"$f":"Pays223","v":"Australie"},null,null,{"$f":"Pays224","v":"Malaisie"}]

{"sheet":"BAG_Médailles_2","index":2,"n_rows":226,"n_cols":17,"rows_kept":226,"cut":false,"hidden":false,"merged":[[225,1,227,2],[225,4,227,5],[225,7,227,8],[225,10,227,11],[225,13,227,14],[225,16,227,17],[222,1,224,2],[222,4,224,5],[222,7,224,8],[222,10,224,11],[222,13,224,14],[222,16,224,17],[219,1,221,2],[219,4,221,5],[219,7,221,8],[219,10,221,11],[219,13,221,14],[219,16,221,17],[204,1,204,17],[216,1,218,2],[216,4,218,5],[216,7,218,8],[216,10,218,11],[216,13,218,14],[216,16,218,17],[196,1,198,2],[196,4,198,5],[196,7,198,8],[196,10,198,11],[196,13,198,14],[196,16,198,17],[193,1,195,2],[193,4,195,5],[193,7,195,8],[193,10,195,11],[193,13,195,14],[193,16,195,17],[190,1,192,2],[190,4,192,5],[190,7,192,8],[190,10,192,11],[190,13,192,14],[190,16,192,17],[175,1,175,17],[187,1,189,2],[187,4,189,5],[187,7,189,8],[187,10,189,11],[187,13,189,14],[187,16,189,17],[167,1,169,2],[167,4,169,5],[167,7,169,8],[167,10,169,11],[167,13,169,14],[167,16,169,17],[164,1,166,2],[164,4,166,5],[164,7,166,8],[164,10,166,11],[164,13,166,14],[164,16,166,17],[161,1,163,2],[161,4,163,5],[161,7,163,8],[161,10,163,11],[161,13,163,14],[161,16,163,17],[146,0,147,17],[158,1,160,2],[158,4,160,5],[158,7,160,8],[158,10,160,11],[158,13,160,14],[158,16,160,17],[138,1,140,2],[138,4,140,5],[138,7,140,8],[138,10,140,11],[138,13,140,14],[138,16,140,17],[135,1,137,2],[135,4,137,5],[135,7,137,8],[135,10,137,11],[135,13,137,14],[135,16,137,17],[132,1,134,2],[132,4,134,5],[132,7,134,8],[132,10,134,11],[132,13,134,14],[132,16,134,17],[117,1,117,17],[129,1,131,2],[129,4,131,5],[129,7,131,8],[129,10,131,11],[129,13,131,14],[129,16,131,17],[87,1,87,4],[108,1,110,2],[108,4,110,5],[108,7,110,8],[108,10,110,11],[108,13,110,14],[108,16,110,17],[105,1,107,2],[105,4,107,5],[105,7,107,8],[105,10,107,11],[105,13,107,14],[105,16,107,17],[102,1,104,2],[102,4,104,5],[102,7,104,8],[102,10,104,11],[102,13,104,14],[102,16,104,17],[99,1,101,2],[99,4,101,5],[99,7,101,8],[99,10,101,11],[99,13,101,14],[99,16,101,17],[58,1,58,4],[79,1,81,2],[79,4,81,5],[79,7,81,8],[79,10,81,11],[79,13,81,14],[79,16,81,17],[76,1,78,2],[76,4,78,5],[76,7,78,8],[76,10,78,11],[76,13,78,14],[76,16,78,17],[73,1,75,2],[73,4,75,5],[73,7,75,8],[73,10,75,11],[73,13,75,14],[73,16,75,17],[70,1,72,2],[70,4,72,5],[70,7,72,8],[70,10,72,11],[70,13,72,14],[70,16,72,17],[29,1,29,4],[50,1,52,2],[50,4,52,5],[50,7,52,8],[50,10,52,11],[50,13,52,14],[50,16,52,17],[47,1,49,2],[47,4,49,5],[47,7,49,8],[47,10,49,11],[47,13,49,14],[47,16,49,17],[44,1,46,2],[44,4,46,5],[44,7,46,8],[44,10,46,11],[44,13,46,14],[44,16,46,17],[41,1,43,2],[41,4,43,5],[41,7,43,8],[41,10,43,11],[41,13,43,14],[41,16,43,17],[21,1,23,2],[21,4,23,5],[21,7,23,8],[21,10,23,11],[21,13,23,14],[21,16,23,17],[0,1,0,17],[12,1,14,2],[12,4,14,5],[12,7,14,8],[12,10,14,11],[12,13,14,14],[12,16,14,17],[18,1,20,2],[18,4,20,5],[18,7,20,8],[18,10,20,11],[18,13,20,14],[18,16,20,17],[15,1,17,2],[15,4,17,5],[15,7,17,8],[15,10,17,11],[15,13,17,14],[15,16,17,17]]}
[]
[]
[]
[]
[]
[]
[]
[]
[]
[]
[]
[]
[null,{"$f":"FDT","v":"12ème French Digital Tour"},null,null,{"$f":"FDT","v":"12ème French Digital Tour"},null,null,{"$f":"FDT","v":"12ème French Digital Tour"},null,null,{"$f":"FDT","v":"12ème French Digital Tour"},null,null,{"$f":"FDT","v":"12ème French Digital Tour"},null,null,{"$f":"FDT","v":"12ème French Digital Tour"}]
[]
[]
[null,{"$f":"Titre225","v":"Regent street"},null,null,{"$f":"Titre226","v":"Song of herding sheep"},null,null,{"$f":"Titre227","v":"Rugaciune"},null,null,{"$f":"Titre228","v":"Landhaus"},null,null,{"$f":"Titre229","v":"Rigolades"},null,null,{"$f":"Titre230","v":"Mating 18"}]
[]
[]
[null,{"$f":"Auteur225","v":"Magot  Laurent"},null,null,{"$f":"Auteur226","v":"Hu  Weiguo"},null,null,{"$f":"Auteur227","v":"Virgilio  Bardossi"},null,null,{"$f":"Auteur228","v":"Stütz  Franz"},null,null,{"$f":"Auteur229","v":"Pedelmas  Pierre"},null,null,{"$f":"Auteur230","v":"Koh  Yeokkian"}]
[]
[]
[null,{"$f":"Pays225","v":"France"},null,null,{"$f":"Pays226","v":"Chine"},null,null,{"$f":"Pays227","v":"Italie"},null,null,{"$f":"Pays228","v":"Autriche"},null,null,{"$f":"Pays229","v":"France"},null,null,{"$f":"Pays230","v":"Malaisie"}]
[]
[]
[]
[]
[]
[]
[]
[null,{"$f":"Ville4","v":"Bagnols Marcoule"},null,null,null,2]
[]
[]
[]
[]
[]
[]
[]
[]
[]
[]
[]
[null,{"$f":"FDT","v":"12ème French Digital Tour"},null,null,{"$f":"FDT","v":"12ème French Digital Tour"},null,null,{"$f":"FDT","v":"12ème French Digital Tour"},null,null,{"$f":"FDT","v":"12ème French Digital Tour"},null,null,{"$f":"FDT","v":"12ème French Digital Tour"},null,null,{"$f":"FDT","v":"12ème French Digital Tour"}]
[]
[]
[null,{"$f":"Titre231","v":"Fishy eyes"},null,null,{"$f":"Titre232","v":"We're closed"},null,null,{"$f":"Titre233","v":"Football dream"},null,null,{"$f":"Titre234","v":"Happy time"},null,null,{"$f":"Titre235","v":"Fish seller 524"},null,null,{"$f":"Titre236","v":"Chamaillerie de hérons"}]
[]
[]
[null,{"$f":"Auteur231","v":"Basak  Dr. Sanjib"},null,null,{"$f":"Auteur232","v":"Young  Alan"},null,null,{"$f":"Auteur233","v":"Yang  Yan"},null,null,{"$f":"Auteur234","v":"Zheng  Xiaoyun"},null,null,{"$f":"Auteur235","v":"Leong  Soon Seng"},null,null,{"$f":"Auteur236","v":"Debiève  Albert"}]
[]
[]
[null,{"$f":"Pays231","v":"Inde"},null,null,{"$f":"Pays232","v":"Royaume-Uni"},null,null,{"$f":"Pays233","v":"Chine"},null,null,{"$f":"Pays234","v":"Chine"},null,null,{"$f":"Pays235","v":"Malaisie"},null,null,{"$f":"Pays236","v":"France"}]
[]
[]
[]
[]
[]
[]
[]
[null,{"$f":"Ville4","v":"Bagnols Marcoule"},null,null,null,2]
[]
[]
[]
[]
[]
[]
[]
[]
[]
[]
[]
[null,{"$f":"FDT","v":"12ème French Digital Tour"},null,null,{"$f":"FDT","v":"12ème French Digital Tour"},null,null,{"$f":"FDT","v":"12ème French Digital Tour"},null,null,{"$f":"FDT","v":"12ème French Digital Tour"},null,null,{"$f":"FDT","v":"12ème French Digital Tour"},null,null,{"$f":"FDT","v":"12ème French Digital Tour"}]
[]
[]
[null,{"$f":"Titre237","v":"Kissed by the wind"},null,null,{"$f":"Titre238","v":"At the foot of the snow"},null,null,{"$f":"Titre239","v":"Fung shun fire dragon"},null,null,{"$f":"Titre240","v":"Red eye fog"},null,null,{"$f":"Titre241","v":"The wait"},null,null,{"$f":"Titre242","v":"Alpages"}]
[]
[]
[null,{"$f":"Auteur237","v":"Zurmühle  Martin"},null,null,{"$f":"Auteur238","v":"Zheng  Xiaoyun"},null,null,{"$f":"Auteur239","v":"Chan  Siu King Maree"},null,null,{"$f":"Auteur240","v":"Chan  Siu King Maree"},null,null,{"$f":"Auteur241","v":"Nhu  Pham Minh Thuyen"},null,null,{"$f":"Auteur242","v":"Domange  Fernand"}]
[]
[]
[null,{"$f":"Pays237","v":"Suisse"},null,null,{"$f":"Pays238","v":"Chine"},null,null,{"$f":"Pays239","v":"Hong Kong"},null,null,{"$f":"Pays240","v":"Hong Kong"},null,null,{"$f":"Pays241","v":"France"},null,null,{"$f":"Pays242","v":"France"}]
[]
[]
[]
[]
[]
[]
[]
[null,{"$f":"Ville4","v":"Bagnols Marcoule"},null,null,null,2]
[]
[]
[]
[]
[]
[]
[]
[]
[]
[]
[]
[null,{"$f":"FDT","v":"12ème French Digital Tour"},null,null,{"$f":"FDT","v":"12ème French Digital Tour"},null,null,{"$f":"FDT","v":"12ème French Digital Tour"},null,null,{"$f":"FDT","v":"12ème French Digital Tour"},null,null,{"$f":"FDT","v":"12ème French Digital Tour"},null,null,{"$f":"FDT","v":"12ème French Digital Tour"}]
[]
[]
[null,{"$f":"Titre243","v":"The chase"},null,null,{"$f":"Titre244","v":"Keep guard"},null,null,{"$f":"Titre245","v":"Bliss"},null,null,{"$f":"Titre246","v":"Greenfinch and hawfinch …"},null,null,{"$f":"Titre247","v":"To the dog"},null,null,{"$f":"Titre248","v":"Museo ferragamo"}]
[]
[]
[null,{"$f":"Auteur243","v":"O Rourke  Philip"},null,null,{"$f":"Auteur244","v":"Li  Chunling"},null,null,{"$f":"Auteur245","v":"Korhonen  Marjut"},null,null,{"$f":"Auteur246","v":"Keene  Paul"},null,null,{"$f":"Auteur247","v":"Virgilio  Bardossi"},null,null,{"$f":"Auteur248","v":"Enzo  Righeschi"}]
[]
[]
[null,{"$f":"Pays243","v":"Irlande"},null,null,{"$f":"Pays244","v":"Chine"},null,null,{"$f":"Pays245","v":"Finlande"},null,null,{"$f":"Pays246","v":"Royaume-Uni"},null,null,{"$f":"Pays247","v":"Italie"},null,null,{"$f":"Pays248","v":"Italie"}]
[]
[]
[]
[]
[]
[]
[]
[]
[]
[]
[]
[]
[]
[]
[]
[]
[]
[]
[]
[]
[null,{"$f":"FDT","v":"12ème French Digital Tour"},null,null,{"$f":"FDT","v":"12ème French Digital Tour"},null,null,{"$f":"FDT","v":"12ème French Digital Tour"},null,null,{"$f":"FDT","v":"12ème French Digital Tour"},null,null,{"$f":"FDT","v":"12ème French Digital Tour"},null,null,{"$f":"FDT","v":"12ème French Digital Tour"}]
[]
[]
[null,{"$f":"Titre53","v":{"$error":"#NAME?"}},null,null,{"$f":"Titre54","v":{"$error":"#NAME?"}},null,null,{"$f":"Titre55","v":{"$error":"#NAME?"}},null,null,{"$f":"Titre56","v":{"$error":"#NAME?"}},null,null,{"$f":"Titre57","v":{"$error":"#NAME?"}},null,null,{"$f":"Titre58","v":{"$error":"#NAME?"}}]
[]
[]
[null,{"$f":"Auteur53","v":{"$error":"#NAME?"}},null,null,{"$f":"Auteur54","v":{"$error":"#NAME?"}},null,null,{"$f":"Auteur55","v":{"$error":"#NAME?"}},null,null,{"$f":"Auteur56","v":{"$error":"#NAME?"}},null,null,{"$f":"Auteur57","v":{"$error":"#NAME?"}},null,null,{"$f":"Auteur58","v":{"$error":"#NAME?"}}]
[]
[]
[null,{"$f":"Pays53","v":{"$error":"#NAME?"}},null,null,{"$f":"Pays54","v":{"$error":"#NAME?"}},null,null,{"$f":"Pays55","v":{"$error":"#NAME?"}},null,null,{"$f":"Pays56","v":{"$error":"#NAME?"}},null,null,{"$f":"Pays57","v":{"$error":"#NAME?"}},null,null,{"$f":"Pays58","v":{"$error":"#NAME?"}}]
[]
[]
[]
[]
[]
[]
[]
["2ème Festival de l'Image en Crau"]
[]
[]
[]
[]
[]
[]
[]
[]
[]
[]
[]
[null,{"$f":"FDT","v":"12ème French Digital Tour"},null,null,{"$f":"FDT","v":"12ème French Digital Tour"},null,null,{"$f":"FDT","v":"12ème French Digital Tour"},null,null,{"$f":"FDT","v":"12ème French Digital Tour"},null,null,{"$f":"FDT","v":"12ème French Digital Tour"},null,null,{"$f":"FDT","v":"12ème French Digital Tour"}]
[]
[]
[null,{"$f":"Titre59","v":{"$error":"#NAME?"}},null,null,{"$f":"Titre60","v":{"$error":"#NAME?"}},null,null,{"$f":"Titre61","v":{"$error":"#NAME?"}},null,null,{"$f":"Titre62","v":{"$error":"#NAME?"}},null,null,{"$f":"Titre63","v":{"$error":"#NAME?"}},null,null,{"$f":"Titre64","v":{"$error":"#NAME?"}}]
[]
[]
[null,{"$f":"Auteur59","v":{"$error":"#NAME?"}},null,null,{"$f":"Auteur60","v":{"$error":"#NAME?"}},null,null,{"$f":"Auteur61","v":{"$error":"#NAME?"}},null,null,{"$f":"Auteur62","v":{"$error":"#NAME?"}},null,null,{"$f":"Auteur63","v":{"$error":"#NAME?"}},null,null,{"$f":"Auteur64","v":{"$error":"#NAME?"}}]
[]
[]
[null,{"$f":"Pays59","v":{"$error":"#NAME?"}},null,null,{"$f":"Pays60","v":{"$error":"#NAME?"}},null,null,{"$f":"Pays61","v":{"$error":"#NAME?"}},null,null,{"$f":"Pays62","v":{"$error":"#NAME?"}},null,null,{"$f":"Pays63","v":{"$error":"#NAME?"}},null,null,{"$f":"Pays64","v":{"$error":"#NAME?"}}]
[]
[]
[]
[]
[]
[]
[]
[null,{"$f":"Salon3","v":"4ème Festival de l'Image en Crau"}]
[]
[]
[]
[]
[]
[]
[]
[]
[]
[]
[]
[null,{"$f":"FDT","v":"12ème French Digital Tour"},null,null,{"$f":"FDT","v":"12ème French Digital Tour"},null,null,{"$f":"FDT","v":"12ème French Digital Tour"},null,null,{"$f":"FDT","v":"12ème French Digital Tour"},null,null,{"$f":"FDT","v":"12ème French Digital Tour"},null,null,{"$f":"FDT","v":"12ème French Digital Tour"}]
[]
[]
[null,{"$f":"Titre65","v":{"$error":"#NAME?"}},null,null,{"$f":"Titre66","v":{"$error":"#NAME?"}},null,null,{"$f":"Titre67","v":{"$error":"#NAME?"}},null,null,{"$f":"Titre68","v":{"$error":"#NAME?"}},null,null,{"$f":"Titre69","v":{"$error":"#NAME?"}},null,null,{"$f":"Titre70","v":{"$error":"#NAME?"}}]
[]
[]
[null,{"$f":"Auteur65","v":{"$error":"#NAME?"}},null,null,{"$f":"Auteur66","v":{"$error":"#NAME?"}},null,null,{"$f":"Auteur67","v":{"$error":"#NAME?"}},null,null,{"$f":"Auteur68","v":{"$error":"#NAME?"}},null,null,{"$f":"Auteur69","v":{"$error":"#NAME?"}},null,null,{"$f":"Auteur70","v":{"$error":"#NAME?"}}]
[]
[]
[null,{"$f":"Pays65","v":{"$error":"#NAME?"}},null,null,{"$f":"Pays66","v":{"$error":"#NAME?"}},null,null,{"$f":"Pays67","v":{"$error":"#NAME?"}},null,null,{"$f":"Pays68","v":{"$error":"#NAME?"}},null,null,{"$f":"Pays69","v":{"$error":"#NAME?"}},null,null,{"$f":"Pays70","v":{"$error":"#NAME?"}}]
[]
[]
[]
[]
[]
[]
[]
[null,{"$f":"Salon3","v":"4ème Festival de l'Image en Crau"}]
[]
[]
[]
[]
[]
[]
[]
[]
[]
[]
[]
[null,{"$f":"FDT","v":"12ème French Digital Tour"},null,null,{"$f":"FDT","v":"12ème French Digital Tour"},null,null,{"$f":"FDT","v":"12ème French Digital Tour"},null,null,{"$f":"FDT","v":"12ème French Digital Tour"},null,null,{"$f":"FDT","v":"12ème French Digital Tour"},null,null,{"$f":"FDT","v":"12ème French Digital Tour"}]
[]
[]
[null,{"$f":"Titre71","v":{"$error":"#NAME?"}},null,null,{"$f":"Titre72","v":{"$error":"#NAME?"}},null,null,{"$f":"Titre73","v":{"$error":"#NAME?"}},null,null,{"$f":"Titre74","v":{"$error":"#NAME?"}},null,null,{"$f":"Titre75","v":{"$error":"#NAME?"}},null,null,{"$f":"Titre76","v":{"$error":"#NAME?"}}]
[]
[]
[null,{"$f":"Auteur71","v":{"$error":"#NAME?"}},null,null,{"$f":"Auteur72","v":{"$error":"#NAME?"}},null,null,{"$f":"Auteur73","v":{"$error":"#NAME?"}},null,null,{"$f":"Auteur74","v":{"$error":"#NAME?"}},null,null,{"$f":"Auteur75","v":{"$error":"#NAME?"}},null,null,{"$f":"Auteur76","v":{"$error":"#NAME?"}}]
[]
[]
[null,{"$f":"Pays71","v":{"$error":"#NAME?"}},null,null,{"$f":"Pays72","v":{"$error":"#NAME?"}},null,null,{"$f":"Pays73","v":{"$error":"#NAME?"}},null,null,{"$f":"Pays74","v":{"$error":"#NAME?"}},null,null,{"$f":"Pays75","v":{"$error":"#NAME?"}},null,null,{"$f":"Pays76","v":{"$error":"#NAME?"}}]

{"sheet":"BAG_Médailles_3","index":3,"n_rows":226,"n_cols":17,"rows_kept":226,"cut":false,"hidden":false,"merged":[[225,1,227,2],[225,4,227,5],[225,7,227,8],[225,10,227,11],[225,13,227,14],[225,16,227,17],[222,1,224,2],[222,4,224,5],[222,7,224,8],[222,10,224,11],[222,13,224,14],[222,16,224,17],[219,1,221,2],[219,4,221,5],[219,7,221,8],[219,10,221,11],[219,13,221,14],[219,16,221,17],[204,1,204,17],[216,1,218,2],[216,4,218,5],[216,7,218,8],[216,10,218,11],[216,13,218,14],[216,16,218,17],[196,1,198,2],[196,4,198,5],[196,7,198,8],[196,10,198,11],[196,13,198,14],[196,16,198,17],[193,1,195,2],[193,4,195,5],[193,7,195,8],[193,10,195,11],[193,13,195,14],[193,16,195,17],[190,1,192,2],[190,4,192,5],[190,7,192,8],[190,10,192,11],[190,13,192,14],[190,16,192,17],[175,1,175,17],[187,1,189,2],[187,4,189,5],[187,7,189,8],[187,10,189,11],[187,13,189,14],[187,16,189,17],[167,1,169,2],[167,4,169,5],[167,7,169,8],[167,10,169,11],[167,13,169,14],[167,16,169,17],[164,1,166,2],[164,4,166,5],[164,7,166,8],[164,10,166,11],[164,13,166,14],[164,16,166,17],[161,1,163,2],[161,4,163,5],[161,7,163,8],[161,10,163,11],[161,13,163,14],[161,16,163,17],[146,0,147,17],[158,1,160,2],[158,4,160,5],[158,7,160,8],[158,10,160,11],[158,13,160,14],[158,16,160,17],[138,1,140,2],[138,4,140,5],[138,7,140,8],[138,10,140,11],[138,13,140,14],[138,16,140,17],[135,1,137,2],[135,4,137,5],[135,7,137,8],[135,10,137,11],[135,13,137,14],[135,16,137,17],[132,1,134,2],[132,4,134,5],[132,7,134,8],[132,10,134,11],[132,13,134,14],[132,16,134,17],[117,1,117,17],[129,1,131,2],[129,4,131,5],[129,7,131,8],[129,10,131,11],[129,13,131,14],[129,16,131,17],[108,1,110,2],[108,4,110,5],[108,7,110,8],[108,10,110,11],[108,13,110,14],[108,16,110,17],[105,1,107,2],[105,4,107,5],[105,7,107,8],[105,10,107,11],[105,13,107,14],[105,16,107,17],[99,16,101,17],[102,1,104,2],[102,4,104,5],[102,7,104,8],[102,10,104,11],[102,13,104,14],[102,16,104,17],[87,1,87,4],[99,1,101,2],[99,4,101,5],[99,7,101,8],[99,10,101,11],[99,13,101,14],[79,1,81,2],[79,4,81,5],[79,7,81,8],[79,10,81,11],[79,13,81,14],[79,16,81,17],[76,1,78,2],[76,4,78,5],[76,7,78,8],[76,10,78,11],[76,13,78,14],[76,16,78,17],[70,16,72,17],[73,1,75,2],[73,4,75,5],[73,7,75,8],[73,10,75,11],[73,13,75,14],[73,16,75,17],[58,1,58,4],[70,1,72,2],[70,4,72,5],[70,7,72,8],[70,10,72,11],[70,13,72,14],[50,1,52,2],[50,4,52,5],[50,7,52,8],[50,10,52,11],[50,13,52,14],[50,16,52,17],[47,1,49,2],[47,4,49,5],[47,7,49,8],[47,10,49,11],[47,13,49,14],[47,16,49,17],[41,16,43,17],[44,1,46,2],[44,4,46,5],[44,7,46,8],[44,10,46,11],[44,13,46,14],[44,16,46,17],[29,1,29,4],[41,1,43,2],[41,4,43,5],[41,7,43,8],[41,10,43,11],[41,13,43,14],[21,1,23,2],[21,4,23,5],[21,7,23,8],[21,10,23,11],[21,13,23,14],[21,16,23,17],[18,1,20,2],[18,4,20,5],[18,7,20,8],[18,10,20,11],[18,13,20,14],[18,16,20,17],[15,1,17,2],[15,4,17,5],[15,7,17,8],[15,10,17,11],[15,13,17,14],[15,16,17,17],[0,1,0,17],[12,1,14,2],[12,4,14,5],[12,7,14,8],[12,10,14,11],[12,13,14,14],[12,16,14,17]]}
[]
[]
[]
[]
[]
[]
[]
[]
[]
[]
[]
[]
[null,{"$f":"FDT","v":"12ème French Digital Tour"},null,null,{"$f":"FDT","v":"12ème French Digital Tour"},null,null,{"$f":"FDT","v":"12ème French Digital Tour"},null,null,{"$f":"FDT","v":"12ème French Digital Tour"},null,null,{"$f":"FDT","v":"12ème French Digital Tour"},null,null,{"$f":"FDT","v":"12ème French Digital Tour"}]
[]
[]
[null,{"$f":"Titre249","v":"Catch fish"},null,null,{"$f":"Titre250","v":"Stag deer bellowing"},null,null,{"$f":"Titre251","v":"Horses from heaven"},null,null,{"$f":"Titre252","v":"Le balayeur"},null,null,{"$f":"Titre253","v":"Titre253"},null,null,{"$f":"Titre254","v":"Titre254"}]
[]
[]
[null,{"$f":"Auteur249","v":"Zheng  Xiaoyun"},null,null,{"$f":"Auteur250","v":"Meswani  Prashant"},null,null,{"$f":"Auteur251","v":"Chen  Zhong"},null,null,{"$f":"Auteur252","v":"Trigalou  Marc"},null,null,{"$f":"Auteur253","v":"Auteur253"},null,null,{"$f":"Auteur254","v":"Auteur254"}]
[]
[]
[null,{"$f":"Pays249","v":"Chine"},null,null,{"$f":"Pays250","v":"Royaume-Uni"},null,null,{"$f":"Pays251","v":"Chine"},null,null,{"$f":"Pays252","v":"France"},null,null,{"$f":"Pays253","v":"Pays253"},null,null,{"$f":"Pays254","v":"Pays254"}]
[]
[]
[]
[]
[]
[]
[]
[null,{"$f":"Ville4","v":"Bagnols Marcoule"},null,null,null,3]
[]
[]
[]
[]
[]
[]
[]
[]
[]
[]
[]
[null,{"$f":"FDT","v":"12ème French Digital Tour"},null,null,{"$f":"FDT","v":"12ème French Digital Tour"},null,null,{"$f":"FDT","v":"12ème French Digital Tour"},null,null,{"$f":"FDT","v":"12ème French Digital Tour"},null,null,{"$f":"FDT","v":"12ème French Digital Tour"},null,null,{"$f":"FDT","v":"12ème French Digital Tour"}]
[]
[]
[null,{"$f":"Titre255","v":"Titre255"},null,null,{"$f":"Titre256","v":"Titre256"},null,null,{"$f":"Titre257","v":"Titre257"},null,null,{"$f":"Titre258","v":"Titre258"},null,null,{"$f":"Titre259","v":"Titre259"},null,null,{"$f":"Titre260","v":"Titre260"}]
[]
[]
[null,{"$f":"Auteur255","v":"Auteur255"},null,null,{"$f":"Auteur256","v":"Auteur256"},null,null,{"$f":"Auteur257","v":"Auteur257"},null,null,{"$f":"Auteur258","v":"Auteur258"},null,null,{"$f":"Auteur259","v":"Auteur259"},null,null,{"$f":"Auteur260","v":"Auteur260"}]
[]
[]
[null,{"$f":"Pays255","v":"Pays255"},null,null,{"$f":"Pays256","v":"Pays256"},null,null,{"$f":"Pays257","v":"Pays257"},null,null,{"$f":"Pays258","v":"Pays258"},null,null,{"$f":"Pays259","v":"Pays259"},null,null,{"$f":"Pays260","v":"Pays260"}]
[]
[]
[]
[]
[]
[]
[]
[null,{"$f":"Ville4","v":"Bagnols Marcoule"},null,null,null,3]
[]
[]
[]
[]
[]
[]
[]
[]
[]
[]
[]
[null,{"$f":"FDT","v":"12ème French Digital Tour"},null,null,{"$f":"FDT","v":"12ème French Digital Tour"},null,null,{"$f":"FDT","v":"12ème French Digital Tour"},null,null,{"$f":"FDT","v":"12ème French Digital Tour"},null,null,{"$f":"FDT","v":"12ème French Digital Tour"},null,null,{"$f":"FDT","v":"12ème French Digital Tour"}]
[]
[]
[null,{"$f":"Titre261","v":"Titre261"},null,null,{"$f":"Titre262","v":"Titre262"},null,null,{"$f":"Titre263","v":"Titre263"},null,null,{"$f":"Titre264","v":"Titre264"},null,null,{"$f":"Titre265","v":"Titre265"},null,null,{"$f":"Titre266","v":"Titre266"}]
[]
[]
[null,{"$f":"Auteur261","v":"Auteur261"},null,null,{"$f":"Auteur262","v":"Auteur262"},null,null,{"$f":"Auteur263","v":"Auteur263"},null,null,{"$f":"Auteur264","v":"Auteur264"},null,null,{"$f":"Auteur265","v":"Auteur265"},null,null,{"$f":"Auteur266","v":"Auteur266"}]
[]
[]
[null,{"$f":"Pays261","v":"Pays261"},null,null,{"$f":"Pays262","v":"Pays262"},null,null,{"$f":"Pays263","v":"Pays263"},null,null,{"$f":"Pays264","v":"Pays264"},null,null,{"$f":"Pays265","v":"Pays265"},null,null,{"$f":"Pays266","v":"Pays266"}]
[]
[]
[]
[]
[]
[]
[]
[null,{"$f":"Ville4","v":"Bagnols Marcoule"},null,null,null,3]
[]
[]
[]
[]
[]
[]
[]
[]
[]
[]
[]
[null,{"$f":"FDT","v":"12ème French Digital Tour"},null,null,{"$f":"FDT","v":"12ème French Digital Tour"},null,null,{"$f":"FDT","v":"12ème French Digital Tour"},null,null,{"$f":"FDT","v":"12ème French Digital Tour"},null,null,{"$f":"FDT","v":"12ème French Digital Tour"},null,null,{"$f":"FDT","v":"12ème French Digital Tour"}]
[]
[]
[null,{"$f":"Titre267","v":"Titre267"},null,null,{"$f":"Titre268","v":"Titre268"},null,null,{"$f":"Titre269","v":"Titre269"},null,null,{"$f":"Titre270","v":"Titre270"},null,null,{"$f":"Titre271","v":"Titre271"},null,null,{"$f":"Titre272","v":"Titre272"}]
[]
[]
[null,{"$f":"Auteur267","v":"Auteur267"},null,null,{"$f":"Auteur268","v":"Auteur268"},null,null,{"$f":"Auteur269","v":"Auteur269"},null,null,{"$f":"Auteur270","v":"Auteur270"},null,null,{"$f":"Auteur271","v":"Auteur271"},null,null,{"$f":"Auteur272","v":"Auteur272"}]
[]
[]
[null,{"$f":"Pays267","v":"Pays267"},null,null,{"$f":"Pays268","v":"Pays268"},null,null,{"$f":"Pays269","v":"Pays269"},null,null,{"$f":"Pays270","v":"Pays270"},null,null,{"$f":"Pays271","v":"Pays271"},null,null,{"$f":"Pays272","v":"Pays272"}]
[]
[]
[]
[]
[]
[]
[]
[]
[]
[]
[]
[]
[]
[]
[]
[]
[]
[]
[]
[]
[null,{"$f":"FDT","v":"12ème French Digital Tour"},null,null,{"$f":"FDT","v":"12ème French Digital Tour"},null,null,{"$f":"FDT","v":"12ème French Digital Tour"},null,null,{"$f":"FDT","v":"12ème French Digital Tour"},null,null,{"$f":"FDT","v":"12ème French Digital Tour"},null,null,{"$f":"FDT","v":"12ème French Digital Tour"}]
[]
[]
[null,{"$f":"Titre53","v":{"$error":"#NAME?"}},null,null,{"$f":"Titre54","v":{"$error":"#NAME?"}},null,null,{"$f":"Titre55","v":{"$error":"#NAME?"}},null,null,{"$f":"Titre56","v":{"$error":"#NAME?"}},null,null,{"$f":"Titre57","v":{"$error":"#NAME?"}},null,null,{"$f":"Titre58","v":{"$error":"#NAME?"}}]
[]
[]
[null,{"$f":"Auteur53","v":{"$error":"#NAME?"}},null,null,{"$f":"Auteur54","v":{"$error":"#NAME?"}},null,null,{"$f":"Auteur55","v":{"$error":"#NAME?"}},null,null,{"$f":"Auteur56","v":{"$error":"#NAME?"}},null,null,{"$f":"Auteur57","v":{"$error":"#NAME?"}},null,null,{"$f":"Auteur58","v":{"$error":"#NAME?"}}]
[]
[]
[null,{"$f":"Pays53","v":{"$error":"#NAME?"}},null,null,{"$f":"Pays54","v":{"$error":"#NAME?"}},null,null,{"$f":"Pays55","v":{"$error":"#NAME?"}},null,null,{"$f":"Pays56","v":{"$error":"#NAME?"}},null,null,{"$f":"Pays57","v":{"$error":"#NAME?"}},null,null,{"$f":"Pays58","v":{"$error":"#NAME?"}}]
[]
[]
[]
[]
[]
[]
[]
["2ème Festival de l'Image en Crau"]
[]
[]
[]
[]
[]
[]
[]
[]
[]
[]
[]
[null,{"$f":"FDT","v":"12ème French Digital Tour"},null,null,{"$f":"FDT","v":"12ème French Digital Tour"},null,null,{"$f":"FDT","v":"12ème French Digital Tour"},null,null,{"$f":"FDT","v":"12ème French Digital Tour"},null,null,{"$f":"FDT","v":"12ème French Digital Tour"},null,null,{"$f":"FDT","v":"12ème French Digital Tour"}]
[]
[]
[null,{"$f":"Titre59","v":{"$error":"#NAME?"}},null,null,{"$f":"Titre60","v":{"$error":"#NAME?"}},null,null,{"$f":"Titre61","v":{"$error":"#NAME?"}},null,null,{"$f":"Titre62","v":{"$error":"#NAME?"}},null,null,{"$f":"Titre63","v":{"$error":"#NAME?"}},null,null,{"$f":"Titre64","v":{"$error":"#NAME?"}}]
[]
[]
[null,{"$f":"Auteur59","v":{"$error":"#NAME?"}},null,null,{"$f":"Auteur60","v":{"$error":"#NAME?"}},null,null,{"$f":"Auteur61","v":{"$error":"#NAME?"}},null,null,{"$f":"Auteur62","v":{"$error":"#NAME?"}},null,null,{"$f":"Auteur63","v":{"$error":"#NAME?"}},null,null,{"$f":"Auteur64","v":{"$error":"#NAME?"}}]
[]
[]
[null,{"$f":"Pays59","v":{"$error":"#NAME?"}},null,null,{"$f":"Pays60","v":{"$error":"#NAME?"}},null,null,{"$f":"Pays61","v":{"$error":"#NAME?"}},null,null,{"$f":"Pays62","v":{"$error":"#NAME?"}},null,null,{"$f":"Pays63","v":{"$error":"#NAME?"}},null,null,{"$f":"Pays64","v":{"$error":"#NAME?"}}]
[]
[]
[]
[]
[]
[]
[]
[null,{"$f":"Salon3","v":"4ème Festival de l'Image en Crau"}]
[]
[]
[]
[]
[]
[]
[]
[]
[]
[]
[]
[null,{"$f":"FDT","v":"12ème French Digital Tour"},null,null,{"$f":"FDT","v":"12ème French Digital Tour"},null,null,{"$f":"FDT","v":"12ème French Digital Tour"},null,null,{"$f":"FDT","v":"12ème French Digital Tour"},null,null,{"$f":"FDT","v":"12ème French Digital Tour"},null,null,{"$f":"FDT","v":"12ème French Digital Tour"}]
[]
[]
[null,{"$f":"Titre65","v":{"$error":"#NAME?"}},null,null,{"$f":"Titre66","v":{"$error":"#NAME?"}},null,null,{"$f":"Titre67","v":{"$error":"#NAME?"}},null,null,{"$f":"Titre68","v":{"$error":"#NAME?"}},null,null,{"$f":"Titre69","v":{"$error":"#NAME?"}},null,null,{"$f":"Titre70","v":{"$error":"#NAME?"}}]
[]
[]
[null,{"$f":"Auteur65","v":{"$error":"#NAME?"}},null,null,{"$f":"Auteur66","v":{"$error":"#NAME?"}},null,null,{"$f":"Auteur67","v":{"$error":"#NAME?"}},null,null,{"$f":"Auteur68","v":{"$error":"#NAME?"}},null,null,{"$f":"Auteur69","v":{"$error":"#NAME?"}},null,null,{"$f":"Auteur70","v":{"$error":"#NAME?"}}]
[]
[]
[null,{"$f":"Pays65","v":{"$error":"#NAME?"}},null,null,{"$f":"Pays66","v":{"$error":"#NAME?"}},null,null,{"$f":"Pays67","v":{"$error":"#NAME?"}},null,null,{"$f":"Pays68","v":{"$error":"#NAME?"}},null,null,{"$f":"Pays69","v":{"$error":"#NAME?"}},null,null,{"$f":"Pays70","v":{"$error":"#NAME?"}}]
[]
[]
[]
[]
[]
[]
[]
[null,{"$f":"Salon3","v":"4ème Festival de l'Image en Crau"}]
[]
[]
[]
[]
[]
[]
[]
[]
[]
[]
[]
[null,{"$f":"FDT","v":"12ème French Digital Tour"},null,null,{"$f":"FDT","v":"12ème French Digital Tour"},null,null,{"$f":"FDT","v":"12ème French Digital Tour"},null,null,{"$f":"FDT","v":"12ème French Digital Tour"},null,null,{"$f":"FDT","v":"12ème French Digital Tour"},null,null,{"$f":"FDT","v":"12ème French Digital Tour"}]
[]
[]
[null,{"$f":"Titre71","v":{"$error":"#NAME?"}},null,null,{"$f":"Titre72","v":{"$error":"#NAME?"}},null,null,{"$f":"Titre73","v":{"$error":"#NAME?"}},null,null,{"$f":"Titre74","v":{"$error":"#NAME?"}},null,null,{"$f":"Titre75","v":{"$error":"#NAME?"}},null,null,{"$f":"Titre76","v":{"$error":"#NAME?"}}]
[]
[]
[null,{"$f":"Auteur71","v":{"$error":"#NAME?"}},null,null,{"$f":"Auteur72","v":{"$error":"#NAME?"}},null,null,{"$f":"Auteur73","v":{"$error":"#NAME?"}},null,null,{"$f":"Auteur74","v":{"$error":"#NAME?"}},null,null,{"$f":"Auteur75","v":{"$error":"#NAME?"}},null,null,{"$f":"Auteur76","v":{"$error":"#NAME?"}}]
[]
[]
[null,{"$f":"Pays71","v":{"$error":"#NAME?"}},null,null,{"$f":"Pays72","v":{"$error":"#NAME?"}},null,null,{"$f":"Pays73","v":{"$error":"#NAME?"}},null,null,{"$f":"Pays74","v":{"$error":"#NAME?"}},null,null,{"$f":"Pays75","v":{"$error":"#NAME?"}},null,null,{"$f":"Pays76","v":{"$error":"#NAME?"}}]

{"sheet":"BAG_Ruban FIAP_1","index":4,"n_rows":297,"n_cols":27,"rows_kept":297,"cut":false,"hidden":false,"merged":[[296,2,296,6],[296,10,296,14],[296,18,296,22],[296,26,296,30],[257,2,258,6],[257,10,258,14],[257,18,258,22],[257,26,258,30],[294,2,294,6],[294,10,294,14],[294,18,294,22],[294,26,294,30],[295,2,295,6],[295,10,295,14],[295,18,295,22],[295,26,295,30],[291,2,291,6],[291,10,291,14],[291,18,291,22],[291,26,291,30],[292,2,292,6],[292,10,292,14],[292,18,292,22],[292,26,292,30],[146,2,146,6],[146,10,146,14],[146,18,146,22],[146,26,146,30],[207,2,208,6],[207,10,208,14],[207,18,208,22],[207,26,208,30],[215,2,216,6],[215,10,216,14],[215,18,216,22],[215,26,216,30],[190,2,190,6],[190,10,190,14],[190,18,190,22],[190,26,190,30],[191,2,191,6],[191,10,191,14],[191,18,191,22],[191,26,191,30],[192,2,192,6],[192,10,192,14],[192,18,192,22],[192,26,192,30],[143,2,143,6],[143,10,143,14],[143,18,143,22],[143,26,143,30],[144,2,144,6],[144,10,144,14],[144,18,144,22],[144,26,144,30],[145,2,145,6],[145,10,145,14],[145,18,145,22],[145,26,145,30],[95,2,95,6],[95,10,95,14],[95,18,95,22],[95,26,95,30],[96,2,96,6],[96,10,96,14],[96,18,96,22],[96,26,96,30],[141,2,141,6],[141,10,141,14],[141,18,141,22],[141,26,141,30],[126,2,126,6],[126,10,126,14],[126,18,126,22],[126,26,126,30],[127,2,127,6],[127,10,127,14],[127,18,127,22],[127,26,127,30],[124,2,124,6],[124,10,124,14],[124,18,124,22],[124,26,124,30],[92,2,92,6],[92,10,92,14],[92,18,92,22],[92,26,92,30],[93,2,93,6],[93,10,93,14],[93,18,93,22],[93,26,93,30],[94,2,94,6],[94,10,94,14],[94,18,94,22],[94,26,94,30],[80,2,80,6],[80,10,80,14],[80,18,80,22],[80,26,80,30],[90,2,90,6],[90,10,90,14],[90,18,90,22],[90,26,90,30],[91,2,91,6],[91,10,91,14],[91,18,91,22],[91,26,91,30],[76,2,76,6],[76,10,76,14],[76,18,76,22],[76,26,76,30],[77,2,77,6],[77,10,77,14],[77,18,77,22],[77,26,77,30],[78,2,78,6],[78,10,78,14],[78,18,78,22],[78,26,78,30],[72,2,72,6],[72,10,72,14],[72,18,72,22],[72,26,72,30],[74,2,74,6],[74,10,74,14],[74,18,74,22],[74,26,74,30],[75,2,75,6],[75,10,75,14],[75,18,75,22],[75,26,75,30],[68,2,68,6],[68,10,68,14],[68,18,68,22],[68,26,68,30],[69,2,69,6],[69,10,69,14],[69,18,69,22],[69,26,69,30],[71,2,71,6],[71,10,71,14],[71,18,71,22],[71,26,71,30],[293,2,293,6],[293,10,293,14],[293,18,293,22],[293,26,293,30],[278,2,278,6],[278,10,278,14],[278,18,278,22],[278,26,278,30],[280,2,280,6],[280,10,280,14],[280,18,280,22],[280,26,280,30],[290,2,290,6],[290,10,290,14],[290,18,290,22],[290,26,290,30],[275,2,275,6],[275,10,275,14],[275,18,275,22],[275,26,275,30],[276,2,276,6],[276,10,276,14],[276,18,276,22],[276,26,276,30],[277,2,277,6],[277,10,277,14],[277,18,277,22],[277,26,277,30],[271,2,271,6],[271,10,271,14],[271,18,271,22],[271,26,271,30],[272,2,272,6],[272,10,272,14],[272,18,272,22],[272,26,272,30],[274,2,274,6],[274,10,274,14],[274,18,274,22],[274,26,274,30],[265,2,266,6],[265,10,266,14],[265,18,266,22],[265,26,266,30],[268,2,268,6],[268,10,268,14],[268,18,268,22],[268,26,268,30],[269,2,269,6],[269,10,269,14],[269,18,269,22],[269,26,269,30],[245,2,245,6],[245,10,245,14],[245,18,245,22],[245,26,245,30],[246,2,246,6],[246,10,246,14],[246,18,246,22],[246,26,246,30],[242,2,242,6],[242,10,242,14],[242,18,242,22],[242,26,242,30],[243,2,243,6],[243,10,243,14],[243,18,243,22],[243,26,243,30],[244,2,244,6],[244,10,244,14],[244,18,244,22],[244,26,244,30],[230,2,230,6],[230,10,230,14],[230,18,230,22],[230,26,230,30],[240,2,240,6],[240,10,240,14],[240,18,240,22],[240,26,240,30],[241,2,241,6],[241,10,241,14],[241,18,241,22],[241,26,241,30],[226,2,226,6],[226,10,226,14],[226,18,226,22],[226,26,226,30],[227,2,227,6],[227,10,227,14],[227,18,227,22],[227,26,227,30],[228,2,228,6],[228,10,228,14],[228,18,228,22],[228,26,228,30],[222,2,222,6],[222,10,222,14],[222,18,222,22],[222,26,222,30],[224,2,224,6],[224,10,224,14],[224,18,224,22],[224,26,224,30],[225,2,225,6],[225,10,225,14],[225,18,225,22],[225,26,225,30],[218,2,218,6],[218,10,218,14],[218,18,218,22],[218,26,218,30],[219,2,219,6],[219,10,219,14],[219,18,219,22],[219,26,219,30],[221,2,221,6],[221,10,221,14],[221,18,221,22],[221,26,221,30],[142,2,142,6],[142,10,142,14],[142,18,142,22],[142,26,142,30],[128,2,128,6],[128,10,128,14],[128,18,128,22],[128,26,128,30],[130,10,130,14],[130,18,130,22],[130,26,130,30],[130,2,130,6],[140,2,140,6],[140,10,140,14],[140,18,140,22],[140,26,140,30],[125,2,125,6],[125,10,125,14],[125,18,125,22],[125,26,125,30],[121,2,121,6],[121,10,121,14],[121,18,121,22],[121,26,121,30],[122,2,122,6],[122,10,122,14],[122,18,122,22],[122,26,122,30],[118,2,118,6],[118,10,118,14],[118,18,118,22],[118,26,118,30],[119,2,119,6],[119,10,119,14],[119,18,119,22],[119,26,119,30],[107,2,108,6],[107,10,108,14],[107,18,108,22],[107,26,108,30],[115,2,116,6],[115,10,116,14],[115,18,116,22],[115,26,116,30],[65,2,66,6],[65,10,66,14],[65,18,66,22],[65,26,66,30],[43,2,43,6],[43,10,43,14],[43,18,43,22],[43,26,43,30],[44,2,44,6],[44,10,44,14],[44,18,44,22],[44,26,44,30],[45,2,45,6],[45,10,45,14],[45,18,45,22],[45,26,45,30],[46,2,46,6],[46,10,46,14],[46,18,46,22],[46,26,46,30],[57,2,58,6],[57,10,58,14],[57,18,58,22],[57,26,58,30],[41,2,41,6],[41,10,41,14],[41,18,41,22],[41,26,41,30],[42,2,42,6],[42,10,42,14],[42,18,42,22],[42,26,42,30],[28,2,28,6],[28,10,28,14],[28,18,28,22],[28,26,28,30],[30,2,30,6],[30,10,30,14],[30,18,30,22],[30,26,30,30],[40,2,40,6],[40,10,40,14],[40,18,40,22],[40,26,40,30],[19,2,19,6],[19,10,19,14],[19,18,19,22],[19,26,19,30],[26,2,26,6],[26,10,26,14],[26,18,26,22],[26,26,26,30],[27,2,27,6],[27,10,27,14],[27,18,27,22],[27,26,27,30],[24,2,24,6],[24,10,24,14],[24,18,24,22],[24,26,24,30],[25,2,25,6],[25,10,25,14],[25,18,25,22],[25,26,25,30],[7,2,8,6],[7,10,8,14],[7,18,8,22],[7,26,8,30],[15,2,16,6],[15,10,16,14],[15,18,16,22],[15,26,16,30],[157,2,158,6],[157,10,158,14],[157,18,158,22],[157,26,158,30],[21,2,21,6],[21,10,21,14],[21,18,21,22],[21,26,21,30],[22,2,22,6],[22,10,22,14],[22,18,22,22],[22,26,22,30],[18,2,18,6],[18,10,18,14],[18,18,18,22],[18,26,18,30],[165,2,166,6],[165,10,166,14],[165,18,166,22],[165,26,166,30],[168,2,168,6],[168,10,168,14],[168,18,168,22],[168,26,168,30],[169,2,169,6],[169,10,169,14],[169,18,169,22],[169,26,169,30],[171,2,171,6],[171,10,171,14],[171,18,171,22],[171,26,171,30],[172,2,172,6],[172,10,172,14],[172,18,172,22],[172,26,172,30],[174,2,174,6],[174,10,174,14],[174,18,174,22],[174,26,174,30],[175,2,175,6],[175,10,175,14],[175,18,175,22],[175,26,175,30],[176,2,176,6],[176,10,176,14],[176,18,176,22],[176,26,176,30],[177,2,177,6],[177,10,177,14],[177,18,177,22],[177,26,177,30],[195,2,195,6],[195,10,195,14],[195,18,195,22],[195,26,195,30],[196,2,196,6],[196,10,196,14],[196,18,196,22],[196,26,196,30],[178,2,178,6],[178,10,178,14],[178,18,178,22],[178,26,178,30],[180,2,180,6],[180,10,180,14],[180,18,180,22],[180,26,180,30],[194,2,194,6],[194,10,194,14],[194,18,194,22],[194,26,194,30],[193,2,193,6],[193,10,193,14],[193,18,193,22],[193,26,193,30]]}
[null,null,{"$f":"Ville4","v":"Bagnols Marcoule"},null,null,null,null,null,null,null,2]
[]
[]
[]
[]
[]
[]
[null,null,{"$f":"FDT","v":"12ème French Digital Tour"},null,null,null,null,null,null,null,{"$f":"FDT","v":"12ème French Digital Tour"},null,null,null,null,null,null,null,{"$f":"FDT","v":"12ème French Digital Tour"},null,null,null,null,null,null,null,{"$f":"FDT","v":"12ème French Digital Tour"}]
[]
[]
[]
[]
[]
[]
[]
[null,null,{"$f":"Salon4","v":"20ème salon Bagnols Marcoule"},null,null,null,null,null,null,null,{"$f":"Salon4","v":"20ème salon Bagnols Marcoule"},null,null,null,null,null,null,null,{"$f":"Salon4","v":"20ème salon Bagnols Marcoule"},null,null,null,null,null,null,null,{"$f":"Salon4","v":"20ème salon Bagnols Marcoule"}]
[]
[]
[null,null,"Mention d'honneur",null,null,null,null,null,null,null,"Mention d'honneur",null,null,null,null,null,null,null,"Mention d'honneur",null,null,null,null,null,null,null,"Mention d'honneur"]
[null,null,"Honourable mention",null,null,null,null,null,null,null,"Honourable mention",null,null,null,null,null,null,null,"Honourable mention",null,null,null,null,null,null,null,"Honourable mention"]
[]
[null,null,"décernée à",null,null,null,null,null,null,null,"décernée à",null,null,null,null,null,null,null,"décernée à",null,null,null,null,null,null,null,"décernée à"]
[null,null," award to",null,null,null,null,null,null,null," award to",null,null,null,null,null,null,null," award to",null,null,null,null,null,null,null," award to"]
[]
[null,null,{"$f":"Auteur101","v":"Alexandrino Lei   Airosa"},null,null,null,null,null,null,null,{"$f":"Auteur102","v":"Yang  Shenghua"},null,null,null,null,null,null,null,{"$f":"Auteur103","v":"Kam  Marcus"},null,null,null,null,null,null,null,{"$f":"Auteur104","v":"Zurmühle  Martin"}]
[null,null,{"$f":"Pays101","v":"Macau"},null,null,null,null,null,null,null,{"$f":"Pays102","v":"Chine"},null,null,null,null,null,null,null,{"$f":"Pays103","v":"Malaisie"},null,null,null,null,null,null,null,{"$f":"Pays104","v":"Suisse"}]
[]
[null,null,"Pour sa photo",null,null,null,null,null,null,null,"Pour sa photo",null,null,null,null,null,null,null,"Pour sa photo",null,null,null,null,null,null,null,"Pour sa photo"]
[null,null,"For his photo",null,null,null,null,null,null,null,"For his photo",null,null,null,null,null,null,null,"For his photo",null,null,null,null,null,null,null,"For his photo"]
[]
[null,null,{"$f":"Titre101","v":"Story teller"},null,null,null,null,null,null,null,{"$f":"Titre102","v":"Ancient town old street"},null,null,null,null,null,null,null,{"$f":"Titre103","v":"Hunting for food"},null,null,null,null,null,null,null,{"$f":"Titre104","v":"Proud countess b&w"}]
[]
[]
[]
[]
[]
[]
[]
[]
[]
[null,null,{"$f":"IF(Données!$D10=\"\",\"\",Données!$D10)","v":"FIAP : 2017/294-295-296-297"},null,null,null,null,null,null,null,{"$f":"IF(Données!$D10=\"\",\"\",Données!$D10)","v":"FIAP : 2017/294-295-296-297"},null,null,null,null,null,null,null,{"$f":"IF(Données!$D10=\"\",\"\",Données!$D10)","v":"FIAP : 2017/294-295-296-297"},null,null,null,null,null,null,null,{"$f":"IF(Données!$D10=\"\",\"\",Données!$D10)","v":"FIAP : 2017/294-295-296-297"}]
[null,null,{"$f":"IF(Données!$D11=\"\",\"\",Données!$D11)","v":"PSA : 2017/249"},null,null,null,null,null,null,null,{"$f":"IF(Données!$D11=\"\",\"\",Données!$D11)","v":"PSA : 2017/249"},null,null,null,null,null,null,null,{"$f":"IF(Données!$D11=\"\",\"\",Données!$D11)","v":"PSA : 2017/249"},null,null,null,null,null,null,null,{"$f":"IF(Données!$D11=\"\",\"\",Données!$D11)","v":"PSA : 2017/249"}]
[null,null,{"$f":"IF(Données!$D12=\"\",\"\",Données!$D12)","v":"FPF : 2017/020-021-022-023"},null,null,null,null,null,null,null,{"$f":"IF(Données!$D12=\"\",\"\",Données!$D12)","v":"FPF : 2017/020-021-022-023"},null,null,null,null,null,null,null,{"$f":"IF(Données!$D12=\"\",\"\",Données!$D12)","v":"FPF : 2017/020-021-022-023"},null,null,null,null,null,null,null,{"$f":"IF(Données!$D12=\"\",\"\",Données!$D12)","v":"FPF : 2017/020-021-022-023"}]
[null,null,{"$f":"IF(Données!$D13=\"\",\"\",Données!$D13)","v":"RPS : 2017/30-31-32-33"},null,null,null,null,null,null,null,{"$f":"IF(Données!$D13=\"\",\"\",Données!$D13)","v":"RPS : 2017/30-31-32-33"},null,null,null,null,null,null,null,{"$f":"IF(Données!$D13=\"\",\"\",Données!$D13)","v":"RPS : 2017/30-31-32-33"},null,null,null,null,null,null,null,{"$f":"IF(Données!$D13=\"\",\"\",Données!$D13)","v":"RPS : 2017/30-31-32-33"}]
[null,null,{"$f":"IF(Données!$D14=\"\",\"\",Données!$D14)","v":"GPU : License L170086"},null,null,null,null,null,null,null,{"$f":"IF(Données!$D14=\"\",\"\",Données!$D14)","v":"GPU : License L170086"},null,null,null,null,null,null,null,{"$f":"IF(Données!$D14=\"\",\"\",Données!$D14)","v":"GPU : License L170086"},null,null,null,null,null,null,null,{"$f":"IF(Données!$D14=\"\",\"\",Données!$D14)","v":"GPU : License L170086"}]
[null,null,{"$f":"IF(Données!$D15=\"\",\"\",Données!$D15)","v":"IUP 2017/022"},null,null,null,null,null,null,null,{"$f":"IF(Données!$D15=\"\",\"\",Données!$D15)","v":"IUP 2017/022"},null,null,null,null,null,null,null,{"$f":"IF(Données!$D15=\"\",\"\",Données!$D15)","v":"IUP 2017/022"},null,null,null,null,null,null,null,{"$f":"IF(Données!$D15=\"\",\"\",Données!$D15)","v":"IUP 2017/022"}]
[null,null,{"$f":"IF(Données!$D16=\"\",\"\",Données!$D16)","v":""},null,null,null,null,null,null,null,{"$f":"IF(Données!$D16=\"\",\"\",Données!$D16)","v":""},null,null,null,null,null,null,null,{"$f":"IF(Données!$D16=\"\",\"\",Données!$D16)","v":""},null,null,null,null,null,null,null,{"$f":"IF(Données!$D16=\"\",\"\",Données!$D16)","v":""}]
[]
[]
[]
[null,null,{"$f":"Salon3","v":"4ème Festival de l'Image en Crau"}]
[]
[]
[]
[]
[]
[]
[null,null,{"$f":"FDT","v":"12ème French Digital Tour"},null,null,null,null,null,null,null,{"$f":"FDT","v":"12ème French Digital Tour"},null,null,null,null,null,null,null,{"$f":"FDT","v":"12ème French Digital Tour"},null,null,null,null,null,null,null,{"$f":"FDT","v":"12ème French Digital Tour"}]
[]
[]
[]
[]
[]
[]
[]
[null,null,{"$f":"Salon3","v":"4ème Festival de l'Image en Crau"},null,null,null,null,null,null,null,{"$f":"Salon3","v":"4ème Festival de l'Image en Crau"},null,null,null,null,null,null,null,{"$f":"Salon3","v":"4ème Festival de l'Image en Crau"},null,null,null,null,null,null,null,{"$f":"Salon3","v":"4ème Festival de l'Image en Crau"}]
[]
[]
[null,null,"Mention d'honneur",null,null,null,null,null,null,null,"Mention d'honneur",null,null,null,null,null,null,null,"Mention d'honneur",null,null,null,null,null,null,null,"Mention d'honneur"]
[null,null,"Honourable mention",null,null,null,null,null,null,null,"Honourable mention",null,null,null,null,null,null,null,"Honourable mention",null,null,null,null,null,null,null,"Honourable mention"]
[]
[null,null,"décernée à",null,null,null,null,null,null,null,"décernée à",null,null,null,null,null,null,null,"décernée à",null,null,null,null,null,null,null,"décernée à"]
[null,null," award to",null,null,null,null,null,null,null," award to",null,null,null,null,null,null,null," award to",null,null,null,null,null,null,null," award to"]
[]
[null,null,{"$f":"Auteur81","v":{"$error":"#NAME?"}},null,null,null,null,null,null,null,{"$f":"Auteur82","v":{"$error":"#NAME?"}},null,null,null,null,null,null,null,{"$f":"Auteur83","v":{"$error":"#NAME?"}},null,null,null,null,null,null,null,{"$f":"Auteur84","v":{"$error":"#NAME?"}}]
[null,null,{"$f":"Pays81","v":{"$error":"#NAME?"}},null,null,null,null,null,null,null,{"$f":"Pays82","v":{"$error":"#NAME?"}},null,null,null,null,null,null,null,{"$f":"Pays83","v":{"$error":"#NAME?"}},null,null,null,null,null,null,null,{"$f":"Pays84","v":{"$error":"#NAME?"}}]
[]
[null,null,"Pour sa photo",null,null,null,null,null,null,null,"Pour sa photo",null,null,null,null,null,null,null,"Pour sa photo",null,null,null,null,null,null,null,"Pour sa photo"]
[null,null,"For his photo",null,null,null,null,null,null,null,"For his photo",null,null,null,null,null,null,null,"For his photo",null,null,null,null,null,null,null,"For his photo"]
[]
[null,null,{"$f":"Titre81","v":{"$error":"#NAME?"}},null,null,null,null,null,null,null,{"$f":"Titre82","v":{"$error":"#NAME?"}},null,null,null,null,null,null,null,{"$f":"Titre83","v":{"$error":"#NAME?"}},null,null,null,null,null,null,null,{"$f":"Titre84","v":{"$error":"#NAME?"}}]
[]
[]
[]
[]
[]
[]
[]
[]
[]
[null,null,{"$f":"Patronage1","v":"FIAP : 2017/294-295-296-297"},null,null,null,null,null,null,null,{"$f":"Patronage1","v":"FIAP : 2017/294-295-296-297"},null,null,null,null,null,null,null,{"$f":"Patronage1","v":"FIAP : 2017/294-295-296-297"},null,null,null,null,null,null,null,{"$f":"Patronage1","v":"FIAP : 2017/294-295-296-297"}]
[null,null,{"$f":"Patronage2","v":"PSA : 2017/249"},null,null,null,null,null,null,null,{"$f":"Patronage2","v":"PSA : 2017/249"},null,null,null,null,null,null,null,{"$f":"Patronage2","v":"PSA : 2017/249"},null,null,null,null,null,null,null,{"$f":"Patronage2","v":"PSA : 2017/249"}]
[null,null,{"$f":"Patronage3","v":"FPF : 2017/020-021-022-023"},null,null,null,null,null,null,null,{"$f":"Patronage3","v":"FPF : 2017/020-021-022-023"},null,null,null,null,null,null,null,{"$f":"Patronage3","v":"FPF : 2017/020-021-022-023"},null,null,null,null,null,null,null,{"$f":"Patronage3","v":"FPF : 2017/020-021-022-023"}]
[null,null,{"$f":"Patronage4","v":"RPS : 2017/30-31-32-33"},null,null,null,null,null,null,null,{"$f":"Patronage4","v":"RPS : 2017/30-31-32-33"},null,null,null,null,null,null,null,{"$f":"Patronage4","v":"RPS : 2017/30-31-32-33"},null,null,null,null,null,null,null,{"$f":"Patronage4","v":"RPS : 2017/30-31-32-33"}]
[null,null,{"$f":"Patronage5","v":"GPU : License L170086"},null,null,null,null,null,null,null,{"$f":"Patronage5","v":"GPU : License L170086"},null,null,null,null,null,null,null,{"$f":"Patronage5","v":"GPU : License L170086"},null,null,null,null,null,null,null,{"$f":"Patronage5","v":"GPU : License L170086"}]
[null,null,{"$f":"Patronage6","v":"IUP 2017/022"},null,null,null,null,null,null,null,{"$f":"Patronage6","v":"IUP 2017/022"},null,null,null,null,null,null,null,{"$f":"Patronage6","v":"IUP 2017/022"},null,null,null,null,null,null,null,{"$f":"Patronage6","v":"IUP 2017/022"}]
[null,null,{"$f":"Patronage7","v":0},null,null,null,null,null,null,null,{"$f":"Patronage7","v":0},null,null,null,null,null,null,null,{"$f":"Patronage7","v":0},null,null,null,null,null,null,null,{"$f":"Patronage7","v":0}]
[]
[]
[]
[null,null,{"$f":"Salon3","v":"4ème Festival de l'Image en Crau"}]
[]
[]
[]
[]
[]
[]
[null,null,{"$f":"FDT","v":"12ème French Digital Tour"},null,null,null,null,null,null,null,{"$f":"FDT","v":"12ème French Digital Tour"},null,null,null,null,null,null,null,{"$f":"FDT","v":"12ème French Digital Tour"},null,null,null,null,null,null,null,{"$f":"FDT","v":"12ème French Digital Tour"}]
[]
[]
[]
[]
[]
[]
[]
[null,null,{"$f":"Salon3","v":"4ème Festival de l'Image en Crau"},null,null,null,null,null,null,null,{"$f":"Salon3","v":"4ème Festival de l'Image en Crau"},null,null,null,null,null,null,null,{"$f":"Salon3","v":"4ème Festival de l'Image en Crau"},null,null,null,null,null,null,null,{"$f":"Salon3","v":"4ème Festival de l'Image en Crau"}]
[]
[]
[null,null,"Mention d'honneur",null,null,null,null,null,null,null,"Mention d'honneur",null,null,null,null,null,null,null,"Mention d'honneur",null,null,null,null,null,null,null,"Mention d'honneur"]
[null,null,"Honourable mention",null,null,null,null,null,null,null,"Honourable mention",null,null,null,null,null,null,null,"Honourable mention",null,null,null,null,null,null,null,"Honourable mention"]
[]
[null,null,"décernée à",null,null,null,null,null,null,null,"décernée à",null,null,null,null,null,null,null,"décernée à",null,null,null,null,null,null,null,"décernée à"]
[null,null," award to",null,null,null,null,null,null,null," award to",null,null,null,null,null,null,null," award to",null,null,null,null,null,null,null," award to"]
[]
[null,null,{"$f":"Auteur85","v":{"$error":"#NAME?"}},null,null,null,null,null,null,null,{"$f":"Auteur86","v":{"$error":"#NAME?"}},null,null,null,null,null,null,null,{"$f":"Auteur87","v":{"$error":"#NAME?"}},null,null,null,null,null,null,null,{"$f":"Auteur88","v":{"$error":"#NAME?"}}]
[null,null,{"$f":"Pays85","v":{"$error":"#NAME?"}},null,null,null,null,null,null,null,{"$f":"Pays86","v":{"$error":"#NAME?"}},null,null,null,null,null,null,null,{"$f":"Pays87","v":{"$error":"#NAME?"}},null,null,null,null,null,null,null,{"$f":"Pays88","v":{"$error":"#NAME?"}}]
[]
[null,null,"Pour sa photo",null,null,null,null,null,null,null,"Pour sa photo",null,null,null,null,null,null,null,"Pour sa photo",null,null,null,null,null,null,null,"Pour sa photo"]
[null,null,"For his photo",null,null,null,null,null,null,null,"For his photo",null,null,null,null,null,null,null,"For his photo",null,null,null,null,null,null,null,"For his photo"]
[]
[null,null,{"$f":"Titre85","v":{"$error":"#NAME?"}},null,null,null,null,null,null,null,{"$f":"Titre86","v":{"$error":"#NAME?"}},null,null,null,null,null,null,null,{"$f":"Titre87","v":{"$error":"#NAME?"}},null,null,null,null,null,null,null,{"$f":"Titre88","v":{"$error":"#NAME?"}}]
[]
[]
[]
[]
[]
[]
[]
[]
[]
[null,null,{"$f":"Patronage1","v":"FIAP : 2017/294-295-296-297"},null,null,null,null,null,null,null,{"$f":"Patronage1","v":"FIAP : 2017/294-295-296-297"},null,null,null,null,null,null,null,{"$f":"Patronage1","v":"FIAP : 2017/294-295-296-297"},null,null,null,null,null,null,null,{"$f":"Patronage1","v":"FIAP : 2017/294-295-296-297"}]
[null,null,{"$f":"Patronage2","v":"PSA : 2017/249"},null,null,null,null,null,null,null,{"$f":"Patronage2","v":"PSA : 2017/249"},null,null,null,null,null,null,null,{"$f":"Patronage2","v":"PSA : 2017/249"},null,null,null,null,null,null,null,{"$f":"Patronage2","v":"PSA : 2017/249"}]
[null,null,{"$f":"Patronage3","v":"FPF : 2017/020-021-022-023"},null,null,null,null,null,null,null,{"$f":"Patronage3","v":"FPF : 2017/020-021-022-023"},null,null,null,null,null,null,null,{"$f":"Patronage3","v":"FPF : 2017/020-021-022-023"},null,null,null,null,null,null,null,{"$f":"Patronage3","v":"FPF : 2017/020-021-022-023"}]
[null,null,{"$f":"Patronage4","v":"RPS : 2017/30-31-32-33"},null,null,null,null,null,null,null,{"$f":"Patronage4","v":"RPS : 2017/30-31-32-33"},null,null,null,null,null,null,null,{"$f":"Patronage4","v":"RPS : 2017/30-31-32-33"},null,null,null,null,null,null,null,{"$f":"Patronage4","v":"RPS : 2017/30-31-32-33"}]
[null,null,{"$f":"Patronage5","v":"GPU : License L170086"},null,null,null,null,null,null,null,{"$f":"Patronage5","v":"GPU : License L170086"},null,null,null,null,null,null,null,{"$f":"Patronage5","v":"GPU : License L170086"},null,null,null,null,null,null,null,{"$f":"Patronage5","v":"GPU : License L170086"}]
[null,null,{"$f":"Patronage6","v":"IUP 2017/022"},null,null,null,null,null,null,null,{"$f":"Patronage6","v":"IUP 2017/022"},null,null,null,null,null,null,null,{"$f":"Patronage6","v":"IUP 2017/022"},null,null,null,null,null,null,null,{"$f":"Patronage6","v":"IUP 2017/022"}]
[null,null,{"$f":"Patronage7","v":0},null,null,null,null,null,null,null,{"$f":"Patronage7","v":0},null,null,null,null,null,null,null,{"$f":"Patronage7","v":0},null,null,null,null,null,null,null,{"$f":"Patronage7","v":0}]
[]
[]
[]
[null,null,{"$f":"Salon3","v":"4ème Festival de l'Image en Crau"}]
[]
[]
[]
[]
[]
[]
[null,null,{"$f":"FDT","v":"12ème French Digital Tour"},null,null,null,null,null,null,null,{"$f":"FDT","v":"12ème French Digital Tour"},null,null,null,null,null,null,null,{"$f":"FDT","v":"12ème French Digital Tour"},null,null,null,null,null,null,null,{"$f":"FDT","v":"12ème French Digital Tour"}]
[]
[]
[]
[]
[]
[]
[]
[null,null,{"$f":"Salon3","v":"4ème Festival de l'Image en Crau"},null,null,null,null,null,null,null,{"$f":"Salon3","v":"4ème Festival de l'Image en Crau"},null,null,null,null,null,null,null,{"$f":"Salon3","v":"4ème Festival de l'Image en Crau"},null,null,null,null,null,null,null,{"$f":"Salon3","v":"4ème Festival de l'Image en Crau"}]
[]
[]
[null,null,"Mention d'honneur",null,null,null,null,null,null,null,"Mention d'honneur",null,null,null,null,null,null,null,"Mention d'honneur",null,null,null,null,null,null,null,"Mention d'honneur"]
[null,null,"Honourable mention",null,null,null,null,null,null,null,"Honourable mention",null,null,null,null,null,null,null,"Honourable mention",null,null,null,null,null,null,null,"Honourable mention"]
[]
[null,null,"décernée à",null,null,null,null,null,null,null,"décernée à",null,null,null,null,null,null,null,"décernée à",null,null,null,null,null,null,null,"décernée à"]
[null,null," award to",null,null,null,null,null,null,null," award to",null,null,null,null,null,null,null," award to",null,null,null,null,null,null,null," award to"]
[]
[null,null,{"$f":"Auteur89","v":{"$error":"#NAME?"}},null,null,null,null,null,null,null,{"$f":"Auteur90","v":{"$error":"#NAME?"}},null,null,null,null,null,null,null,{"$f":"Auteur91","v":{"$error":"#NAME?"}},null,null,null,null,null,null,null,{"$f":"Auteur92","v":{"$error":"#NAME?"}}]
[null,null,{"$f":"Pays89","v":{"$error":"#NAME?"}},null,null,null,null,null,null,null,{"$f":"Pays90","v":{"$error":"#NAME?"}},null,null,null,null,null,null,null,{"$f":"Pays91","v":{"$error":"#NAME?"}},null,null,null,null,null,null,null,{"$f":"Pays92","v":{"$error":"#NAME?"}}]
[]
[null,null,"Pour sa photo",null,null,null,null,null,null,null,"Pour sa photo",null,null,null,null,null,null,null,"Pour sa photo",null,null,null,null,null,null,null,"Pour sa photo"]
[null,null,"For his photo",null,null,null,null,null,null,null,"For his photo",null,null,null,null,null,null,null,"For his photo",null,null,null,null,null,null,null,"For his photo"]
[]
[null,null,{"$f":"Titre89","v":{"$error":"#NAME?"}},null,null,null,null,null,null,null,{"$f":"Titre90","v":{"$error":"#NAME?"}},null,null,null,null,null,null,null,{"$f":"Titre91","v":{"$error":"#NAME?"}},null,null,null,null,null,null,null,{"$f":"Titre92","v":{"$error":"#NAME?"}}]
[]
[]
[]
[]
[]
[]
[]
[]
[]
[null,null,{"$f":"Patronage1","v":"FIAP : 2017/294-295-296-297"},null,null,null,null,null,null,null,{"$f":"Patronage1","v":"FIAP : 2017/294-295-296-297"},null,null,null,null,null,null,null,{"$f":"Patronage1","v":"FIAP : 2017/294-295-296-297"},null,null,null,null,null,null,null,{"$f":"Patronage1","v":"FIAP : 2017/294-295-296-297"}]
[null,null,{"$f":"Patronage2","v":"PSA : 2017/249"},null,null,null,null,null,null,null,{"$f":"Patronage2","v":"PSA : 2017/249"},null,null,null,null,null,null,null,{"$f":"Patronage2","v":"PSA : 2017/249"},null,null,null,null,null,null,null,{"$f":"Patronage2","v":"PSA : 2017/249"}]
[null,null,{"$f":"Patronage3","v":"FPF : 2017/020-021-022-023"},null,null,null,null,null,null,null,{"$f":"Patronage3","v":"FPF : 2017/020-021-022-023"},null,null,null,null,null,null,null,{"$f":"Patronage3","v":"FPF : 2017/020-021-022-023"},null,null,null,null,null,null,null,{"$f":"Patronage3","v":"FPF : 2017/020-021-022-023"}]
[null,null,{"$f":"Patronage4","v":"RPS : 2017/30-31-32-33"},null,null,null,null,null,null,null,{"$f":"Patronage4","v":"RPS : 2017/30-31-32-33"},null,null,null,null,null,null,null,{"$f":"Patronage4","v":"RPS : 2017/30-31-32-33"},null,null,null,null,null,null,null,{"$f":"Patronage4","v":"RPS : 2017/30-31-32-33"}]
[null,null,{"$f":"Patronage5","v":"GPU : License L170086"},null,null,null,null,null,null,null,{"$f":"Patronage5","v":"GPU : License L170086"},null,null,null,null,null,null,null,{"$f":"Patronage5","v":"GPU : License L170086"},null,null,null,null,null,null,null,{"$f":"Patronage5","v":"GPU : License L170086"}]
[null,null,{"$f":"Patronage6","v":"IUP 2017/022"},null,null,null,null,null,null,null,{"$f":"Patronage6","v":"IUP 2017/022"},null,null,null,null,null,null,null,{"$f":"Patronage6","v":"IUP 2017/022"},null,null,null,null,null,null,null,{"$f":"Patronage6","v":"IUP 2017/022"}]
[null,null,{"$f":"Patronage7","v":0},null,null,null,null,null,null,null,{"$f":"Patronage7","v":0},null,null,null,null,null,null,null,{"$f":"Patronage7","v":0},null,null,null,null,null,null,null,{"$f":"Patronage7","v":0}]
[]
[]
[]
[null,null,{"$f":"Salon3","v":"4ème Festival de l'Image en Crau"}]
[]
[]
[]
[]
[]
[]
[null,null,{"$f":"FDT","v":"12ème French Digital Tour"},null,null,null,null,null,null,null,{"$f":"FDT","v":"12ème French Digital Tour"},null,null,null,null,null,null,null,{"$f":"FDT","v":"12ème French Digital Tour"},null,null,null,null,null,null,null,{"$f":"FDT","v":"12ème French Digital Tour"}]
[]
[]
[]
[]
[]
[]
[]
[null,null,{"$f":"Salon3","v":"4ème Festival de l'Image en Crau"},null,null,null,null,null,null,null,{"$f":"Salon3","v":"4ème Festival de l'Image en Crau"},null,null,null,null,null,null,null,{"$f":"Salon3","v":"4ème Festival de l'Image en Crau"},null,null,null,null,null,null,null,{"$f":"Salon3","v":"4ème Festival de l'Image en Crau"}]
[]
[]
[null,null,"Mention d'honneur",null,null,null,null,null,null,null,"Mention d'honneur",null,null,null,null,null,null,null,"Mention d'honneur",null,null,null,null,null,null,null,"Mention d'honneur"]
[null,null,"Honourable mention",null,null,null,null,null,null,null,"Honourable mention",null,null,null,null,null,null,null,"Honourable mention",null,null,null,null,null,null,null,"Honourable mention"]
[]
[null,null,"décernée à",null,null,null,null,null,null,null,"décernée à",null,null,null,null,null,null,null,"décernée à",null,null,null,null,null,null,null,"décernée à"]
[null,null," award to",null,null,null,null,null,null,null," award to",null,null,null,null,null,null,null," award to",null,null,null,null,null,null,null," award to"]
[]
[null,null,{"$f":"Auteur93","v":{"$error":"#NAME?"}},null,null,null,null,null,null,null,{"$f":"Auteur94","v":{"$error":"#NAME?"}},null,null,null,null,null,null,null,{"$f":"Auteur95","v":{"$error":"#NAME?"}},null,null,null,null,null,null,null,{"$f":"Auteur96","v":{"$error":"#NAME?"}}]
[null,null,{"$f":"Pays93","v":{"$error":"#NAME?"}},null,null,null,null,null,null,null,{"$f":"Pays94","v":{"$error":"#NAME?"}},null,null,null,null,null,null,null,{"$f":"Pays95","v":{"$error":"#NAME?"}},null,null,null,null,null,null,null,{"$f":"Pays96","v":{"$error":"#NAME?"}}]
[]
[null,null,"Pour sa photo",null,null,null,null,null,null,null,"Pour sa photo",null,null,null,null,null,null,null,"Pour sa photo",null,null,null,null,null,null,null,"Pour sa photo"]
[null,null,"For his photo",null,null,null,null,null,null,null,"For his photo",null,null,null,null,null,null,null,"For his photo",null,null,null,null,null,null,null,"For his photo"]
[]
[null,null,{"$f":"Titre93","v":{"$error":"#NAME?"}},null,null,null,null,null,null,null,{"$f":"Titre94","v":{"$error":"#NAME?"}},null,null,null,null,null,null,null,{"$f":"Titre95","v":{"$error":"#NAME?"}},null,null,null,null,null,null,null,{"$f":"Titre96","v":{"$error":"#NAME?"}}]
[]
[]
[]
[]
[]
[]
[]
[]
[]
[null,null,{"$f":"Patronage1","v":"FIAP : 2017/294-295-296-297"},null,null,null,null,null,null,null,{"$f":"Patronage1","v":"FIAP : 2017/294-295-296-297"},null,null,null,null,null,null,null,{"$f":"Patronage1","v":"FIAP : 2017/294-295-296-297"},null,null,null,null,null,null,null,{"$f":"Patronage1","v":"FIAP : 2017/294-295-296-297"}]
[null,null,{"$f":"Patronage2","v":"PSA : 2017/249"},null,null,null,null,null,null,null,{"$f":"Patronage2","v":"PSA : 2017/249"},null,null,null,null,null,null,null,{"$f":"Patronage2","v":"PSA : 2017/249"},null,null,null,null,null,null,null,{"$f":"Patronage2","v":"PSA : 2017/249"}]
[null,null,{"$f":"Patronage3","v":"FPF : 2017/020-021-022-023"},null,null,null,null,null,null,null,{"$f":"Patronage3","v":"FPF : 2017/020-021-022-023"},null,null,null,null,null,null,null,{"$f":"Patronage3","v":"FPF : 2017/020-021-022-023"},null,null,null,null,null,null,null,{"$f":"Patronage3","v":"FPF : 2017/020-021-022-023"}]
[null,null,{"$f":"Patronage4","v":"RPS : 2017/30-31-32-33"},null,null,null,null,null,null,null,{"$f":"Patronage4","v":"RPS : 2017/30-31-32-33"},null,null,null,null,null,null,null,{"$f":"Patronage4","v":"RPS : 2017/30-31-32-33"},null,null,null,null,null,null,null,{"$f":"Patronage4","v":"RPS : 2017/30-31-32-33"}]
[null,null,{"$f":"Patronage5","v":"GPU : License L170086"},null,null,null,null,null,null,null,{"$f":"Patronage5","v":"GPU : License L170086"},null,null,null,null,null,null,null,{"$f":"Patronage5","v":"GPU : License L170086"},null,null,null,null,null,null,null,{"$f":"Patronage5","v":"GPU : License L170086"}]
[null,null,{"$f":"Patronage6","v":"IUP 2017/022"},null,null,null,null,null,null,null,{"$f":"Patronage6","v":"IUP 2017/022"},null,null,null,null,null,null,null,{"$f":"Patronage6","v":"IUP 2017/022"},null,null,null,null,null,null,null,{"$f":"Patronage6","v":"IUP 2017/022"}]
[null,null,{"$f":"Patronage7","v":0},null,null,null,null,null,null,null,{"$f":"Patronage7","v":0},null,null,null,null,null,null,null,{"$f":"Patronage7","v":0},null,null,null,null,null,null,null,{"$f":"Patronage7","v":0}]
[]
[]
[]
[null,null,{"$f":"Salon3","v":"4ème Festival de l'Image en Crau"}]
[]
[]
[]
[]
[]
[]
[null,null,{"$f":"FDT","v":"12ème French Digital Tour"},null,null,null,null,null,null,null,{"$f":"FDT","v":"12ème French Digital Tour"},null,null,null,null,null,null,null,{"$f":"FDT","v":"12ème French Digital Tour"},null,null,null,null,null,null,null,{"$f":"FDT","v":"12ème French Digital Tour"}]
[]
[]
[]
[]
[]
[]
[]
[null,null,{"$f":"Salon3","v":"4ème Festival de l'Image en Crau"},null,null,null,null,null,null,null,{"$f":"Salon3","v":"4ème Festival de l'Image en Crau"},null,null,null,null,null,null,null,{"$f":"Salon3","v":"4ème Festival de l'Image en Crau"},null,null,null,null,null,null,null,{"$f":"Salon3","v":"4ème Festival de l'Image en Crau"}]
[]
[]
[null,null,"Mention d'honneur",null,null,null,null,null,null,null,"Mention d'honneur",null,null,null,null,null,null,null,"Mention d'honneur",null,null,null,null,null,null,null,"Mention d'honneur"]
[null,null,"Honourable mention",null,null,null,null,null,null,null,"Honourable mention",null,null,null,null,null,null,null,"Honourable mention",null,null,null,null,null,null,null,"Honourable mention"]
[]
[null,null,"décernée à",null,null,null,null,null,null,null,"décernée à",null,null,null,null,null,null,null,"décernée à",null,null,null,null,null,null,null,"décernée à"]
[null,null," award to",null,null,null,null,null,null,null," award to",null,null,null,null,null,null,null," award to",null,null,null,null,null,null,null," award to"]
[]
[null,null,{"$f":"Auteur97","v":{"$error":"#NAME?"}},null,null,null,null,null,null,null,{"$f":"Auteur98","v":{"$error":"#NAME?"}},null,null,null,null,null,null,null,{"$f":"Auteur99","v":{"$error":"#NAME?"}},null,null,null,null,null,null,null,{"$f":"Auteur100","v":{"$error":"#NAME?"}}]
[null,null,{"$f":"Pays97","v":{"$error":"#NAME?"}},null,null,null,null,null,null,null,{"$f":"Pays98","v":{"$error":"#NAME?"}},null,null,null,null,null,null,null,{"$f":"Pays99","v":{"$error":"#NAME?"}},null,null,null,null,null,null,null,{"$f":"Pays100","v":{"$error":"#NAME?"}}]
[]
[null,null,"Pour sa photo",null,null,null,null,null,null,null,"Pour sa photo",null,null,null,null,null,null,null,"Pour sa photo",null,null,null,null,null,null,null,"Pour sa photo"]
[null,null,"For his photo",null,null,null,null,null,null,null,"For his photo",null,null,null,null,null,null,null,"For his photo",null,null,null,null,null,null,null,"For his photo"]
[]
[null,null,{"$f":"Titre97","v":{"$error":"#NAME?"}},null,null,null,null,null,null,null,{"$f":"Titre98","v":{"$error":"#NAME?"}},null,null,null,null,null,null,null,{"$f":"Titre99","v":{"$error":"#NAME?"}},null,null,null,null,null,null,null,{"$f":"Titre100","v":{"$error":"#NAME?"}}]
[]
[]
[]
[]
[]
[]
[]
[]
[]
[null,null,{"$f":"Patronage1","v":"FIAP : 2017/294-295-296-297"},null,null,null,null,null,null,null,{"$f":"Patronage1","v":"FIAP : 2017/294-295-296-297"},null,null,null,null,null,null,null,{"$f":"Patronage1","v":"FIAP : 2017/294-295-296-297"},null,null,null,null,null,null,null,{"$f":"Patronage1","v":"FIAP : 2017/294-295-296-297"}]
[null,null,{"$f":"Patronage2","v":"PSA : 2017/249"},null,null,null,null,null,null,null,{"$f":"Patronage2","v":"PSA : 2017/249"},null,null,null,null,null,null,null,{"$f":"Patronage2","v":"PSA : 2017/249"},null,null,null,null,null,null,null,{"$f":"Patronage2","v":"PSA : 2017/249"}]
[null,null,{"$f":"Patronage3","v":"FPF : 2017/020-021-022-023"},null,null,null,null,null,null,null,{"$f":"Patronage3","v":"FPF : 2017/020-021-022-023"},null,null,null,null,null,null,null,{"$f":"Patronage3","v":"FPF : 2017/020-021-022-023"},null,null,null,null,null,null,null,{"$f":"Patronage3","v":"FPF : 2017/020-021-022-023"}]
[null,null,{"$f":"Patronage4","v":"RPS : 2017/30-31-32-33"},null,null,null,null,null,null,null,{"$f":"Patronage4","v":"RPS : 2017/30-31-32-33"},null,null,null,null,null,null,null,{"$f":"Patronage4","v":"RPS : 2017/30-31-32-33"},null,null,null,null,null,null,null,{"$f":"Patronage4","v":"RPS : 2017/30-31-32-33"}]
[null,null,{"$f":"Patronage5","v":"GPU : License L170086"},null,null,null,null,null,null,null,{"$f":"Patronage5","v":"GPU : License L170086"},null,null,null,null,null,null,null,{"$f":"Patronage5","v":"GPU : License L170086"},null,null,null,null,null,null,null,{"$f":"Patronage5","v":"GPU : License L170086"}]
[null,null,{"$f":"Patronage6","v":"IUP 2017/022"},null,null,null,null,null,null,null,{"$f":"Patronage6","v":"IUP 2017/022"},null,null,null,null,null,null,null,{"$f":"Patronage6","v":"IUP 2017/022"},null,null,null,null,null,null,null,{"$f":"Patronage6","v":"IUP 2017/022"}]
[null,null,{"$f":"Patronage7","v":0},null,null,null,null,null,null,null,{"$f":"Patronage7","v":0},null,null,null,null,null,null,null,{"$f":"Patronage7","v":0},null,null,null,null,null,null,null,{"$f":"Patronage7","v":0}]

{"sheet":"BAG_Ruban FIAP_2","index":5,"n_rows":47,"n_cols":27,"rows_kept":47,"cut":false,"hidden":false,"merged":[[7,2,8,6],[7,10,8,14],[7,18,8,22],[7,26,8,30],[15,2,16,6],[15,10,16,14],[15,18,16,22],[15,26,16,30],[18,2,18,6],[18,10,18,14],[18,18,18,22],[18,26,18,30],[19,2,19,6],[19,10,19,14],[19,18,19,22],[19,26,19,30],[21,2,21,6],[21,10,21,14],[21,18,21,22],[21,26,21,30],[22,2,22,6],[22,10,22,14],[22,18,22,22],[22,26,22,30],[24,2,24,6],[24,10,24,14],[24,18,24,22],[24,26,24,30],[25,2,25,6],[25,10,25,14],[25,18,25,22],[25,26,25,30],[26,2,26,6],[26,10,26,14],[26,18,26,22],[26,26,26,30],[27,2,27,6],[27,10,27,14],[27,18,27,22],[27,26,27,30],[28,2,28,6],[28,10,28,14],[28,18,28,22],[28,26,28,30],[30,2,30,6],[30,10,30,14],[30,18,30,22],[30,26,30,30],[40,2,40,6],[40,10,40,14],[40,18,40,22],[40,26,40,30],[41,2,41,6],[41,10,41,14],[41,18,41,22],[41,26,41,30],[42,2,42,6],[42,10,42,14],[42,18,42,22],[42,26,42,30],[43,2,43,6],[43,10,43,14],[43,18,43,22],[43,26,43,30],[46,2,46,6],[46,10,46,14],[46,18,46,22],[46,26,46,30],[44,2,44,6],[44,10,44,14],[44,18,44,22],[44,26,44,30],[45,2,45,6],[45,10,45,14],[45,18,45,22],[45,26,45,30]]}
[null,null,{"$f":"Ville4","v":"Bagnols Marcoule"},null,null,null,null,null,null,null,3]
[]
[]
[]
[]
[]
[]
[null,null,{"$f":"FDT","v":"12ème French Digital Tour"},null,null,null,null,null,null,null,{"$f":"FDT","v":"12ème French Digital Tour"},null,null,null,null,null,null,null,{"$f":"FDT","v":"12ème French Digital Tour"},null,null,null,null,null,null,null,{"$f":"FDT","v":"12ème French Digital Tour"}]
[]
[]
[]
[]
[]
[]
[]
[null,null,{"$f":"Salon4","v":"20ème salon Bagnols Marcoule"},null,null,null,null,null,null,null,{"$f":"Salon4","v":"20ème salon Bagnols Marcoule"},null,null,null,null,null,null,null,{"$f":"Salon4","v":"20ème salon Bagnols Marcoule"},null,null,null,null,null,null,null,{"$f":"Salon4","v":"20ème salon Bagnols Marcoule"}]
[]
[]
[null,null,"Mention d'honneur",null,null,null,null,null,null,null,"Mention d'honneur",null,null,null,null,null,null,null,"Mention d'honneur",null,null,null,null,null,null,null,"Mention d'honneur"]
[null,null,"Honourable mention",null,null,null,null,null,null,null,"Honourable mention",null,null,null,null,null,null,null,"Honourable mention",null,null,null,null,null,null,null,"Honourable mention"]
[]
[null,null,"décernée à",null,null,null,null,null,null,null,"décernée à",null,null,null,null,null,null,null,"décernée à",null,null,null,null,null,null,null,"décernée à"]
[null,null," award to",null,null,null,null,null,null,null," award to",null,null,null,null,null,null,null," award to",null,null,null,null,null,null,null," award to"]
[]
[null,null,{"$f":"Auteur105","v":"Chang  Qing"},null,null,null,null,null,null,null,{"$f":"Auteur106","v":"Pedelmas  Pierre"},null,null,null,null,null,null,null,{"$f":"Auteur107","v":"Plovie  Bjorn"},null,null,null,null,null,null,null,{"$f":"Auteur108","v":"Zhou  Muyang"}]
[null,null,{"$f":"Pays105","v":"Chine"},null,null,null,null,null,null,null,{"$f":"Pays106","v":"France"},null,null,null,null,null,null,null,{"$f":"Pays107","v":"Belgique"},null,null,null,null,null,null,null,{"$f":"Pays108","v":"Chine"}]
[]
[null,null,"Pour sa photo",null,null,null,null,null,null,null,"Pour sa photo",null,null,null,null,null,null,null,"Pour sa photo",null,null,null,null,null,null,null,"Pour sa photo"]
[null,null,"For his photo",null,null,null,null,null,null,null,"For his photo",null,null,null,null,null,null,null,"For his photo",null,null,null,null,null,null,null,"For his photo"]
[]
[null,null,{"$f":"Titre105","v":"Prairie hero"},null,null,null,null,null,null,null,{"$f":"Titre106","v":"Bibliothèque pour tous"},null,null,null,null,null,null,null,{"$f":"Titre107","v":"Give it to me"},null,null,null,null,null,null,null,{"$f":"Titre108","v":"The return journey"}]
[]
[]
[]
[]
[]
[]
[]
[]
[]
[null,null,{"$f":"IF(Données!$D10=\"\",\"\",Données!$D10)","v":"FIAP : 2017/294-295-296-297"},null,null,null,null,null,null,null,{"$f":"IF(Données!$D10=\"\",\"\",Données!$D10)","v":"FIAP : 2017/294-295-296-297"},null,null,null,null,null,null,null,{"$f":"IF(Données!$D10=\"\",\"\",Données!$D10)","v":"FIAP : 2017/294-295-296-297"},null,null,null,null,null,null,null,{"$f":"IF(Données!$D10=\"\",\"\",Données!$D10)","v":"FIAP : 2017/294-295-296-297"}]
[null,null,{"$f":"IF(Données!$D11=\"\",\"\",Données!$D11)","v":"PSA : 2017/249"},null,null,null,null,null,null,null,{"$f":"IF(Données!$D11=\"\",\"\",Données!$D11)","v":"PSA : 2017/249"},null,null,null,null,null,null,null,{"$f":"IF(Données!$D11=\"\",\"\",Données!$D11)","v":"PSA : 2017/249"},null,null,null,null,null,null,null,{"$f":"IF(Données!$D11=\"\",\"\",Données!$D11)","v":"PSA : 2017/249"}]
[null,null,{"$f":"IF(Données!$D12=\"\",\"\",Données!$D12)","v":"FPF : 2017/020-021-022-023"},null,null,null,null,null,null,null,{"$f":"IF(Données!$D12=\"\",\"\",Données!$D12)","v":"FPF : 2017/020-021-022-023"},null,null,null,null,null,null,null,{"$f":"IF(Données!$D12=\"\",\"\",Données!$D12)","v":"FPF : 2017/020-021-022-023"},null,null,null,null,null,null,null,{"$f":"IF(Données!$D12=\"\",\"\",Données!$D12)","v":"FPF : 2017/020-021-022-023"}]
[null,null,{"$f":"IF(Données!$D13=\"\",\"\",Données!$D13)","v":"RPS : 2017/30-31-32-33"},null,null,null,null,null,null,null,{"$f":"IF(Données!$D13=\"\",\"\",Données!$D13)","v":"RPS : 2017/30-31-32-33"},null,null,null,null,null,null,null,{"$f":"IF(Données!$D13=\"\",\"\",Données!$D13)","v":"RPS : 2017/30-31-32-33"},null,null,null,null,null,null,null,{"$f":"IF(Données!$D13=\"\",\"\",Données!$D13)","v":"RPS : 2017/30-31-32-33"}]
[null,null,{"$f":"IF(Données!$D14=\"\",\"\",Données!$D14)","v":"GPU : License L170086"},null,null,null,null,null,null,null,{"$f":"IF(Données!$D14=\"\",\"\",Données!$D14)","v":"GPU : License L170086"},null,null,null,null,null,null,null,{"$f":"IF(Données!$D14=\"\",\"\",Données!$D14)","v":"GPU : License L170086"},null,null,null,null,null,null,null,{"$f":"IF(Données!$D14=\"\",\"\",Données!$D14)","v":"GPU : License L170086"}]
[null,null,{"$f":"IF(Données!$D15=\"\",\"\",Données!$D15)","v":"IUP 2017/022"},null,null,null,null,null,null,null,{"$f":"IF(Données!$D15=\"\",\"\",Données!$D15)","v":"IUP 2017/022"},null,null,null,null,null,null,null,{"$f":"IF(Données!$D15=\"\",\"\",Données!$D15)","v":"IUP 2017/022"},null,null,null,null,null,null,null,{"$f":"IF(Données!$D15=\"\",\"\",Données!$D15)","v":"IUP 2017/022"}]
[null,null,{"$f":"IF(Données!$D16=\"\",\"\",Données!$D16)","v":""},null,null,null,null,null,null,null,{"$f":"IF(Données!$D16=\"\",\"\",Données!$D16)","v":""},null,null,null,null,null,null,null,{"$f":"IF(Données!$D16=\"\",\"\",Données!$D16)","v":""},null,null,null,null,null,null,null,{"$f":"IF(Données!$D16=\"\",\"\",Données!$D16)","v":""}]

{"sheet":"BAG_Ruban FIAP_3","index":6,"n_rows":47,"n_cols":27,"rows_kept":47,"cut":false,"hidden":false,"merged":[[7,2,8,6],[7,10,8,14],[7,18,8,22],[7,26,8,30],[15,2,16,6],[15,10,16,14],[15,18,16,22],[15,26,16,30],[18,2,18,6],[18,10,18,14],[18,18,18,22],[18,26,18,30],[19,2,19,6],[19,10,19,14],[19,18,19,22],[19,26,19,30],[21,2,21,6],[21,10,21,14],[21,18,21,22],[21,26,21,30],[22,2,22,6],[22,10,22,14],[22,18,22,22],[22,26,22,30],[24,2,24,6],[24,10,24,14],[24,18,24,22],[24,26,24,30],[25,2,25,6],[25,10,25,14],[25,18,25,22],[25,26,25,30],[26,2,26,6],[26,10,26,14],[26,18,26,22],[26,26,26,30],[27,2,27,6],[27,10,27,14],[27,18,27,22],[27,26,27,30],[28,2,28,6],[28,10,28,14],[28,18,28,22],[28,26,28,30],[30,2,30,6],[30,10,30,14],[30,18,30,22],[30,26,30,30],[40,2,40,6],[40,10,40,14],[40,18,40,22],[40,26,40,30],[41,2,41,6],[41,10,41,14],[41,18,41,22],[41,26,41,30],[42,2,42,6],[42,10,42,14],[42,18,42,22],[42,26,42,30],[43,2,43,6],[43,10,43,14],[43,18,43,22],[43,26,43,30],[46,2,46,6],[46,10,46,14],[46,18,46,22],[46,26,46,30],[44,2,44,6],[44,10,44,14],[44,18,44,22],[44,26,44,30],[45,2,45,6],[45,10,45,14],[45,18,45,22],[45,26,45,30]]}
[null,null,{"$f":"Ville4","v":"Bagnols Marcoule"},null,null,null,null,null,null,null,4]
[]
[]
[]
[]
[]
[]
[null,null,{"$f":"FDT","v":"12ème French Digital Tour"},null,null,null,null,null,null,null,{"$f":"FDT","v":"12ème French Digital Tour"},null,null,null,null,null,null,null,{"$f":"FDT","v":"12ème French Digital Tour"},null,null,null,null,null,null,null,{"$f":"FDT","v":"12ème French Digital Tour"}]
[]
[]
[]
[]
[]
[]
[]
[null,null,{"$f":"Salon4","v":"20ème salon Bagnols Marcoule"},null,null,null,null,null,null,null,{"$f":"Salon4","v":"20ème salon Bagnols Marcoule"},null,null,null,null,null,null,null,{"$f":"Salon4","v":"20ème salon Bagnols Marcoule"},null,null,null,null,null,null,null,{"$f":"Salon4","v":"20ème salon Bagnols Marcoule"}]
[]
[]
[null,null,"Mention d'honneur",null,null,null,null,null,null,null,"Mention d'honneur",null,null,null,null,null,null,null,"Mention d'honneur",null,null,null,null,null,null,null,"Mention d'honneur"]
[null,null,"Honourable mention",null,null,null,null,null,null,null,"Honourable mention",null,null,null,null,null,null,null,"Honourable mention",null,null,null,null,null,null,null,"Honourable mention"]
[]
[null,null,"décernée à",null,null,null,null,null,null,null,"décernée à",null,null,null,null,null,null,null,"décernée à",null,null,null,null,null,null,null,"décernée à"]
[null,null," award to",null,null,null,null,null,null,null," award to",null,null,null,null,null,null,null," award to",null,null,null,null,null,null,null," award to"]
[]
[null,null,{"$f":"Auteur109","v":"Mao  Renfa"},null,null,null,null,null,null,null,{"$f":"Auteur110","v":"Che  Arnaldo Paulo"},null,null,null,null,null,null,null,{"$f":"Auteur111","v":"Yuan  Wenhui"},null,null,null,null,null,null,null,{"$f":"Auteur112","v":"Kettler  Jean-Paul"}]
[null,null,{"$f":"Pays109","v":"Chine"},null,null,null,null,null,null,null,{"$f":"Pays110","v":"Hong Kong"},null,null,null,null,null,null,null,{"$f":"Pays111","v":"Chine"},null,null,null,null,null,null,null,{"$f":"Pays112","v":"France"}]
[]
[null,null,"Pour sa photo",null,null,null,null,null,null,null,"Pour sa photo",null,null,null,null,null,null,null,"Pour sa photo",null,null,null,null,null,null,null,"Pour sa photo"]
[null,null,"For his photo",null,null,null,null,null,null,null,"For his photo",null,null,null,null,null,null,null,"For his photo",null,null,null,null,null,null,null,"For his photo"]
[]
[null,null,{"$f":"Titre109","v":"One's way home"},null,null,null,null,null,null,null,{"$f":"Titre110","v":"Happy childhood"},null,null,null,null,null,null,null,{"$f":"Titre111","v":"Courtship"},null,null,null,null,null,null,null,{"$f":"Titre112","v":"After rain"}]
[]
[]
[]
[]
[]
[]
[]
[]
[]
[null,null,{"$f":"IF(Données!$D10=\"\",\"\",Données!$D10)","v":"FIAP : 2017/294-295-296-297"},null,null,null,null,null,null,null,{"$f":"IF(Données!$D10=\"\",\"\",Données!$D10)","v":"FIAP : 2017/294-295-296-297"},null,null,null,null,null,null,null,{"$f":"IF(Données!$D10=\"\",\"\",Données!$D10)","v":"FIAP : 2017/294-295-296-297"},null,null,null,null,null,null,null,{"$f":"IF(Données!$D10=\"\",\"\",Données!$D10)","v":"FIAP : 2017/294-295-296-297"}]
[null,null,{"$f":"IF(Données!$D11=\"\",\"\",Données!$D11)","v":"PSA : 2017/249"},null,null,null,null,null,null,null,{"$f":"IF(Données!$D11=\"\",\"\",Données!$D11)","v":"PSA : 2017/249"},null,null,null,null,null,null,null,{"$f":"IF(Données!$D11=\"\",\"\",Données!$D11)","v":"PSA : 2017/249"},null,null,null,null,null,null,null,{"$f":"IF(Données!$D11=\"\",\"\",Données!$D11)","v":"PSA : 2017/249"}]
[null,null,{"$f":"IF(Données!$D12=\"\",\"\",Données!$D12)","v":"FPF : 2017/020-021-022-023"},null,null,null,null,null,null,null,{"$f":"IF(Données!$D12=\"\",\"\",Données!$D12)","v":"FPF : 2017/020-021-022-023"},null,null,null,null,null,null,null,{"$f":"IF(Données!$D12=\"\",\"\",Données!$D12)","v":"FPF : 2017/020-021-022-023"},null,null,null,null,null,null,null,{"$f":"IF(Données!$D12=\"\",\"\",Données!$D12)","v":"FPF : 2017/020-021-022-023"}]
[null,null,{"$f":"IF(Données!$D13=\"\",\"\",Données!$D13)","v":"RPS : 2017/30-31-32-33"},null,null,null,null,null,null,null,{"$f":"IF(Données!$D13=\"\",\"\",Données!$D13)","v":"RPS : 2017/30-31-32-33"},null,null,null,null,null,null,null,{"$f":"IF(Données!$D13=\"\",\"\",Données!$D13)","v":"RPS : 2017/30-31-32-33"},null,null,null,null,null,null,null,{"$f":"IF(Données!$D13=\"\",\"\",Données!$D13)","v":"RPS : 2017/30-31-32-33"}]
[null,null,{"$f":"IF(Données!$D14=\"\",\"\",Données!$D14)","v":"GPU : License L170086"},null,null,null,null,null,null,null,{"$f":"IF(Données!$D14=\"\",\"\",Données!$D14)","v":"GPU : License L170086"},null,null,null,null,null,null,null,{"$f":"IF(Données!$D14=\"\",\"\",Données!$D14)","v":"GPU : License L170086"},null,null,null,null,null,null,null,{"$f":"IF(Données!$D14=\"\",\"\",Données!$D14)","v":"GPU : License L170086"}]
[null,null,{"$f":"IF(Données!$D15=\"\",\"\",Données!$D15)","v":"IUP 2017/022"},null,null,null,null,null,null,null,{"$f":"IF(Données!$D15=\"\",\"\",Données!$D15)","v":"IUP 2017/022"},null,null,null,null,null,null,null,{"$f":"IF(Données!$D15=\"\",\"\",Données!$D15)","v":"IUP 2017/022"},null,null,null,null,null,null,null,{"$f":"IF(Données!$D15=\"\",\"\",Données!$D15)","v":"IUP 2017/022"}]
[null,null,{"$f":"IF(Données!$D16=\"\",\"\",Données!$D16)","v":""},null,null,null,null,null,null,null,{"$f":"IF(Données!$D16=\"\",\"\",Données!$D16)","v":""},null,null,null,null,null,null,null,{"$f":"IF(Données!$D16=\"\",\"\",Données!$D16)","v":""},null,null,null,null,null,null,null,{"$f":"IF(Données!$D16=\"\",\"\",Données!$D16)","v":""}]

{"sheet":"BAG_Ruban FIAP_4","index":7,"n_rows":47,"n_cols":27,"rows_kept":47,"cut":false,"hidden":false,"merged":[[7,2,8,6],[7,10,8,14],[7,18,8,22],[7,26,8,30],[15,2,16,6],[15,10,16,14],[15,18,16,22],[15,26,16,30],[18,2,18,6],[18,10,18,14],[18,18,18,22],[18,26,18,30],[19,2,19,6],[19,10,19,14],[19,18,19,22],[19,26,19,30],[21,2,21,6],[21,10,21,14],[21,18,21,22],[21,26,21,30],[22,2,22,6],[22,10,22,14],[22,18,22,22],[22,26,22,30],[24,2,24,6],[24,10,24,14],[24,18,24,22],[24,26,24,30],[25,2,25,6],[25,10,25,14],[25,18,25,22],[25,26,25,30],[26,2,26,6],[26,10,26,14],[26,18,26,22],[26,26,26,30],[27,2,27,6],[27,10,27,14],[27,18,27,22],[27,26,27,30],[28,2,28,6],[28,10,28,14],[28,18,28,22],[28,26,28,30],[30,2,30,6],[30,10,30,14],[30,18,30,22],[30,26,30,30],[40,2,40,6],[40,10,40,14],[40,18,40,22],[40,26,40,30],[41,2,41,6],[41,10,41,14],[41,18,41,22],[41,26,41,30],[42,2,42,6],[42,10,42,14],[42,18,42,22],[42,26,42,30],[43,2,43,6],[43,10,43,14],[43,18,43,22],[43,26,43,30],[46,2,46,6],[46,10,46,14],[46,18,46,22],[46,26,46,30],[44,2,44,6],[44,10,44,14],[44,18,44,22],[44,26,44,30],[45,2,45,6],[45,10,45,14],[45,18,45,22],[45,26,45,30]]}
[null,null,{"$f":"Ville4","v":"Bagnols Marcoule"},null,null,null,null,null,null,null,5]
[]
[]
[]
[]
[]
[]
[null,null,{"$f":"FDT","v":"12ème French Digital Tour"},null,null,null,null,null,null,null,{"$f":"FDT","v":"12ème French Digital Tour"},null,null,null,null,null,null,null,{"$f":"FDT","v":"12ème French Digital Tour"},null,null,null,null,null,null,null,{"$f":"FDT","v":"12ème French Digital Tour"}]
[]
[]
[]
[]
[]
[]
[]
[null,null,{"$f":"Salon4","v":"20ème salon Bagnols Marcoule"},null,null,null,null,null,null,null,{"$f":"Salon4","v":"20ème salon Bagnols Marcoule"},null,null,null,null,null,null,null,{"$f":"Salon4","v":"20ème salon Bagnols Marcoule"},null,null,null,null,null,null,null,{"$f":"Salon4","v":"20ème salon Bagnols Marcoule"}]
[]
[]
[null,null,"Mention d'honneur",null,null,null,null,null,null,null,"Mention d'honneur",null,null,null,null,null,null,null,"Mention d'honneur",null,null,null,null,null,null,null,"Mention d'honneur"]
[null,null,"Honourable mention",null,null,null,null,null,null,null,"Honourable mention",null,null,null,null,null,null,null,"Honourable mention",null,null,null,null,null,null,null,"Honourable mention"]
[]
[null,null,"décernée à",null,null,null,null,null,null,null,"décernée à",null,null,null,null,null,null,null,"décernée à",null,null,null,null,null,null,null,"décernée à"]
[null,null," award to",null,null,null,null,null,null,null," award to",null,null,null,null,null,null,null," award to",null,null,null,null,null,null,null," award to"]
[]
[null,null,{"$f":"Auteur113","v":"Al-Mushaifri  Abdulla"},null,null,null,null,null,null,null,{"$f":"Auteur114","v":"Luciano  Cardonati"},null,null,null,null,null,null,null,{"$f":"Auteur115","v":"Che  Arnaldo Paulo"},null,null,null,null,null,null,null,{"$f":"Auteur116","v":"Hochhaus  Alexander"}]
[null,null,{"$f":"Pays113","v":"Qatar"},null,null,null,null,null,null,null,{"$f":"Pays114","v":"Italie"},null,null,null,null,null,null,null,{"$f":"Pays115","v":"Hong Kong"},null,null,null,null,null,null,null,{"$f":"Pays116","v":"Allemagne"}]
[]
[null,null,"Pour sa photo",null,null,null,null,null,null,null,"Pour sa photo",null,null,null,null,null,null,null,"Pour sa photo",null,null,null,null,null,null,null,"Pour sa photo"]
[null,null,"For his photo",null,null,null,null,null,null,null,"For his photo",null,null,null,null,null,null,null,"For his photo",null,null,null,null,null,null,null,"For his photo"]
[]
[null,null,{"$f":"Titre113","v":"Shakur"},null,null,null,null,null,null,null,{"$f":"Titre114","v":"Indifferenza"},null,null,null,null,null,null,null,{"$f":"Titre115","v":"Hunting 1"},null,null,null,null,null,null,null,{"$f":"Titre116","v":"Fair"}]
[]
[]
[]
[]
[]
[]
[]
[]
[]
[null,null,{"$f":"IF(Données!$D10=\"\",\"\",Données!$D10)","v":"FIAP : 2017/294-295-296-297"},null,null,null,null,null,null,null,{"$f":"IF(Données!$D10=\"\",\"\",Données!$D10)","v":"FIAP : 2017/294-295-296-297"},null,null,null,null,null,null,null,{"$f":"IF(Données!$D10=\"\",\"\",Données!$D10)","v":"FIAP : 2017/294-295-296-297"},null,null,null,null,null,null,null,{"$f":"IF(Données!$D10=\"\",\"\",Données!$D10)","v":"FIAP : 2017/294-295-296-297"}]
[null,null,{"$f":"IF(Données!$D11=\"\",\"\",Données!$D11)","v":"PSA : 2017/249"},null,null,null,null,null,null,null,{"$f":"IF(Données!$D11=\"\",\"\",Données!$D11)","v":"PSA : 2017/249"},null,null,null,null,null,null,null,{"$f":"IF(Données!$D11=\"\",\"\",Données!$D11)","v":"PSA : 2017/249"},null,null,null,null,null,null,null,{"$f":"IF(Données!$D11=\"\",\"\",Données!$D11)","v":"PSA : 2017/249"}]
[null,null,{"$f":"IF(Données!$D12=\"\",\"\",Données!$D12)","v":"FPF : 2017/020-021-022-023"},null,null,null,null,null,null,null,{"$f":"IF(Données!$D12=\"\",\"\",Données!$D12)","v":"FPF : 2017/020-021-022-023"},null,null,null,null,null,null,null,{"$f":"IF(Données!$D12=\"\",\"\",Données!$D12)","v":"FPF : 2017/020-021-022-023"},null,null,null,null,null,null,null,{"$f":"IF(Données!$D12=\"\",\"\",Données!$D12)","v":"FPF : 2017/020-021-022-023"}]
[null,null,{"$f":"IF(Données!$D13=\"\",\"\",Données!$D13)","v":"RPS : 2017/30-31-32-33"},null,null,null,null,null,null,null,{"$f":"IF(Données!$D13=\"\",\"\",Données!$D13)","v":"RPS : 2017/30-31-32-33"},null,null,null,null,null,null,null,{"$f":"IF(Données!$D13=\"\",\"\",Données!$D13)","v":"RPS : 2017/30-31-32-33"},null,null,null,null,null,null,null,{"$f":"IF(Données!$D13=\"\",\"\",Données!$D13)","v":"RPS : 2017/30-31-32-33"}]
[null,null,{"$f":"IF(Données!$D14=\"\",\"\",Données!$D14)","v":"GPU : License L170086"},null,null,null,null,null,null,null,{"$f":"IF(Données!$D14=\"\",\"\",Données!$D14)","v":"GPU : License L170086"},null,null,null,null,null,null,null,{"$f":"IF(Données!$D14=\"\",\"\",Données!$D14)","v":"GPU : License L170086"},null,null,null,null,null,null,null,{"$f":"IF(Données!$D14=\"\",\"\",Données!$D14)","v":"GPU : License L170086"}]
[null,null,{"$f":"IF(Données!$D15=\"\",\"\",Données!$D15)","v":"IUP 2017/022"},null,null,null,null,null,null,null,{"$f":"IF(Données!$D15=\"\",\"\",Données!$D15)","v":"IUP 2017/022"},null,null,null,null,null,null,null,{"$f":"IF(Données!$D15=\"\",\"\",Données!$D15)","v":"IUP 2017/022"},null,null,null,null,null,null,null,{"$f":"IF(Données!$D15=\"\",\"\",Données!$D15)","v":"IUP 2017/022"}]
[null,null,{"$f":"IF(Données!$D16=\"\",\"\",Données!$D16)","v":""},null,null,null,null,null,null,null,{"$f":"IF(Données!$D16=\"\",\"\",Données!$D16)","v":""},null,null,null,null,null,null,null,{"$f":"IF(Données!$D16=\"\",\"\",Données!$D16)","v":""},null,null,null,null,null,null,null,{"$f":"IF(Données!$D16=\"\",\"\",Données!$D16)","v":""}]

{"sheet":"BAG_Ruban FIAP_5","index":8,"n_rows":47,"n_cols":27,"rows_kept":47,"cut":false,"hidden":false,"merged":[[7,2,8,6],[7,10,8,14],[7,18,8,22],[7,26,8,30],[15,2,16,6],[15,10,16,14],[15,18,16,22],[15,26,16,30],[18,2,18,6],[18,10,18,14],[18,18,18,22],[18,26,18,30],[19,2,19,6],[19,10,19,14],[19,18,19,22],[19,26,19,30],[21,2,21,6],[21,10,21,14],[21,18,21,22],[21,26,21,30],[22,2,22,6],[22,10,22,14],[22,18,22,22],[22,26,22,30],[24,2,24,6],[24,10,24,14],[24,18,24,22],[24,26,24,30],[25,2,25,6],[25,10,25,14],[25,18,25,22],[25,26,25,30],[26,2,26,6],[26,10,26,14],[26,18,26,22],[26,26,26,30],[27,2,27,6],[27,10,27,14],[27,18,27,22],[27,26,27,30],[28,2,28,6],[28,10,28,14],[28,18,28,22],[28,26,28,30],[30,2,30,6],[30,10,30,14],[30,18,30,22],[30,26,30,30],[40,2,40,6],[40,10,40,14],[40,18,40,22],[40,26,40,30],[41,2,41,6],[41,10,41,14],[41,18,41,22],[41,26,41,30],[42,2,42,6],[42,10,42,14],[42,18,42,22],[42,26,42,30],[43,2,43,6],[43,10,43,14],[43,18,43,22],[43,26,43,30],[46,2,46,6],[46,10,46,14],[46,18,46,22],[46,26,46,30],[44,2,44,6],[44,10,44,14],[44,18,44,22],[44,26,44,30],[45,2,45,6],[45,10,45,14],[45,18,45,22],[45,26,45,30]]}
[null,null,{"$f":"Ville4","v":"Bagnols Marcoule"},null,null,null,null,null,null,null,6]
[]
[]
[]
[]
[]
[]
[null,null,{"$f":"FDT","v":"12ème French Digital Tour"},null,null,null,null,null,null,null,{"$f":"FDT","v":"12ème French Digital Tour"},null,null,null,null,null,null,null,{"$f":"FDT","v":"12ème French Digital Tour"},null,null,null,null,null,null,null,{"$f":"FDT","v":"12ème French Digital Tour"}]
[]
[]
[]
[]
[]
[]
[]
[null,null,{"$f":"Salon4","v":"20ème salon Bagnols Marcoule"},null,null,null,null,null,null,null,{"$f":"Salon4","v":"20ème salon Bagnols Marcoule"},null,null,null,null,null,null,null,{"$f":"Salon4","v":"20ème salon Bagnols Marcoule"},null,null,null,null,null,null,null,{"$f":"Salon4","v":"20ème salon Bagnols Marcoule"}]
[]
[]
[null,null,"Mention d'honneur",null,null,null,null,null,null,null,"Mention d'honneur",null,null,null,null,null,null,null,"Mention d'honneur",null,null,null,null,null,null,null,"Mention d'honneur"]
[null,null,"Honourable mention",null,null,null,null,null,null,null,"Honourable mention",null,null,null,null,null,null,null,"Honourable mention",null,null,null,null,null,null,null,"Honourable mention"]
[]
[null,null,"décernée à",null,null,null,null,null,null,null,"décernée à",null,null,null,null,null,null,null,"décernée à",null,null,null,null,null,null,null,"décernée à"]
[null,null," award to",null,null,null,null,null,null,null," award to",null,null,null,null,null,null,null," award to",null,null,null,null,null,null,null," award to"]
[]
[null,null,{"$f":"Auteur117","v":"Feng  Tracy Shuxi"},null,null,null,null,null,null,null,{"$f":"Auteur118","v":"Van Balken  Marcel"},null,null,null,null,null,null,null,{"$f":"Auteur119","v":"Yang  Guomei"},null,null,null,null,null,null,null,{"$f":"Auteur120","v":"Yuan  Lin"}]
[null,null,{"$f":"Pays117","v":"Etats Unis"},null,null,null,null,null,null,null,{"$f":"Pays118","v":"Pays-Bas"},null,null,null,null,null,null,null,{"$f":"Pays119","v":"Chine"},null,null,null,null,null,null,null,{"$f":"Pays120","v":"Chine"}]
[]
[null,null,"Pour sa photo",null,null,null,null,null,null,null,"Pour sa photo",null,null,null,null,null,null,null,"Pour sa photo",null,null,null,null,null,null,null,"Pour sa photo"]
[null,null,"For his photo",null,null,null,null,null,null,null,"For his photo",null,null,null,null,null,null,null,"For his photo",null,null,null,null,null,null,null,"For his photo"]
[]
[null,null,{"$f":"Titre117","v":"Horse racing the frontier"},null,null,null,null,null,null,null,{"$f":"Titre118","v":"Bikeman"},null,null,null,null,null,null,null,{"$f":"Titre119","v":"Jungle in may"},null,null,null,null,null,null,null,{"$f":"Titre120","v":"Belivers out of temple"}]
[]
[]
[]
[]
[]
[]
[]
[]
[]
[null,null,{"$f":"IF(Données!$D10=\"\",\"\",Données!$D10)","v":"FIAP : 2017/294-295-296-297"},null,null,null,null,null,null,null,{"$f":"IF(Données!$D10=\"\",\"\",Données!$D10)","v":"FIAP : 2017/294-295-296-297"},null,null,null,null,null,null,null,{"$f":"IF(Données!$D10=\"\",\"\",Données!$D10)","v":"FIAP : 2017/294-295-296-297"},null,null,null,null,null,null,null,{"$f":"IF(Données!$D10=\"\",\"\",Données!$D10)","v":"FIAP : 2017/294-295-296-297"}]
[null,null,{"$f":"IF(Données!$D11=\"\",\"\",Données!$D11)","v":"PSA : 2017/249"},null,null,null,null,null,null,null,{"$f":"IF(Données!$D11=\"\",\"\",Données!$D11)","v":"PSA : 2017/249"},null,null,null,null,null,null,null,{"$f":"IF(Données!$D11=\"\",\"\",Données!$D11)","v":"PSA : 2017/249"},null,null,null,null,null,null,null,{"$f":"IF(Données!$D11=\"\",\"\",Données!$D11)","v":"PSA : 2017/249"}]
[null,null,{"$f":"IF(Données!$D12=\"\",\"\",Données!$D12)","v":"FPF : 2017/020-021-022-023"},null,null,null,null,null,null,null,{"$f":"IF(Données!$D12=\"\",\"\",Données!$D12)","v":"FPF : 2017/020-021-022-023"},null,null,null,null,null,null,null,{"$f":"IF(Données!$D12=\"\",\"\",Données!$D12)","v":"FPF : 2017/020-021-022-023"},null,null,null,null,null,null,null,{"$f":"IF(Données!$D12=\"\",\"\",Données!$D12)","v":"FPF : 2017/020-021-022-023"}]
[null,null,{"$f":"IF(Données!$D13=\"\",\"\",Données!$D13)","v":"RPS : 2017/30-31-32-33"},null,null,null,null,null,null,null,{"$f":"IF(Données!$D13=\"\",\"\",Données!$D13)","v":"RPS : 2017/30-31-32-33"},null,null,null,null,null,null,null,{"$f":"IF(Données!$D13=\"\",\"\",Données!$D13)","v":"RPS : 2017/30-31-32-33"},null,null,null,null,null,null,null,{"$f":"IF(Données!$D13=\"\",\"\",Données!$D13)","v":"RPS : 2017/30-31-32-33"}]
[null,null,{"$f":"IF(Données!$D14=\"\",\"\",Données!$D14)","v":"GPU : License L170086"},null,null,null,null,null,null,null,{"$f":"IF(Données!$D14=\"\",\"\",Données!$D14)","v":"GPU : License L170086"},null,null,null,null,null,null,null,{"$f":"IF(Données!$D14=\"\",\"\",Données!$D14)","v":"GPU : License L170086"},null,null,null,null,null,null,null,{"$f":"IF(Données!$D14=\"\",\"\",Données!$D14)","v":"GPU : License L170086"}]
[null,null,{"$f":"IF(Données!$D15=\"\",\"\",Données!$D15)","v":"IUP 2017/022"},null,null,null,null,null,null,null,{"$f":"IF(Données!$D15=\"\",\"\",Données!$D15)","v":"IUP 2017/022"},null,null,null,null,null,null,null,{"$f":"IF(Données!$D15=\"\",\"\",Données!$D15)","v":"IUP 2017/022"},null,null,null,null,null,null,null,{"$f":"IF(Données!$D15=\"\",\"\",Données!$D15)","v":"IUP 2017/022"}]
[null,null,{"$f":"IF(Données!$D16=\"\",\"\",Données!$D16)","v":""},null,null,null,null,null,null,null,{"$f":"IF(Données!$D16=\"\",\"\",Données!$D16)","v":""},null,null,null,null,null,null,null,{"$f":"IF(Données!$D16=\"\",\"\",Données!$D16)","v":""},null,null,null,null,null,null,null,{"$f":"IF(Données!$D16=\"\",\"\",Données!$D16)","v":""}]

{"sheet":"BAG_Ruban FIAP_6","index":9,"n_rows":47,"n_cols":27,"rows_kept":47,"cut":false,"hidden":false,"merged":[[7,2,8,6],[7,10,8,14],[7,18,8,22],[7,26,8,30],[15,2,16,6],[15,10,16,14],[15,18,16,22],[15,26,16,30],[18,2,18,6],[18,10,18,14],[18,18,18,22],[18,26,18,30],[19,2,19,6],[19,10,19,14],[19,18,19,22],[19,26,19,30],[21,2,21,6],[21,10,21,14],[21,18,21,22],[21,26,21,30],[22,2,22,6],[22,10,22,14],[22,18,22,22],[22,26,22,30],[24,2,24,6],[24,10,24,14],[24,18,24,22],[24,26,24,30],[25,2,25,6],[25,10,25,14],[25,18,25,22],[25,26,25,30],[26,2,26,6],[26,10,26,14],[26,18,26,22],[26,26,26,30],[27,2,27,6],[27,10,27,14],[27,18,27,22],[27,26,27,30],[28,2,28,6],[28,10,28,14],[28,18,28,22],[28,26,28,30],[30,2,30,6],[30,10,30,14],[30,18,30,22],[30,26,30,30],[40,2,40,6],[40,10,40,14],[40,18,40,22],[40,26,40,30],[41,2,41,6],[41,10,41,14],[41,18,41,22],[41,26,41,30],[42,2,42,6],[42,10,42,14],[42,18,42,22],[42,26,42,30],[43,2,43,6],[43,10,43,14],[43,18,43,22],[43,26,43,30],[46,2,46,6],[46,10,46,14],[46,18,46,22],[46,26,46,30],[44,2,44,6],[44,10,44,14],[44,18,44,22],[44,26,44,30],[45,2,45,6],[45,10,45,14],[45,18,45,22],[45,26,45,30]]}
[null,null,{"$f":"Ville4","v":"Bagnols Marcoule"},null,null,null,null,null,null,null,7]
[]
[]
[]
[]
[]
[]
[null,null,{"$f":"FDT","v":"12ème French Digital Tour"},null,null,null,null,null,null,null,{"$f":"FDT","v":"12ème French Digital Tour"},null,null,null,null,null,null,null,{"$f":"FDT","v":"12ème French Digital Tour"},null,null,null,null,null,null,null,{"$f":"FDT","v":"12ème French Digital Tour"}]
[]
[]
[]
[]
[]
[]
[]
[null,null,{"$f":"Salon4","v":"20ème salon Bagnols Marcoule"},null,null,null,null,null,null,null,{"$f":"Salon4","v":"20ème salon Bagnols Marcoule"},null,null,null,null,null,null,null,{"$f":"Salon4","v":"20ème salon Bagnols Marcoule"},null,null,null,null,null,null,null,{"$f":"Salon4","v":"20ème salon Bagnols Marcoule"}]
[]
[]
[null,null,"Mention d'honneur",null,null,null,null,null,null,null,"Mention d'honneur",null,null,null,null,null,null,null,"Mention d'honneur",null,null,null,null,null,null,null,"Mention d'honneur"]
[null,null,"Honourable mention",null,null,null,null,null,null,null,"Honourable mention",null,null,null,null,null,null,null,"Honourable mention",null,null,null,null,null,null,null,"Honourable mention"]
[]
[null,null,"décernée à",null,null,null,null,null,null,null,"décernée à",null,null,null,null,null,null,null,"décernée à",null,null,null,null,null,null,null,"décernée à"]
[null,null," award to",null,null,null,null,null,null,null," award to",null,null,null,null,null,null,null," award to",null,null,null,null,null,null,null," award to"]
[]
[null,null,{"$f":"Auteur121","v":"King  Fred"},null,null,null,null,null,null,null,{"$f":"Auteur122","v":"Almasoud  Naif Ahmed"},null,null,null,null,null,null,null,{"$f":"Auteur123","v":"Cserto  Istvan"},null,null,null,null,null,null,null,{"$f":"Auteur124","v":"Boyle  Judy"}]
[null,null,{"$f":"Pays121","v":"Australie"},null,null,null,null,null,null,null,{"$f":"Pays122","v":"Arabie saoudite"},null,null,null,null,null,null,null,{"$f":"Pays123","v":"Hongrie"},null,null,null,null,null,null,null,{"$f":"Pays124","v":"Royaume-Uni"}]
[]
[null,null,"Pour sa photo",null,null,null,null,null,null,null,"Pour sa photo",null,null,null,null,null,null,null,"Pour sa photo",null,null,null,null,null,null,null,"Pour sa photo"]
[null,null,"For his photo",null,null,null,null,null,null,null,"For his photo",null,null,null,null,null,null,null,"For his photo",null,null,null,null,null,null,null,"For his photo"]
[]
[null,null,{"$f":"Titre121","v":"Big friendly giant"},null,null,null,null,null,null,null,{"$f":"Titre122","v":"Supplication and hope"},null,null,null,null,null,null,null,{"$f":"Titre123","v":"Feeding time"},null,null,null,null,null,null,null,{"$f":"Titre124","v":"Ballet shoes"}]
[]
[]
[]
[]
[]
[]
[]
[]
[]
[null,null,{"$f":"IF(Données!$D10=\"\",\"\",Données!$D10)","v":"FIAP : 2017/294-295-296-297"},null,null,null,null,null,null,null,{"$f":"IF(Données!$D10=\"\",\"\",Données!$D10)","v":"FIAP : 2017/294-295-296-297"},null,null,null,null,null,null,null,{"$f":"IF(Données!$D10=\"\",\"\",Données!$D10)","v":"FIAP : 2017/294-295-296-297"},null,null,null,null,null,null,null,{"$f":"IF(Données!$D10=\"\",\"\",Données!$D10)","v":"FIAP : 2017/294-295-296-297"}]
[null,null,{"$f":"IF(Données!$D11=\"\",\"\",Données!$D11)","v":"PSA : 2017/249"},null,null,null,null,null,null,null,{"$f":"IF(Données!$D11=\"\",\"\",Données!$D11)","v":"PSA : 2017/249"},null,null,null,null,null,null,null,{"$f":"IF(Données!$D11=\"\",\"\",Données!$D11)","v":"PSA : 2017/249"},null,null,null,null,null,null,null,{"$f":"IF(Données!$D11=\"\",\"\",Données!$D11)","v":"PSA : 2017/249"}]
[null,null,{"$f":"IF(Données!$D12=\"\",\"\",Données!$D12)","v":"FPF : 2017/020-021-022-023"},null,null,null,null,null,null,null,{"$f":"IF(Données!$D12=\"\",\"\",Données!$D12)","v":"FPF : 2017/020-021-022-023"},null,null,null,null,null,null,null,{"$f":"IF(Données!$D12=\"\",\"\",Données!$D12)","v":"FPF : 2017/020-021-022-023"},null,null,null,null,null,null,null,{"$f":"IF(Données!$D12=\"\",\"\",Données!$D12)","v":"FPF : 2017/020-021-022-023"}]
[null,null,{"$f":"IF(Données!$D13=\"\",\"\",Données!$D13)","v":"RPS : 2017/30-31-32-33"},null,null,null,null,null,null,null,{"$f":"IF(Données!$D13=\"\",\"\",Données!$D13)","v":"RPS : 2017/30-31-32-33"},null,null,null,null,null,null,null,{"$f":"IF(Données!$D13=\"\",\"\",Données!$D13)","v":"RPS : 2017/30-31-32-33"},null,null,null,null,null,null,null,{"$f":"IF(Données!$D13=\"\",\"\",Données!$D13)","v":"RPS : 2017/30-31-32-33"}]
[null,null,{"$f":"IF(Données!$D14=\"\",\"\",Données!$D14)","v":"GPU : License L170086"},null,null,null,null,null,null,null,{"$f":"IF(Données!$D14=\"\",\"\",Données!$D14)","v":"GPU : License L170086"},null,null,null,null,null,null,null,{"$f":"IF(Données!$D14=\"\",\"\",Données!$D14)","v":"GPU : License L170086"},null,null,null,null,null,null,null,{"$f":"IF(Données!$D14=\"\",\"\",Données!$D14)","v":"GPU : License L170086"}]
[null,null,{"$f":"IF(Données!$D15=\"\",\"\",Données!$D15)","v":"IUP 2017/022"},null,null,null,null,null,null,null,{"$f":"IF(Données!$D15=\"\",\"\",Données!$D15)","v":"IUP 2017/022"},null,null,null,null,null,null,null,{"$f":"IF(Données!$D15=\"\",\"\",Données!$D15)","v":"IUP 2017/022"},null,null,null,null,null,null,null,{"$f":"IF(Données!$D15=\"\",\"\",Données!$D15)","v":"IUP 2017/022"}]
[null,null,{"$f":"IF(Données!$D16=\"\",\"\",Données!$D16)","v":""},null,null,null,null,null,null,null,{"$f":"IF(Données!$D16=\"\",\"\",Données!$D16)","v":""},null,null,null,null,null,null,null,{"$f":"IF(Données!$D16=\"\",\"\",Données!$D16)","v":""},null,null,null,null,null,null,null,{"$f":"IF(Données!$D16=\"\",\"\",Données!$D16)","v":""}]

{"sheet":"BAG_Ruban FIAP_7","index":10,"n_rows":47,"n_cols":27,"rows_kept":47,"cut":false,"hidden":false,"merged":[[7,2,8,6],[7,10,8,14],[7,18,8,22],[7,26,8,30],[15,2,16,6],[15,10,16,14],[15,18,16,22],[15,26,16,30],[18,2,18,6],[18,10,18,14],[18,18,18,22],[18,26,18,30],[19,2,19,6],[19,10,19,14],[19,18,19,22],[19,26,19,30],[21,2,21,6],[21,10,21,14],[21,18,21,22],[21,26,21,30],[22,2,22,6],[22,10,22,14],[22,18,22,22],[22,26,22,30],[24,2,24,6],[24,10,24,14],[24,18,24,22],[24,26,24,30],[25,2,25,6],[25,10,25,14],[25,18,25,22],[25,26,25,30],[26,2,26,6],[26,10,26,14],[26,18,26,22],[26,26,26,30],[27,2,27,6],[27,10,27,14],[27,18,27,22],[27,26,27,30],[28,2,28,6],[28,10,28,14],[28,18,28,22],[28,26,28,30],[30,2,30,6],[30,10,30,14],[30,18,30,22],[30,26,30,30],[40,2,40,6],[40,10,40,14],[40,18,40,22],[40,26,40,30],[41,2,41,6],[41,10,41,14],[41,18,41,22],[41,26,41,30],[42,2,42,6],[42,10,42,14],[42,18,42,22],[42,26,42,30],[43,2,43,6],[43,10,43,14],[43,18,43,22],[43,26,43,30],[46,2,46,6],[46,10,46,14],[46,18,46,22],[46,26,46,30],[44,2,44,6],[44,10,44,14],[44,18,44,22],[44,26,44,30],[45,2,45,6],[45,10,45,14],[45,18,45,22],[45,26,45,30]]}
[null,null,{"$f":"Ville4","v":"Bagnols Marcoule"},null,null,null,null,null,null,null,8]
[]
[]
[]
[]
[]
[]
[null,null,{"$f":"FDT","v":"12ème French Digital Tour"},null,null,null,null,null,null,null,{"$f":"FDT","v":"12ème French Digital Tour"},null,null,null,null,null,null,null,{"$f":"FDT","v":"12ème French Digital Tour"},null,null,null,null,null,null,null,{"$f":"FDT","v":"12ème French Digital Tour"}]
[]
[]
[]
[]
[]
[]
[]
[null,null,{"$f":"Salon4","v":"20ème salon Bagnols Marcoule"},null,null,null,null,null,null,null,{"$f":"Salon4","v":"20ème salon Bagnols Marcoule"},null,null,null,null,null,null,null,{"$f":"Salon4","v":"20ème salon Bagnols Marcoule"},null,null,null,null,null,null,null,{"$f":"Salon4","v":"20ème salon Bagnols Marcoule"}]
[]
[]
[null,null,"Mention d'honneur",null,null,null,null,null,null,null,"Mention d'honneur",null,null,null,null,null,null,null,"Mention d'honneur",null,null,null,null,null,null,null,"Mention d'honneur"]
[null,null,"Honourable mention",null,null,null,null,null,null,null,"Honourable mention",null,null,null,null,null,null,null,"Honourable mention",null,null,null,null,null,null,null,"Honourable mention"]
[]
[null,null,"décernée à",null,null,null,null,null,null,null,"décernée à",null,null,null,null,null,null,null,"décernée à",null,null,null,null,null,null,null,"décernée à"]
[null,null," award to",null,null,null,null,null,null,null," award to",null,null,null,null,null,null,null," award to",null,null,null,null,null,null,null," award to"]
[]
[null,null,{"$f":"Auteur125","v":"King  Fred"},null,null,null,null,null,null,null,{"$f":"Auteur126","v":"Auteur126"},null,null,null,null,null,null,null,{"$f":"Auteur127","v":"Auteur127"},null,null,null,null,null,null,null,{"$f":"Auteur128","v":"Auteur128"}]
[null,null,{"$f":"Pays125","v":"Australie"},null,null,null,null,null,null,null,{"$f":"Pays126","v":"Pays126"},null,null,null,null,null,null,null,{"$f":"Pays127","v":"Pays127"},null,null,null,null,null,null,null,{"$f":"Pays128","v":"Pays128"}]
[]
[null,null,"Pour sa photo",null,null,null,null,null,null,null,"Pour sa photo",null,null,null,null,null,null,null,"Pour sa photo",null,null,null,null,null,null,null,"Pour sa photo"]
[null,null,"For his photo",null,null,null,null,null,null,null,"For his photo",null,null,null,null,null,null,null,"For his photo",null,null,null,null,null,null,null,"For his photo"]
[]
[null,null,{"$f":"Titre125","v":"Car fire 2"},null,null,null,null,null,null,null,{"$f":"Titre126","v":"Titre126"},null,null,null,null,null,null,null,{"$f":"Titre127","v":"Titre127"},null,null,null,null,null,null,null,{"$f":"Titre128","v":"Titre128"}]
[]
[]
[]
[]
[]
[]
[]
[]
[]
[null,null,{"$f":"IF(Données!$D10=\"\",\"\",Données!$D10)","v":"FIAP : 2017/294-295-296-297"},null,null,null,null,null,null,null,{"$f":"IF(Données!$D10=\"\",\"\",Données!$D10)","v":"FIAP : 2017/294-295-296-297"},null,null,null,null,null,null,null,{"$f":"IF(Données!$D10=\"\",\"\",Données!$D10)","v":"FIAP : 2017/294-295-296-297"},null,null,null,null,null,null,null,{"$f":"IF(Données!$D10=\"\",\"\",Données!$D10)","v":"FIAP : 2017/294-295-296-297"}]
[null,null,{"$f":"IF(Données!$D11=\"\",\"\",Données!$D11)","v":"PSA : 2017/249"},null,null,null,null,null,null,null,{"$f":"IF(Données!$D11=\"\",\"\",Données!$D11)","v":"PSA : 2017/249"},null,null,null,null,null,null,null,{"$f":"IF(Données!$D11=\"\",\"\",Données!$D11)","v":"PSA : 2017/249"},null,null,null,null,null,null,null,{"$f":"IF(Données!$D11=\"\",\"\",Données!$D11)","v":"PSA : 2017/249"}]
[null,null,{"$f":"IF(Données!$D12=\"\",\"\",Données!$D12)","v":"FPF : 2017/020-021-022-023"},null,null,null,null,null,null,null,{"$f":"IF(Données!$D12=\"\",\"\",Données!$D12)","v":"FPF : 2017/020-021-022-023"},null,null,null,null,null,null,null,{"$f":"IF(Données!$D12=\"\",\"\",Données!$D12)","v":"FPF : 2017/020-021-022-023"},null,null,null,null,null,null,null,{"$f":"IF(Données!$D12=\"\",\"\",Données!$D12)","v":"FPF : 2017/020-021-022-023"}]
[null,null,{"$f":"IF(Données!$D13=\"\",\"\",Données!$D13)","v":"RPS : 2017/30-31-32-33"},null,null,null,null,null,null,null,{"$f":"IF(Données!$D13=\"\",\"\",Données!$D13)","v":"RPS : 2017/30-31-32-33"},null,null,null,null,null,null,null,{"$f":"IF(Données!$D13=\"\",\"\",Données!$D13)","v":"RPS : 2017/30-31-32-33"},null,null,null,null,null,null,null,{"$f":"IF(Données!$D13=\"\",\"\",Données!$D13)","v":"RPS : 2017/30-31-32-33"}]
[null,null,{"$f":"IF(Données!$D14=\"\",\"\",Données!$D14)","v":"GPU : License L170086"},null,null,null,null,null,null,null,{"$f":"IF(Données!$D14=\"\",\"\",Données!$D14)","v":"GPU : License L170086"},null,null,null,null,null,null,null,{"$f":"IF(Données!$D14=\"\",\"\",Données!$D14)","v":"GPU : License L170086"},null,null,null,null,null,null,null,{"$f":"IF(Données!$D14=\"\",\"\",Données!$D14)","v":"GPU : License L170086"}]
[null,null,{"$f":"IF(Données!$D15=\"\",\"\",Données!$D15)","v":"IUP 2017/022"},null,null,null,null,null,null,null,{"$f":"IF(Données!$D15=\"\",\"\",Données!$D15)","v":"IUP 2017/022"},null,null,null,null,null,null,null,{"$f":"IF(Données!$D15=\"\",\"\",Données!$D15)","v":"IUP 2017/022"},null,null,null,null,null,null,null,{"$f":"IF(Données!$D15=\"\",\"\",Données!$D15)","v":"IUP 2017/022"}]
[null,null,{"$f":"IF(Données!$D16=\"\",\"\",Données!$D16)","v":""},null,null,null,null,null,null,null,{"$f":"IF(Données!$D16=\"\",\"\",Données!$D16)","v":""},null,null,null,null,null,null,null,{"$f":"IF(Données!$D16=\"\",\"\",Données!$D16)","v":""},null,null,null,null,null,null,null,{"$f":"IF(Données!$D16=\"\",\"\",Données!$D16)","v":""}]

{"sheet":"BAG_RubanPSA_GPU_IUP_1","index":11,"n_rows":89,"n_cols":10,"rows_kept":89,"cut":false,"hidden":false,"merged":[[1,0,89,0]]}
[]
[{"$f":"Ville4","v":"Bagnols Marcoule"}]
[]
[]
[]
[]
[]
[null,{"$f":"FDT","v":"12ème French Digital Tour"},null,{"$f":"FDT","v":"12ème French Digital Tour"},null,{"$f":"FDT","v":"12ème French Digital Tour"},null,{"$f":"FDT","v":"12ème French Digital Tour"},null,{"$f":"FDT","v":"12ème French Digital Tour"}]
[]
[null,{"$f":"Titre301","v":"Dia nublado"},null,{"$f":"Titre302","v":"Intimacy"},null,{"$f":"Titre303","v":"The passenger"},null,{"$f":"Titre304","v":"To the market"},null,{"$f":"Titre305","v":"The great migration of wildebeest"}]
[]
[null,{"$f":"Auteur301","v":"Oscar  Saraiva"},null,{"$f":"Auteur302","v":"Feng  Tracy Shuxi"},null,{"$f":"Auteur303","v":"Tallier  Frédéric"},null,{"$f":"Auteur304","v":"Virgilio  Bardossi"},null,{"$f":"Auteur305","v":"Agapov  Sergey"}]
[]
[null,{"$f":"Pays301","v":"Portugal"},null,{"$f":"Pays302","v":"Etats Unis"},null,{"$f":"Pays303","v":"Belgique"},null,{"$f":"Pays304","v":"Italie"},null,{"$f":"Pays305","v":"Russie"}]
[]
[]
[]
[]
[]
[]
[]
[]
[null,{"$f":"FDT","v":"12ème French Digital Tour"},null,{"$f":"FDT","v":"12ème French Digital Tour"},null,{"$f":"FDT","v":"12ème French Digital Tour"},null,{"$f":"FDT","v":"12ème French Digital Tour"},null,{"$f":"FDT","v":"12ème French Digital Tour"}]
[]
[null,{"$f":"Titre306","v":"Early morning"},null,{"$f":"Titre307","v":"Fawn breasted brilliant hummingbird"},null,{"$f":"Titre308","v":"It's time to go"},null,{"$f":"Titre309","v":"Happy little monk 1"},null,{"$f":"Titre310","v":"Go home"}]
[]
[null,{"$f":"Auteur306","v":"Giuseppe  Tomelleri"},null,{"$f":"Auteur307","v":"Hearn  Tim"},null,{"$f":"Auteur308","v":"Nhu  Pham Minh Thuyen"},null,{"$f":"Auteur309","v":"Che  Arnaldo Paulo"},null,{"$f":"Auteur310","v":"Hung  Nguyen Canh"}]
[]
[null,{"$f":"Pays306","v":"Italie"},null,{"$f":"Pays307","v":"Royaume-Uni"},null,{"$f":"Pays308","v":"France"},null,{"$f":"Pays309","v":"Hong Kong"},null,{"$f":"Pays310","v":"Viet Nam"}]
[]
[]
[]
[]
[]
[]
[]
[]
[null,{"$f":"FDT","v":"12ème French Digital Tour"},null,{"$f":"FDT","v":"12ème French Digital Tour"},null,{"$f":"FDT","v":"12ème French Digital Tour"},null,{"$f":"FDT","v":"12ème French Digital Tour"},null,{"$f":"FDT","v":"12ème French Digital Tour"}]
[]
[null,{"$f":"Titre311","v":"Nightfull 2"},null,{"$f":"Titre312","v":"Graffiti alley"},null,{"$f":"Titre313","v":"Boxerin"},null,{"$f":"Titre314","v":"Two baby egrets talking"},null,{"$f":"Titre315","v":"Mother and daughter"}]
[]
[null,{"$f":"Auteur311","v":"Feng  Jiashun"},null,{"$f":"Auteur312","v":"Hyett  David"},null,{"$f":"Auteur313","v":"Romanowski  Jan"},null,{"$f":"Auteur314","v":"Feng  Tracy Shuxi"},null,{"$f":"Auteur315","v":"Chen  Lanfeng"}]
[]
[null,{"$f":"Pays311","v":"Chine"},null,{"$f":"Pays312","v":"Royaume-Uni"},null,{"$f":"Pays313","v":"Allemagne"},null,{"$f":"Pays314","v":"Etats Unis"},null,{"$f":"Pays315","v":"Chine"}]
[]
[]
[]
[]
[]
[]
[]
[]
[null,{"$f":"FDT","v":"12ème French Digital Tour"},null,{"$f":"FDT","v":"12ème French Digital Tour"},null,{"$f":"FDT","v":"12ème French Digital Tour"},null,{"$f":"FDT","v":"12ème French Digital Tour"},null,{"$f":"FDT","v":"12ème French Digital Tour"}]
[]
[null,{"$f":"Titre316","v":"Titre316"},null,{"$f":"Titre317","v":"Titre317"},null,{"$f":"Titre318","v":"Titre318"},null,{"$f":"Titre319","v":"Titre319"},null,{"$f":"Titre320","v":"Titre320"}]
[]
[null,{"$f":"Auteur316","v":"Auteur316"},null,{"$f":"Auteur317","v":"Auteur317"},null,{"$f":"Auteur318","v":"Auteur318"},null,{"$f":"Auteur319","v":"Auteur319"},null,{"$f":"Auteur320","v":"Auteur320"}]
[]
[null,{"$f":"Pays316","v":"Pays316"},null,{"$f":"Pays317","v":"Pays317"},null,{"$f":"Pays318","v":"Pays318"},null,{"$f":"Pays319","v":"Pays319"},null,{"$f":"Pays320","v":"Pays320"}]
[]
[]
[]
[]
[]
[]
[]
[]
[null,{"$f":"FDT","v":"12ème French Digital Tour"},null,{"$f":"FDT","v":"12ème French Digital Tour"},null,{"$f":"FDT","v":"12ème French Digital Tour"},null,{"$f":"FDT","v":"12ème French Digital Tour"},null,{"$f":"FDT","v":"12ème French Digital Tour"}]
[]
[null,{"$f":"Titre321","v":"Titre321"},null,{"$f":"Titre322","v":"Titre322"},null,{"$f":"Titre323","v":"Titre323"},null,{"$f":"Titre324","v":"Titre324"},null,{"$f":"Titre325","v":"Titre325"}]
[]
[null,{"$f":"Auteur321","v":"Auteur321"},null,{"$f":"Auteur322","v":"Auteur322"},null,{"$f":"Auteur323","v":"Auteur323"},null,{"$f":"Auteur324","v":"Auteur324"},null,{"$f":"Auteur325","v":"Auteur325"}]
[]
[null,{"$f":"Pays321","v":"Pays321"},null,{"$f":"Pays322","v":"Pays322"},null,{"$f":"Pays323","v":"Pays323"},null,{"$f":"Pays324","v":"Pays324"},null,{"$f":"Pays325","v":"Pays325"}]
[]
[]
[]
[]
[]
[]
[]
[]
[null,{"$f":"FDT","v":"12ème French Digital Tour"},null,{"$f":"FDT","v":"12ème French Digital Tour"},null,{"$f":"FDT","v":"12ème French Digital Tour"},null,{"$f":"FDT","v":"12ème French Digital Tour"},null,{"$f":"FDT","v":"12ème French Digital Tour"}]
[]
[null,{"$f":"Titre326","v":"Titre326"},null,{"$f":"Titre327","v":"Titre327"},null,{"$f":"Titre328","v":"Titre328"},null,{"$f":"Titre329","v":"Titre329"},null,{"$f":"Titre330","v":"Titre330"}]
[]
[null,{"$f":"Auteur326","v":"Auteur326"},null,{"$f":"Auteur327","v":"Auteur327"},null,{"$f":"Auteur328","v":"Auteur328"},null,{"$f":"Auteur329","v":"Auteur329"},null,{"$f":"Auteur330","v":"Auteur330"}]
[]
[null,{"$f":"Pays326","v":"Pays326"},null,{"$f":"Pays327","v":"Pays327"},null,{"$f":"Pays328","v":"Pays328"},null,{"$f":"Pays329","v":"Pays329"},null,{"$f":"Pays330","v":"Pays330"}]

{"sheet":"BAG_RubanPSA_GPU_IUP_2","index":12,"n_rows":89,"n_cols":10,"rows_kept":89,"cut":false,"hidden":false,"merged":[[1,0,89,0]]}
[]
[{"$f":"Ville4","v":"Bagnols Marcoule"}]
[]
[]
[]
[]
[]
[null,{"$f":"FDT","v":"12ème French Digital Tour"},null,{"$f":"FDT","v":"12ème French Digital Tour"},null,{"$f":"FDT","v":"12ème French Digital Tour"},null,{"$f":"FDT","v":"12ème French Digital Tour"},null,{"$f":"FDT","v":"12ème French Digital Tour"}]
[]
[null,{"$f":"Titre331","v":"Titre331"},null,{"$f":"Titre332","v":"Titre332"},null,{"$f":"Titre333","v":"Titre333"},null,{"$f":"Titre334","v":"Titre334"},null,{"$f":"Titre335","v":"Titre335"}]
[]
[null,{"$f":"Auteur331","v":"Auteur331"},null,{"$f":"Auteur332","v":"Auteur332"},null,{"$f":"Auteur333","v":"Auteur333"},null,{"$f":"Auteur334","v":"Auteur334"},null,{"$f":"Auteur335","v":"Auteur335"}]
[]
[null,{"$f":"Pays331","v":"Pays331"},null,{"$f":"Pays332","v":"Pays332"},null,{"$f":"Pays333","v":"Pays333"},null,{"$f":"Pays334","v":"Pays334"},null,{"$f":"Pays335","v":"Pays335"}]
[]
[]
[]
[]
[]
[]
[]
[]
[null,{"$f":"FDT","v":"12ème French Digital Tour"},null,{"$f":"FDT","v":"12ème French Digital Tour"},null,{"$f":"FDT","v":"12ème French Digital Tour"},null,{"$f":"FDT","v":"12ème French Digital Tour"},null,{"$f":"FDT","v":"12ème French Digital Tour"}]
[]
[null,{"$f":"Titre336","v":"Titre336"},null,{"$f":"Titre337","v":"Titre337"},null,{"$f":"Titre338","v":"Titre338"},null,{"$f":"Titre339","v":"Titre339"},null,{"$f":"Titre301","v":"Dia nublado"}]
[]
[null,{"$f":"Auteur336","v":"Auteur336"},null,{"$f":"Auteur337","v":"Auteur337"},null,{"$f":"Auteur338","v":"Auteur338"},null,{"$f":"Auteur339","v":"Auteur339"},null,{"$f":"Auteur301","v":"Oscar  Saraiva"}]
[]
[null,{"$f":"Pays336","v":"Pays336"},null,{"$f":"Pays337","v":"Pays337"},null,{"$f":"Pays338","v":"Pays338"},null,{"$f":"Pays339","v":"Pays339"},null,{"$f":"Pays301","v":"Portugal"}]
[]
[]
[]
[]
[]
[]
[]
[]
[null,{"$f":"FDT","v":"12ème French Digital Tour"},null,{"$f":"FDT","v":"12ème French Digital Tour"},null,{"$f":"FDT","v":"12ème French Digital Tour"},null,{"$f":"FDT","v":"12ème French Digital Tour"},null,{"$f":"FDT","v":"12ème French Digital Tour"}]
[]
[null,{"$f":"Titre301","v":"Dia nublado"},null,{"$f":"Titre301","v":"Dia nublado"},null,{"$f":"Titre301","v":"Dia nublado"},null,{"$f":"Titre301","v":"Dia nublado"},null,{"$f":"Titre340","v":"Titre340"}]
[]
[null,{"$f":"Auteur301","v":"Oscar  Saraiva"},null,{"$f":"Auteur301","v":"Oscar  Saraiva"},null,{"$f":"Auteur301","v":"Oscar  Saraiva"},null,{"$f":"Auteur301","v":"Oscar  Saraiva"},null,{"$f":"Auteur340","v":"Auteur340"}]
[]
[null,{"$f":"Pays301","v":"Portugal"},null,{"$f":"Pays301","v":"Portugal"},null,{"$f":"Pays301","v":"Portugal"},null,{"$f":"Pays301","v":"Portugal"},null,{"$f":"Pays340","v":"Pays340"}]
[]
[]
[]
[]
[]
[]
[]
[]
[null,{"$f":"FDT","v":"12ème French Digital Tour"},null,{"$f":"FDT","v":"12ème French Digital Tour"},null,{"$f":"FDT","v":"12ème French Digital Tour"},null,{"$f":"FDT","v":"12ème French Digital Tour"},null,{"$f":"FDT","v":"12ème French Digital Tour"}]
[]
[null,{"$f":"Titre341","v":"Titre341"},null,{"$f":"Titre342","v":"Titre342"},null,{"$f":"Titre343","v":"Titre343"},null,{"$f":"Titre344","v":"Titre344"},null,{"$f":"Titre345","v":"Titre345"}]
[]
[null,{"$f":"Auteur341","v":"Auteur341"},null,{"$f":"Auteur342","v":"Auteur342"},null,{"$f":"Auteur343","v":"Auteur343"},null,{"$f":"Auteur344","v":"Auteur344"},null,{"$f":"Auteur345","v":"Auteur345"}]
[]
[null,{"$f":"Pays341","v":"Pays341"},null,{"$f":"Pays342","v":"Pays342"},null,{"$f":"Pays343","v":"Pays343"},null,{"$f":"Pays344","v":"Pays344"},null,{"$f":"Pays345","v":"Pays345"}]
[]
[]
[]
[]
[]
[]
[]
[]
[null,{"$f":"FDT","v":"12ème French Digital Tour"},null,{"$f":"FDT","v":"12ème French Digital Tour"},null,{"$f":"FDT","v":"12ème French Digital Tour"},null,{"$f":"FDT","v":"12ème French Digital Tour"},null,{"$f":"FDT","v":"12ème French Digital Tour"}]
[]
[null,{"$f":"Titre346","v":"Titre346"},null,{"$f":"Titre347","v":"Titre347"},null,{"$f":"Titre348","v":"Titre348"},null,{"$f":"Titre349","v":"Titre349"},null,{"$f":"Titre350","v":"Titre350"}]
[]
[null,{"$f":"Auteur346","v":"Auteur346"},null,{"$f":"Auteur347","v":"Auteur347"},null,{"$f":"Auteur348","v":"Auteur348"},null,{"$f":"Auteur349","v":"Auteur349"},null,{"$f":"Auteur350","v":"Auteur350"}]
[]
[null,{"$f":"Pays346","v":"Pays346"},null,{"$f":"Pays347","v":"Pays347"},null,{"$f":"Pays348","v":"Pays348"},null,{"$f":"Pays349","v":"Pays349"},null,{"$f":"Pays350","v":"Pays350"}]
[]
[]
[]
[]
[]
[]
[]
[]
[null,{"$f":"FDT","v":"12ème French Digital Tour"},null,{"$f":"FDT","v":"12ème French Digital Tour"},null,{"$f":"FDT","v":"12ème French Digital Tour"},null,{"$f":"FDT","v":"12ème French Digital Tour"},null,{"$f":"FDT","v":"12ème French Digital Tour"}]
[]
[null,{"$f":"Titre351","v":"Titre351"},null,{"$f":"Titre352","v":"Titre352"},null,{"$f":"Titre353","v":"Titre353"},null,{"$f":"Titre354","v":"Titre354"},null,{"$f":"Titre355","v":"Titre355"}]
[]
[null,{"$f":"Auteur351","v":"Auteur351"},null,{"$f":"Auteur352","v":"Auteur352"},null,{"$f":"Auteur353","v":"Auteur353"},null,{"$f":"Auteur354","v":"Auteur354"},null,{"$f":"Auteur355","v":"Auteur355"}]
[]
[null,{"$f":"Pays351","v":"Pays351"},null,{"$f":"Pays352","v":"Pays352"},null,{"$f":"Pays353","v":"Pays353"},null,{"$f":"Pays354","v":"Pays354"},null,{"$f":"Pays355","v":"Pays355"}]

{"sheet":"BAG_Diplome_FDT_1","index":13,"n_rows":82,"n_cols":10,"rows_kept":82,"cut":false,"hidden":false,"merged":[[71,7,72,14],[80,5,80,11],[81,5,81,11],[79,5,79,11],[75,5,75,11],[76,5,76,11],[77,5,77,11],[78,5,78,11],[64,7,65,14],[68,7,69,14],[38,5,38,11],[29,7,30,14],[25,7,26,14],[37,5,37,11],[36,5,36,11],[35,5,35,11],[34,5,34,11],[33,5,33,11],[32,5,32,11],[17,7,18,14],[10,9,12,11],[53,9,55,11],[60,7,61,14],[21,7,22,14]]}
[]
[]
[]
[]
[]
[]
[]
[]
[]
[]
[null,null,null,null,null,null,null,null,null,{"$f":"Millésime","v":2017}]
[]
[]
[]
[]
[]
[]
[null,null,null,null,null,null,null,{"$f":"Ville4","v":"Bagnols Marcoule"}]
[]
[]
[]
[null,null,null,null,null,null,null,{"$f":"Auteur413","v":"Zhong  Weidong"}]
[]
[]
[]
[null,null,null,null,null,null,null,{"$f":"Titre413","v":"Charge"}]
[]
[]
[]
[null,null,null,null,null,null,null,{"$f":"Date","v":"2017-01-03"}]
[]
[]
[null,null,null,null,null,{"$f":"Patronage1","v":"FIAP : 2017/294-295-296-297"}]
[null,null,null,null,null,{"$f":"Patronage2","v":"PSA : 2017/249"}]
[null,null,null,null,null,{"$f":"Patronage3","v":"FPF : 2017/020-021-022-023"}]
[null,null,null,null,null,{"$f":"Patronage4","v":"RPS : 2017/30-31-32-33"}]
[null,null,null,null,null,{"$f":"Patronage5","v":"GPU : License L170086"}]
[null,null,null,null,null,{"$f":"Patronage6","v":"IUP 2017/022"}]
[null,null,null,null,null,{"$f":"Patronage7","v":0}]
[]
[]
[]
[]
[]
[]
[]
[]
[]
[]
[]
[]
[]
[]
[null,null,null,null,null,null,null,null,null,{"$f":"Millésime","v":2017}]
[]
[]
[]
[]
[]
[]
[null,null,null,null,null,null,null,{"$f":"Ville4","v":"Bagnols Marcoule"}]
[]
[]
[]
[null,null,null,null,null,null,null,{"$f":"Auteur414","v":"Suloev  Alexey"}]
[]
[]
[]
[null,null,null,null,null,null,null,{"$f":"Titre414","v":"The solitude-antarctica"}]
[]
[]
[null,null,null,null,null,null,null,{"$f":"Date","v":"2017-01-03"}]
[]
[]
[]
[null,null,null,null,null,{"$f":"Patronage1","v":"FIAP : 2017/294-295-296-297"}]
[null,null,null,null,null,{"$f":"Patronage2","v":"PSA : 2017/249"}]
[null,null,null,null,null,{"$f":"Patronage3","v":"FPF : 2017/020-021-022-023"}]
[null,null,null,null,null,{"$f":"Patronage4","v":"RPS : 2017/30-31-32-33"}]
[null,null,null,null,null,{"$f":"Patronage5","v":"GPU : License L170086"}]
[null,null,null,null,null,{"$f":"Patronage6","v":"IUP 2017/022"}]
[null,null,null,null,null,{"$f":"Patronage7","v":0}]

{"sheet":"BAG_Diplome_FDT_2","index":14,"n_rows":82,"n_cols":10,"rows_kept":82,"cut":false,"hidden":false,"merged":[[38,5,38,11],[10,9,12,11],[17,7,18,14],[21,7,22,14],[25,7,26,14],[29,7,30,14],[32,5,32,11],[33,5,33,11],[34,5,34,11],[35,5,35,11],[36,5,36,11],[37,5,37,11],[81,5,81,11],[53,9,55,11],[60,7,61,14],[64,7,65,14],[68,7,69,14],[72,7,73,14],[75,5,75,11],[76,5,76,11],[77,5,77,11],[78,5,78,11],[79,5,79,11],[80,5,80,11]]}
[]
[]
[]
[]
[]
[]
[]
[]
[]
[]
[null,null,null,null,null,null,null,null,null,{"$f":"Millésime","v":2017}]
[]
[]
[]
[]
[]
[]
[null,null,null,null,null,null,null,{"$f":"Ville4","v":"Bagnols Marcoule"}]
[]
[]
[]
[null,null,null,null,null,null,null,{"$f":"Auteur415","v":"Cowles  Larry"}]
[]
[]
[]
[null,null,null,null,null,null,null,{"$f":"Titre415","v":"Black hat look cristina"}]
[]
[]
[]
[null,null,null,null,null,null,null,{"$f":"Date","v":"2017-01-03"}]
[]
[]
[null,null,null,null,null,{"$f":"Patronage1","v":"FIAP : 2017/294-295-296-297"}]
[null,null,null,null,null,{"$f":"Patronage2","v":"PSA : 2017/249"}]
[null,null,null,null,null,{"$f":"Patronage3","v":"FPF : 2017/020-021-022-023"}]
[null,null,null,null,null,{"$f":"Patronage4","v":"RPS : 2017/30-31-32-33"}]
[null,null,null,null,null,{"$f":"Patronage5","v":"GPU : License L170086"}]
[null,null,null,null,null,{"$f":"Patronage6","v":"IUP 2017/022"}]
[null,null,null,null,null,{"$f":"Patronage7","v":0}]
[]
[]
[]
[]
[]
[]
[]
[]
[]
[]
[]
[]
[]
[]
[null,null,null,null,null,null,null,null,null,{"$f":"Millésime","v":2017}]
[]
[]
[]
[]
[]
[]
[null,null,null,null,null,null,null,{"$f":"Ville4","v":"Bagnols Marcoule"}]
[]
[]
[]
[null,null,null,null,null,null,null,{"$f":"Auteur416","v":"Stokie  Michelle"}]
[]
[]
[]
[null,null,null,null,null,null,null,{"$f":"Titre416","v":"In town"}]
[]
[]
[]
[null,null,null,null,null,null,null,{"$f":"Date","v":"2017-01-03"}]
[]
[]
[null,null,null,null,null,{"$f":"Patronage1","v":"FIAP : 2017/294-295-296-297"}]
[null,null,null,null,null,{"$f":"Patronage2","v":"PSA : 2017/249"}]
[null,null,null,null,null,{"$f":"Patronage3","v":"FPF : 2017/020-021-022-023"}]
[null,null,null,null,null,{"$f":"Patronage4","v":"RPS : 2017/30-31-32-33"}]
[null,null,null,null,null,{"$f":"Patronage5","v":"GPU : License L170086"}]
[null,null,null,null,null,{"$f":"Patronage6","v":"IUP 2017/022"}]
[null,null,null,null,null,{"$f":"Patronage7","v":0}]

{"sheet":"BAG_Diplome_FDT_3","index":15,"n_rows":82,"n_cols":10,"rows_kept":82,"cut":false,"hidden":false,"merged":[[38,5,38,11],[10,9,12,11],[17,7,18,14],[21,7,22,14],[25,7,26,14],[29,7,30,14],[32,5,32,11],[33,5,33,11],[34,5,34,11],[35,5,35,11],[36,5,36,11],[37,5,37,11],[81,5,81,11],[53,9,55,11],[60,7,61,14],[64,7,65,14],[68,7,69,14],[72,7,73,14],[75,5,75,11],[76,5,76,11],[77,5,77,11],[78,5,78,11],[79,5,79,11],[80,5,80,11]]}
[]
[]
[]
[]
[]
[]
[]
[]
[]
[]
[null,null,null,null,null,null,null,null,null,{"$f":"Millésime","v":2017}]
[]
[]
[]
[]
[]
[]
[null,null,null,null,null,null,null,{"$f":"Ville4","v":"Bagnols Marcoule"}]
[]
[]
[]
[null,null,null,null,null,null,null,{"$f":"Auteur417","v":"Yuen  Hung Kam"}]
[]
[]
[]
[null,null,null,null,null,null,null,{"$f":"Titre417","v":"Going up"}]
[]
[]
[]
[null,null,null,null,null,null,null,{"$f":"Date","v":"2017-01-03"}]
[]
[]
[null,null,null,null,null,{"$f":"Patronage1","v":"FIAP : 2017/294-295-296-297"}]
[null,null,null,null,null,{"$f":"Patronage2","v":"PSA : 2017/249"}]
[null,null,null,null,null,{"$f":"Patronage3","v":"FPF : 2017/020-021-022-023"}]
[null,null,null,null,null,{"$f":"Patronage4","v":"RPS : 2017/30-31-32-33"}]
[null,null,null,null,null,{"$f":"Patronage5","v":"GPU : License L170086"}]
[null,null,null,null,null,{"$f":"Patronage6","v":"IUP 2017/022"}]
[null,null,null,null,null,{"$f":"Patronage7","v":0}]
[]
[]
[]
[]
[]
[]
[]
[]
[]
[]
[]
[]
[]
[]
[null,null,null,null,null,null,null,null,null,{"$f":"Millésime","v":2017}]
[]
[]
[]
[]
[]
[]
[null,null,null,null,null,null,null,{"$f":"Ville4","v":"Bagnols Marcoule"}]
[]
[]
[]
[null,null,null,null,null,null,null,{"$f":"Auteur418","v":"Thomas Vijayan  Thomas"}]
[]
[]
[]
[null,null,null,null,null,null,null,{"$f":"Titre418","v":"Shake it off"}]
[]
[]
[]
[null,null,null,null,null,null,null,{"$f":"Date","v":"2017-01-03"}]
[]
[]
[null,null,null,null,null,{"$f":"Patronage1","v":"FIAP : 2017/294-295-296-297"}]
[null,null,null,null,null,{"$f":"Patronage2","v":"PSA : 2017/249"}]
[null,null,null,null,null,{"$f":"Patronage3","v":"FPF : 2017/020-021-022-023"}]
[null,null,null,null,null,{"$f":"Patronage4","v":"RPS : 2017/30-31-32-33"}]
[null,null,null,null,null,{"$f":"Patronage5","v":"GPU : License L170086"}]
[null,null,null,null,null,{"$f":"Patronage6","v":"IUP 2017/022"}]
[null,null,null,null,null,{"$f":"Patronage7","v":0}]

{"sheet":"BAG_Diplome_FDT_4","index":16,"n_rows":82,"n_cols":10,"rows_kept":82,"cut":false,"hidden":false,"merged":[[38,5,38,11],[10,9,12,11],[17,7,18,14],[21,7,22,14],[25,7,26,14],[29,7,30,14],[32,5,32,11],[33,5,33,11],[34,5,34,11],[35,5,35,11],[36,5,36,11],[37,5,37,11],[81,5,81,11],[53,9,55,11],[60,7,61,14],[64,7,65,14],[68,7,69,14],[75,5,75,11],[76,5,76,11],[77,5,77,11],[78,5,78,11],[79,5,79,11],[80,5,80,11],[71,7,72,14]]}
[]
[]
[]
[]
[]
[]
[]
[]
[]
[]
[null,null,null,null,null,null,null,null,null,{"$f":"Millésime","v":2017}]
[]
[]
[]
[]
[]
[]
[null,null,null,null,null,null,null,{"$f":"Ville4","v":"Bagnols Marcoule"}]
[]
[]
[]
[null,null,null,null,null,null,null,{"$f":"Auteur419","v":"Young  Alan"}]
[]
[]
[]
[null,null,null,null,null,null,null,{"$f":"Titre419","v":"The lady waits"}]
[]
[]
[]
[null,null,null,null,null,null,null,{"$f":"Date","v":"2017-01-03"}]
[]
[]
[null,null,null,null,null,{"$f":"Patronage1","v":"FIAP : 2017/294-295-296-297"}]
[null,null,null,null,null,{"$f":"Patronage2","v":"PSA : 2017/249"}]
[null,null,null,null,null,{"$f":"Patronage3","v":"FPF : 2017/020-021-022-023"}]
[null,null,null,null,null,{"$f":"Patronage4","v":"RPS : 2017/30-31-32-33"}]
[null,null,null,null,null,{"$f":"Patronage5","v":"GPU : License L170086"}]
[null,null,null,null,null,{"$f":"Patronage6","v":"IUP 2017/022"}]
[null,null,null,null,null,{"$f":"Patronage7","v":0}]
[]
[]
[]
[]
[]
[]
[]
[]
[]
[]
[]
[]
[]
[]
[null,null,null,null,null,null,null,null,null,{"$f":"Millésime","v":2017}]
[]
[]
[]
[]
[]
[]
[null,null,null,null,null,null,null,{"$f":"Ville4","v":"Bagnols Marcoule"}]
[]
[]
[]
[null,null,null,null,null,null,null,{"$f":"Auteur420","v":"Hu  Weiguo"}]
[]
[]
[]
[null,null,null,null,null,null,null,{"$f":"Titre420","v":"Warm"}]
[]
[]
[null,null,null,null,null,null,null,{"$f":"Date","v":"2017-01-03"}]
[]
[]
[]
[null,null,null,null,null,{"$f":"Patronage1","v":"FIAP : 2017/294-295-296-297"}]
[null,null,null,null,null,{"$f":"Patronage2","v":"PSA : 2017/249"}]
[null,null,null,null,null,{"$f":"Patronage3","v":"FPF : 2017/020-021-022-023"}]
[null,null,null,null,null,{"$f":"Patronage4","v":"RPS : 2017/30-31-32-33"}]
[null,null,null,null,null,{"$f":"Patronage5","v":"GPU : License L170086"}]
[null,null,null,null,null,{"$f":"Patronage6","v":"IUP 2017/022"}]
[null,null,null,null,null,{"$f":"Patronage7","v":0}]

{"sheet":"Feuil1","index":17,"n_rows":0,"n_cols":0,"rows_kept":0,"cut":false,"hidden":true,"merged":[]}

{"sheet":"BAG_Diplome_FDT_5","index":18,"n_rows":82,"n_cols":10,"rows_kept":82,"cut":false,"hidden":false,"merged":[[38,5,38,11],[10,9,12,11],[17,7,18,14],[21,7,22,14],[25,7,26,14],[29,7,30,14],[32,5,32,11],[33,5,33,11],[34,5,34,11],[35,5,35,11],[36,5,36,11],[37,5,37,11],[81,5,81,11],[53,9,55,11],[60,7,61,14],[64,7,65,14],[68,7,69,14],[71,7,72,14],[75,5,75,11],[76,5,76,11],[77,5,77,11],[78,5,78,11],[79,5,79,11],[80,5,80,11]]}
[]
[]
[]
[]
[]
[]
[]
[]
[]
[]
[null,null,null,null,null,null,null,null,null,{"$f":"Millésime","v":2017}]
[]
[]
[]
[]
[]
[]
[null,null,null,null,null,null,null,{"$f":"Ville4","v":"Bagnols Marcoule"}]
[]
[]
[]
[null,null,null,null,null,null,null,{"$f":"Auteur421","v":"Dang    Quang Vinh"}]
[]
[]
[]
[null,null,null,null,null,null,null,{"$f":"Titre421","v":"Cuoc song mien bien"}]
[]
[]
[]
[null,null,null,null,null,null,null,{"$f":"Date","v":"2017-01-03"}]
[]
[]
[null,null,null,null,null,{"$f":"Patronage1","v":"FIAP : 2017/294-295-296-297"}]
[null,null,null,null,null,{"$f":"Patronage2","v":"PSA : 2017/249"}]
[null,null,null,null,null,{"$f":"Patronage3","v":"FPF : 2017/020-021-022-023"}]
[null,null,null,null,null,{"$f":"Patronage4","v":"RPS : 2017/30-31-32-33"}]
[null,null,null,null,null,{"$f":"Patronage5","v":"GPU : License L170086"}]
[null,null,null,null,null,{"$f":"Patronage6","v":"IUP 2017/022"}]
[null,null,null,null,null,{"$f":"Patronage7","v":0}]
[]
[]
[]
[]
[]
[]
[]
[]
[]
[]
[]
[]
[]
[]
[null,null,null,null,null,null,null,null,null,{"$f":"Millésime","v":2017}]
[]
[]
[]
[]
[]
[]
[null,null,null,null,null,null,null,{"$f":"Ville4","v":"Bagnols Marcoule"}]
[]
[]
[]
[null,null,null,null,null,null,null,{"$f":"Auteur422","v":"Hung  Nguyen Canh"}]
[]
[]
[]
[null,null,null,null,null,null,null,{"$f":"Titre422","v":"Childhood no1"}]
[]
[]
[null,null,null,null,null,null,null,{"$f":"Date","v":"2017-01-03"}]
[]
[]
[]
[null,null,null,null,null,{"$f":"Patronage1","v":"FIAP : 2017/294-295-296-297"}]
[null,null,null,null,null,{"$f":"Patronage2","v":"PSA : 2017/249"}]
[null,null,null,null,null,{"$f":"Patronage3","v":"FPF : 2017/020-021-022-023"}]
[null,null,null,null,null,{"$f":"Patronage4","v":"RPS : 2017/30-31-32-33"}]
[null,null,null,null,null,{"$f":"Patronage5","v":"GPU : License L170086"}]
[null,null,null,null,null,{"$f":"Patronage6","v":"IUP 2017/022"}]
[null,null,null,null,null,{"$f":"Patronage7","v":0}]

{"sheet":"BAG_Diplome_FDT_6","index":19,"n_rows":82,"n_cols":10,"rows_kept":82,"cut":false,"hidden":false,"merged":[[38,5,38,11],[10,9,12,11],[17,7,18,14],[21,7,22,14],[25,7,26,14],[29,7,30,14],[32,5,32,11],[33,5,33,11],[34,5,34,11],[35,5,35,11],[36,5,36,11],[37,5,37,11],[81,5,81,11],[53,9,55,11],[60,7,61,14],[64,7,65,14],[68,7,69,14],[71,7,72,14],[75,5,75,11],[76,5,76,11],[77,5,77,11],[78,5,78,11],[79,5,79,11],[80,5,80,11]]}
[]
[]
[]
[]
[]
[]
[]
[]
[]
[]
[null,null,null,null,null,null,null,null,null,{"$f":"Millésime","v":2017}]
[]
[]
[]
[]
[]
[]
[null,null,null,null,null,null,null,{"$f":"Ville4","v":"Bagnols Marcoule"}]
[]
[]
[]
[null,null,null,null,null,null,null,{"$f":"Auteur423","v":"Shu  Lishu"}]
[]
[]
[]
[null,null,null,null,null,null,null,{"$f":"Titre423","v":"Arc"}]
[]
[]
[]
[null,null,null,null,null,null,null,{"$f":"Date","v":"2017-01-03"}]
[]
[]
[null,null,null,null,null,{"$f":"Patronage1","v":"FIAP : 2017/294-295-296-297"}]
[null,null,null,null,null,{"$f":"Patronage2","v":"PSA : 2017/249"}]
[null,null,null,null,null,{"$f":"Patronage3","v":"FPF : 2017/020-021-022-023"}]
[null,null,null,null,null,{"$f":"Patronage4","v":"RPS : 2017/30-31-32-33"}]
[null,null,null,null,null,{"$f":"Patronage5","v":"GPU : License L170086"}]
[null,null,null,null,null,{"$f":"Patronage6","v":"IUP 2017/022"}]
[null,null,null,null,null,{"$f":"Patronage7","v":0}]
[]
[]
[]
[]
[]
[]
[]
[]
[]
[]
[]
[]
[]
[]
[null,null,null,null,null,null,null,null,null,{"$f":"Millésime","v":2017}]
[]
[]
[]
[]
[]
[]
[null,null,null,null,null,null,null,{"$f":"Ville4","v":"Bagnols Marcoule"}]
[]
[]
[]
[null,null,null,null,null,null,null,{"$f":"Auteur424","v":"Liu  Risheng"}]
[]
[]
[]
[null,null,null,null,null,null,null,{"$f":"Titre424","v":"Hanging on train"}]
[]
[]
[null,null,null,null,null,null,null,{"$f":"Date","v":"2017-01-03"}]
[]
[]
[]
[null,null,null,null,null,{"$f":"Patronage1","v":"FIAP : 2017/294-295-296-297"}]
[null,null,null,null,null,{"$f":"Patronage2","v":"PSA : 2017/249"}]
[null,null,null,null,null,{"$f":"Patronage3","v":"FPF : 2017/020-021-022-023"}]
[null,null,null,null,null,{"$f":"Patronage4","v":"RPS : 2017/30-31-32-33"}]
[null,null,null,null,null,{"$f":"Patronage5","v":"GPU : License L170086"}]
[null,null,null,null,null,{"$f":"Patronage6","v":"IUP 2017/022"}]
[null,null,null,null,null,{"$f":"Patronage7","v":0}]

{"sheet":"BAG_Diplome_FDT_EC","index":20,"n_rows":82,"n_cols":10,"rows_kept":82,"cut":false,"hidden":false,"merged":[[81,5,81,11],[53,9,55,11],[60,7,61,14],[64,7,65,14],[68,7,69,14],[71,7,72,14],[75,5,75,11],[76,5,76,11],[77,5,77,11],[78,5,78,11],[79,5,79,11],[80,5,80,11],[38,5,38,11],[10,9,12,11],[17,7,18,14],[21,7,22,14],[25,7,26,14],[29,7,30,14],[32,5,32,11],[33,5,33,11],[34,5,34,11],[35,5,35,11],[36,5,36,11],[37,5,37,11]]}
[]
[]
[]
[]
[]
[]
[]
[]
[]
[]
[null,null,null,null,null,null,null,null,null,{"$f":"Millésime","v":2017}]
[]
[]
[]
[]
[]
[]
[null,null,null,null,null,null,null,{"$f":"Ville4","v":"Bagnols Marcoule"}]
[]
[]
[]
[null,null,null,null,null,null,null,{"$f":"Auteur423","v":"Shu  Lishu"}]
[]
[]
[]
[null,null,null,null,null,null,null,{"$f":"Titre423","v":"Arc"}]
[]
[]
[]
[null,null,null,null,null,null,null,{"$f":"Date","v":"2017-01-03"}]
[]
[]
[null,null,null,null,null,{"$f":"IF(Données!$D10=\"\",\"\",Données!$D10)","v":"FIAP : 2017/294-295-296-297"}]
[null,null,null,null,null,{"$f":"IF(Données!$D11=\"\",\"\",Données!$D11)","v":"PSA : 2017/249"}]
[null,null,null,null,null,{"$f":"IF(Données!$D12=\"\",\"\",Données!$D12)","v":"FPF : 2017/020-021-022-023"}]
[null,null,null,null,null,{"$f":"IF(Données!$D13=\"\",\"\",Données!$D13)","v":"RPS : 2017/30-31-32-33"}]
[null,null,null,null,null,{"$f":"IF(Données!$D14=\"\",\"\",Données!$D14)","v":"GPU : License L170086"}]
[null,null,null,null,null,{"$f":"IF(Données!$D15=\"\",\"\",Données!$D15)","v":"IUP 2017/022"}]
[null,null,null,null,null,{"$f":"IF(Données!$D16=\"\",\"\",Données!$D16)","v":""}]
[]
[]
[]
[]
[]
[]
[]
[]
[]
[]
[]
[]
[]
[]
[null,null,null,null,null,null,null,null,null,{"$f":"Millésime","v":2017}]
[]
[]
[]
[]
[]
[]
[null,null,null,null,null,null,null,{"$f":"Ville4","v":"Bagnols Marcoule"}]
[]
[]
[]
[null,null,null,null,null,null,null,{"$f":"Auteur424","v":"Liu  Risheng"}]
[]
[]
[]
[null,null,null,null,null,null,null,{"$f":"Titre424","v":"Hanging on train"}]
[]
[]
[null,null,null,null,null,null,null,{"$f":"Date","v":"2017-01-03"}]
[]
[]
[]
[null,null,null,null,null,{"$f":"IF(Données!$D10=\"\",\"\",Données!$D10)","v":"FIAP : 2017/294-295-296-297"}]
[null,null,null,null,null,{"$f":"IF(Données!$D11=\"\",\"\",Données!$D11)","v":"PSA : 2017/249"}]
[null,null,null,null,null,{"$f":"IF(Données!$D12=\"\",\"\",Données!$D12)","v":"FPF : 2017/020-021-022-023"}]
[null,null,null,null,null,{"$f":"IF(Données!$D13=\"\",\"\",Données!$D13)","v":"RPS : 2017/30-31-32-33"}]
[null,null,null,null,null,{"$f":"IF(Données!$D14=\"\",\"\",Données!$D14)","v":"GPU : License L170086"}]
[null,null,null,null,null,{"$f":"IF(Données!$D15=\"\",\"\",Données!$D15)","v":"IUP 2017/022"}]
[null,null,null,null,null,{"$f":"IF(Données!$D16=\"\",\"\",Données!$D16)","v":""}]

{"sheet":"Spécial","index":21,"n_rows":6,"n_cols":13,"rows_kept":6,"cut":false,"hidden":false,"merged":[[1,12,12,16]]}
[null,"Ville","Catégorie","Prix","Ordre","Titre","Auteur","Pays","Classement","Place","N° de Fichier"]
[1,"BAG","Nature","Meilleur Auteur du Salon",608,"Tasty","Che  Arnaldo Paulo","Hong Kong","1° Prix",1,"HKCHAR009337_23.JPG",null,"Onglet \"Spécial\" :\n\nLes cellules des colonnes F, G et H\nsont nommées de Titre1 à Pays5\nPour chaque colonne de 1 à 5\n\nLes informations de cette feuille sonrt un copier/Coller\ndepuis la feuille Palmares.\n\nLes informations des colonnes F, G et H servent à renseigner les stickers de la feuiile Best Auteur&CC."]
[2,"BAG","Couleur","Ruban FIAP coup de C.C 1",1628,"Harvest","Gan  Yongan","Chine","51° Prix",52,"CNGAYO012598_12.JPG"]
[3,"BAG","Monochrome","Ruban FIAP coup de C.C 2",280,"Fashion girl","Alexandrino Lei   Airosa","Macau","52° Prix",53,"CNALAI014625_42.JPG"]
[4,"BAG","Nature","Ruban FIAP coup de C.C 3",1238,"Mama i am hungry","Cheang  Sherman","Macau","53° Prix",54,"MOCHSH015852_21.JPG"]
[5,"BAG","Couleur","Meilleur Auteur français",617,"Derriere la fenetre","Nhu  Pham Minh Thuyen","France","50° Prix",51,"FRNHPH015710_12.JPG"]

{"sheet":"Médailles","index":22,"n_rows":73,"n_cols":13,"rows_kept":73,"cut":false,"hidden":false,"merged":[[1,12,12,16]]}
[null,"Ville","Catégorie","Prix","Ordre","Titre","Auteur","Pays","Classement","Place","N° de Fichier"]
[1,"BAG","Couleur","Médaille d'Or FIAP",239,"The runaway","English  Dianne","Australie","2° Prix",2,"AUENDI012568_13.JPG",null,"Onglet \"médailles\" :\n\nLes cellules des colonnes F, G et H\nsont nommées de Titre1 à Pays5\nPour chaque colonne de 1 à 5\n\nLes informations de cette feuille sonrt un copier/Coller\ndepuis la feuille Palmares.\n\nLes informations des colonnes F, G et H servent à renseigner les stickers des feuiiles Médailles de 1 à 3."]
[2,"BAG","Nature","Médaille d'Or FIAP",867,"Two butterfly","Kyndt  Daniel","Belgique","3° Prix",3,"BEKYDA011359_22.JPG"]
[3,"BAG","Monochrome","Médaille d'Or FIAP",564,"Classy julie in purple hat","Cowles  Larry","Etats Unis","4° Prix",4,"USCOLA012394_42.JPG"]
[4,"BAG","Thème","Médaille d'Or FIAP",61,"Women power","Miojevic  Véronique","France","5° Prix",5,"FRMIVÉ011300_51.JPG"]
[5,"BAG","Nature","Médaille d'Or PSA",467,"Loving you 3","Che  Arnaldo Paulo","Hong Kong","6° Prix",6,"HKCHAR009337_22.JPG"]
[6,"BAG","Thème","Médaille d'Or PSA",67,"Homeward journey in the…","Ouyang  Guanlai","Chine","7° Prix",7,"CNOUGU015663_51.JPG"]
[7,"BAG","Couleur","Médaille d'Or PSA",106,"Back way","Huang  Zhixiong","Chine","8° Prix",8,"CNHUZH015822_12.JPG"]
[8,"BAG","Monochrome","Médaille d'Or PSA",1701,"Chinese painting 2","Chen  Zhong","Chine","9° Prix",9,"CNCHZH015828_44.JPG"]
[9,"BAG","Thème","Médaille d'Or GPU",159,"Le soigneur de pigeons","Bacle  Jean Claude","France","10° Prix",10,"FRBAJE011363_54.JPG"]
[10,"BAG","Thème","Médaille d'Or RPS",5,"Friends","Fry  Martin","Royaume-Uni","11° Prix",11,"GBFRMA015549_51.JPG"]
[11,"BAG","Thème","Médaille d'Or IUP",647,"Expire","Van Balken  Marcel","Pays-Bas","12° Prix",12,"NLVAMA012580_53.JPG"]
[12,"BAG","Thème","Médaille d'Or FPF",592,"No phone no life","Feng  Tracy Shuxi","Etats Unis","13° Prix",13,"USFETR012591_53.JPG"]
[13,"BAG","Couleur","Médaille  d'Or FDT",93,"Colorful dreams","Hu  Youshu","Chine","14° Prix",14,"CNHUYO012596_12.JPG"]
[14,"BAG","Nature","Médaille  d'Or FDT",655,"Discussion between gree…","Fabbri  Giovanni","Italie","15°Prix",15,"ITFAGI014573_21.JPG"]
[15,"BAG","Monochrome","Médaille  d'Or FDT",1936,"Match","Qiu  Yanping","Hong Kong","16° Prix",16,"HKQIYA012507_43.JPG"]
[16,"BAG","Thème","Médaille  d'Or FDT",249,"Old woman 4","Li  Yong Zhi","Chine","17° Prix",17,"CNLIYO015540_54.JPG"]
[17,"BAG","Couleur","Médaille d'Argent FIAP",350,"La yaya","Noguero Cazorla  Andreu","Espagne","18° Prix",18,"ESNOAN014656_13.JPG"]
[18,"BAG","Nature","Médaille d'Argent FIAP",485,"Red eyed tree frog trio","Sandra Crook  Sandra","Royaume-Uni","19° Prix",19,"GBSASA012606_23.JPG"]
[19,"BAG","Monochrome","Médaille d'Argent FIAP",1407,"Catching three horses 2","Wong  Shiu Gun","Hong Kong","20° Prix",20,"HKWOSH012360_43.JPG"]
[20,"BAG","Thème","Médaille d'Argent FIAP",635,"Buy a pig","Nie  Jingsheng","Chine","21° Prix",21,"CNNIJI015750_54.JPG"]
[21,"BAG","Couleur","Médaille d'Argent PSA",87,"Maramures 30","Fieni  Eugenio","Italie","22° Prix",22,"ITFIEU011372_12.JPG"]
[22,"BAG","Nature","Médaille d'Argent PSA",1728,"Collared inca hummingbird","Hearn  Tim","Royaume-Uni","23° Prix",23,"GB HTI014540_21.JPG"]
[23,"BAG","Monochrome","Médaille d'Argent PSA",242,"The james dean look","King  Fred","Australie","24° Prix",24,"AUKIFR009341_42.JPG"]
[24,"BAG","Thème","Médaille d'Argent PSA",611,"Peaceful chefchaoeun","Wong  Danny Yen Sin","Malaisie","25° Prix",25,"MYWODA011308_54.JPG"]
[25,"BAG","Couleur","Médaille d'Argent GPU",190,"Regent street","Magot  Laurent","France","26° Prix",26,"FRMALA012552_12.JPG"]
[26,"BAG","Couleur","Médaille d'Argent RPS",1636,"Song of herding sheep","Hu  Weiguo","Chine","27° Prix",27,"CNHUWE015636_14.JPG"]
[27,"BAG","Couleur","Médaille d'Argent IUP",726,"Rugaciune","Virgilio  Bardossi","Italie","28° Prix",28,"ITVIBA015676_12.JPG"]
[28,"BAG","Couleur","Médaille d'Argent FPF",427,"Landhaus","Stütz  Franz","Autriche","29° Prix",29,"ATSTFR015566_13.JPG"]
[29,"BAG","Thème","Médaille d'Argent FDT",1386,"Rigolades","Pedelmas  Pierre","France","30° Prix",30,"FRPEPI014539_54.JPG"]
[30,"BAG","Nature","Médaille d'Argent FDT",236,"Mating 18","Koh  Yeokkian","Malaisie","31° Prix",31,"MYKOYE012572_23.JPG"]
[31,"BAG","Monochrome","Médaille d'Argent FDT",341,"Fishy eyes","Basak  Dr. Sanjib","Inde","32° Prix",32,"INBADR015832_42.JPG"]
[32,"BAG","Couleur","Médaille d'Argent FDT",83,"We're closed","Young  Alan","Royaume-Uni","33° Prix",33,"GBYOAL015834_14.JPG"]
[33,"BAG","Monochrome","Médaille de Bronze FIAP",730,"Football dream","Yang  Yan","Chine","34° Prix",34,"CNYAYA015600_43.JPG"]
[34,"BAG","Thème","Médaille de Bronze FIAP",212,"Happy time","Zheng  Xiaoyun","Chine","35° Prix",35,"CNZHXI012556_54.JPG"]
[35,"BAG","Couleur","Médaille de Bronze FIAP",388,"Fish seller 524","Leong  Soon Seng","Malaisie","36° Prix",36,"MYLESO012586_11.JPG"]
[36,"BAG","Nature","Médaille de Bronze FIAP",300,"Chamaillerie de hérons","Debiève  Albert","France","37° Prix",37,"FRDEAL012417_22.JPG"]
[37,"BAG","Couleur","Médaille de Bronze PSA",189,"Kissed by the wind","Zurmühle  Martin","Suisse","38° Prix",38,"CHZUMA015809_12.JPG"]
[38,"BAG","Monochrome","Médaille de Bronze PSA",1461,"At the foot of the snow","Zheng  Xiaoyun","Chine","39° Prix",39,"CNZHXI012556_41.JPG"]
[39,"BAG","Thème","Médaille de Bronze PSA",271,"Fung shun fire dragon","Chan  Siu King Maree","Hong Kong","40° Prix",40,"HKCHSI014634_54.JPG"]
[40,"BAG","Nature","Médaille de Bronze PSA",107,"Red eye fog","Chan  Siu King Maree","Hong Kong","41° Prix",41,"HKCHSI014634_23.JPG"]
[41,"BAG","Monochrome","Médaille de Bronze GPU",1468,"The wait","Nhu  Pham Minh Thuyen","France","42° Prix",42,"FRNHPH015710_43.JPG"]
[42,"BAG","Monochrome","Médaille de Bronze RPS",1689,"Alpages","Domange  Fernand","France","43° Prix",43,"FRDOFE012474_41.JPG"]
[43,"BAG","Monochrome","Médaille de Bronze IUP",104,"The chase","O Rourke  Philip","Irlande","44° Prix",44,"IEO PH015850_44.JPG"]
[44,"BAG","Nature","Médaille de Bronze FPF",820,"Keep guard","Li  Chunling","Chine","45° Prix",45,"CNLICH015749_22.JPG"]
[45,"BAG","Couleur","Médaille de Bronze FDT",104,"Bliss","Korhonen  Marjut","Finlande","46° Prix",47,"FIKOMA012416_12.JPG"]
[46,"BAG","Nature","Médaille de Bronze FDT",1718,"Greenfinch and hawfinch …","Keene  Paul","Royaume-Uni","47° Prix",48,"GBKEPA014545_22.JPG"]
[47,"BAG","Thème","Médaille de Bronze FDT",734,"To the dog","Virgilio  Bardossi","Italie","48° Prix",49,"ITVIBA015676_53.JPG"]
[48,"BAG","Monochrome","Médaille de Bronze FDT",698,"Museo ferragamo","Enzo  Righeschi","Italie","49° Prix",50,"ITENRI015803_42.JPG"]
[49,"BAG","Couleur","Médaille du Conseil Général",372,"Catch fish","Zheng  Xiaoyun","Chine","102° Prix",103,"CNZHXI012556_14.JPG"]
[50,"BAG","Nature","Médaille de la Ville de BAG",1055,"Stag deer bellowing","Meswani  Prashant","Royaume-Uni","103° Prix",104,"GBMEPR011327_22.JPG"]
[51,"BAG","Monochrome","Médaille de la ville de Sabran",71,"Horses from heaven","Chen  Zhong","Chine","104° Prix",105,"CNCHZH015828_42.JPG"]
[52,"BAG","Thème","Médaille Visiatome",587,"Le balayeur","Trigalou  Marc","France","105° Prix",106,"FRTRMA014591_52.JPG"]
[53,null,null,null,null,"Titre253","Auteur253","Pays253"]
[54,null,null,null,null,"Titre254","Auteur254","Pays254"]
[55,null,null,null,null,"Titre255","Auteur255","Pays255"]
[56,null,null,null,null,"Titre256","Auteur256","Pays256"]
[57,null,null,null,null,"Titre257","Auteur257","Pays257"]
[58,null,null,null,null,"Titre258","Auteur258","Pays258"]
[59,null,null,null,null,"Titre259","Auteur259","Pays259"]
[60,null,null,null,null,"Titre260","Auteur260","Pays260"]
[61,null,null,null,null,"Titre261","Auteur261","Pays261"]
[62,null,null,null,null,"Titre262","Auteur262","Pays262"]
[63,null,null,null,null,"Titre263","Auteur263","Pays263"]
[64,null,null,null,null,"Titre264","Auteur264","Pays264"]
[65,null,null,null,null,"Titre265","Auteur265","Pays265"]
[66,null,null,null,null,"Titre266","Auteur266","Pays266"]
[67,null,null,null,null,"Titre267","Auteur267","Pays267"]
[68,null,null,null,null,"Titre268","Auteur268","Pays268"]
[69,null,null,null,null,"Titre269","Auteur269","Pays269"]
[70,null,null,null,null,"Titre270","Auteur270","Pays270"]
[71,null,null,null,null,"Titre271","Auteur271","Pays271"]
[72,null,null,null,null,"Titre272","Auteur272","Pays272"]

{"sheet":"Ruban FIAP","index":23,"n_rows":31,"n_cols":13,"rows_kept":31,"cut":false,"hidden":false,"merged":[[1,12,12,16]]}
[null,"Ville","Catégorie","Prix","Ordre","Titre","Auteur","Pays","Classement","Place","N° de Fichier"]
[1,"BAG","Couleur","Ruban FIAP",155,"Story teller","Alexandrino Lei   Airosa","Macau","54° Prix",55,"CNALAI014625_14.JPG",null,"Onglet \"Ruban FIAP\" :\n\nLes cellules des colonnes F, G et H\nsont nommées de Titre101 à Pays130\nPour chaque colonne de 101 à 130\n\nLes informations de cette feuille sonrt un copier/Coller\ndepuis la feuille Palmares.\n\nLes informations des colonnes F, G et H servent à renseigner les stickers des feuiiles Rubans FIAP de 1 à 7."]
[2,"BAG","Thème","Ruban FIAP",174,"Ancient town old street","Yang  Shenghua","Chine","55° Prix",56,"CNYASH014622_51.JPG"]
[3,"BAG","Nature","Ruban FIAP",461,"Hunting for food","Kam  Marcus","Malaisie","56° Prix",57,"MYKAMA012537_23.JPG"]
[4,"BAG","Monochrome","Ruban FIAP",705,"Proud countess b&w","Zurmühle  Martin","Suisse","57° Prix",58,"CHZUMA015809_43.JPG"]
[5,"BAG","Couleur","Ruban FIAP",132,"Prairie hero","Chang  Qing","Chine","58° Prix",59,"CNCHQI015748_11.JPG"]
[6,"BAG","Thème","Ruban FIAP",36,"Bibliothèque pour tous","Pedelmas  Pierre","France","59° Prix",60,"FRPEPI014539_52.JPG"]
[7,"BAG","Nature","Ruban FIAP",1099,"Give it to me","Plovie  Bjorn","Belgique","60° Prix",61,"BEPLBJ012429_21.JPG"]
[8,"BAG","Monochrome","Ruban FIAP",2208,"The return journey","Zhou  Muyang","Chine","61° Prix",62,"CNZHMU015804_41.JPG"]
[9,"BAG","Couleur","Ruban FIAP",38,"One's way home","Mao  Renfa","Chine","62° Prix",63,"CNMARE015790_13.JPG"]
[10,"BAG","Thème","Ruban FIAP",101,"Happy childhood","Che  Arnaldo Paulo","Hong Kong","63° Prix",64,"HKCHAR009337_52.JPG"]
[11,"BAG","Nature","Ruban FIAP",309,"Courtship","Yuan  Wenhui","Chine","64° Prix",65,"CNYUWE015798_24.JPG"]
[12,"BAG","Monochrome","Ruban FIAP",1586,"After rain","Kettler  Jean-Paul","France","65° Prix",66,"FRKEJE014535_41.JPG"]
[13,"BAG","Couleur","Ruban FIAP",102,"Shakur","Al-Mushaifri  Abdulla","Qatar","66° Prix",67,"QAALAB012589_13.JPG"]
[14,"BAG","Thème","Ruban FIAP",480,"Indifferenza","Luciano  Cardonati","Italie","67° Prix",68,"ITLUCA014640_51.JPG"]
[15,"BAG","Nature","Ruban FIAP",774,"Hunting 1","Che  Arnaldo Paulo","Hong Kong","68° Prix",69,"HKCHAR009337_24.JPG"]
[16,"BAG","Monochrome","Ruban FIAP",806,"Fair","Hochhaus  Alexander","Allemagne","69° Prix",70,"DEHOAL012423_41.JPG"]
[17,"BAG","Couleur","Ruban FIAP",970,"Horse racing the frontier","Feng  Tracy Shuxi","Etats Unis","70° Prix",71,"USTRTR012591_13.JPG"]
[18,"BAG","Thème","Ruban FIAP",55,"Bikeman","Van Balken  Marcel","Pays-Bas","71°Prix",72,"NLVAMA012580_51.JPG"]
[19,"BAG","Nature","Ruban FIAP",1254,"Jungle in may","Yang  Guomei","Chine","72° Prix",73,"CNYAGU015658_23.JPG"]
[20,"BAG","Monochrome","Ruban FIAP",590,"Belivers out of temple","Yuan  Lin","Chine","73° Prix",74,"CNYULI015615_41.JPG"]
[21,"BAG","Couleur","Ruban FIAP",286,"Big friendly giant","King  Fred","Australie","74° Prix",75,"AUKIFR009341_14.JPG"]
[22,"BAG","Thème","Ruban FIAP",124,"Supplication and hope","Almasoud  Naif Ahmed","Arabie saoudite","75° Prix",76,"SANANA014566_54.JPG"]
[23,"BAG","Nature","Ruban FIAP",1065,"Feeding time","Cserto  Istvan","Hongrie","76° Prix",77,"HUCSIS015709_21.JPG"]
[24,"BAG","Monochrome","Ruban FIAP",1883,"Ballet shoes","Boyle  Judy","Royaume-Uni","77° Prix",78,"GBBOJU011349_41.JPG"]
[null,"BAG","Thème","Ruban FIAP",221,"Car fire 2","King  Fred","Australie","78° Prix",79,"AUKIFR009341_51.JPG"]
[null,null,null,null,null,"Titre126","Auteur126","Pays126"]
[null,null,null,null,null,"Titre127","Auteur127","Pays127"]
[null,null,null,null,null,"Titre128","Auteur128","Pays128"]
[null,null,null,null,null,"Titre129","Auteur129","Pays129"]
[null,null,null,null,null,"Titre130","Auteur130","Pays130"]

{"sheet":"Ruban_PSA_GPU_IUP","index":24,"n_rows":61,"n_cols":13,"rows_kept":61,"cut":false,"hidden":false,"merged":[[1,12,12,16]]}
[null,"Ville","Catégorie","Prix","Ordre","Titre","Auteur","Pays","Classement","Place","N° de Fichier"]
[1,"BAG","Couleur","Ruban PSA",304,"Dia nublado","Oscar  Saraiva","Portugal","79° Prix",80,"PTOSSA012595_12.JPG",null,"Onglet \"Ruban PSA_GPU_IUP\" :\n\nLes cellules des colonnes F, G et H\nsont nommées de Titre301 à Pays360\nPour chaque colonne de 301 à 360\n\nLes informations de cette feuille sonrt un copier/Coller\ndepuis la feuille Palmares.\n\nLes informations des colonnes F, G et H servent à renseigner les stickers de la feuiile Rubans PSA8GPU_IUP."]
[2,"BAG","Nature","Ruban PSA",1688,"Intimacy","Feng  Tracy Shuxi","Etats Unis","80° Prix",81,"USTRTR012591_24.JPG"]
[3,"BAG","Monochrome","Ruban PSA",449,"The passenger","Tallier  Frédéric","Belgique","81° PrIx",82,"BETAFR015699_44.JPG"]
[4,"BAG","Thème","Ruban PSA",1483,"To the market","Virgilio  Bardossi","Italie","82° Prix",83,"ITVIBA015676_52.JPG"]
[5,"BAG","Nature","Ruban PSA",1703,"The great migration of wildebeest","Agapov  Sergey","Russie","83° Prix",84,"RUAGSE012496_23.JPG"]
[6,"BAG","Couleur","Ruban GPU",535,"Early morning","Giuseppe  Tomelleri","Italie","84° Prix",85,"ITGITO012305_13.JPG"]
[7,"BAG","Nature","Ruban GPU",233,"Fawn breasted brilliant hummingbird","Hearn  Tim","Royaume-Uni","85° Prix",86,"GB HTI014540_22.JPG"]
[8,"BAG","Monochrome","Ruban GPU",365,"It's time to go","Nhu  Pham Minh Thuyen","France","86° Prix",87,"FRNHPH015710_41.JPG"]
[9,"BAG","Thème","Ruban GPU",583,"Happy little monk 1","Che  Arnaldo Paulo","Hong Kong","87° Prix",88,"HKCHAR009337_53.JPG"]
[10,"BAG","Couleur","Ruban GPU",685,"Go home","Hung  Nguyen Canh","Viet Nam","88° Prix",89,"VNNGHU012425_12.JPG"]
[11,"BAG","Nature","Ruban GPU",1534,"Nightfull 2","Feng  Jiashun","Chine","89° Prix",90,"CNFEJI015764_22.JPG"]
[12,"BAG","Thème","Ruban GPU",51,"Graffiti alley","Hyett  David","Royaume-Uni","90° Prix",91,"GBHYDA014549_52.JPG"]
[13,"BAG","Couleur","Ruban IUP",110,"Boxerin","Romanowski  Jan","Allemagne","91° Prix",92,"DEROJA012397_11.JPG"]
[14,"BAG","Nature","Ruban IUP",809,"Two baby egrets talking","Feng  Tracy Shuxi","Etats Unis","92° Prix",93,"USTRTR012591_21.JPG"]
[15,"BAG","Thème","Ruban IUP",584,"Mother and daughter","Chen  Lanfeng","Chine","93° Prix",94,"CNCHLA015539_51.JPG"]
[16,null,null,null,null,"Titre316","Auteur316","Pays316"]
[17,null,null,null,null,"Titre317","Auteur317","Pays317"]
[18,null,null,null,null,"Titre318","Auteur318","Pays318"]
[19,null,null,null,null,"Titre319","Auteur319","Pays319"]
[20,null,null,null,null,"Titre320","Auteur320","Pays320"]
[21,null,null,null,null,"Titre321","Auteur321","Pays321"]
[22,null,null,null,null,"Titre322","Auteur322","Pays322"]
[23,null,null,null,null,"Titre323","Auteur323","Pays323"]
[24,null,null,null,null,"Titre324","Auteur324","Pays324"]
[25,null,null,null,null,"Titre325","Auteur325","Pays325"]
[26,null,null,null,null,"Titre326","Auteur326","Pays326"]
[27,null,null,null,null,"Titre327","Auteur327","Pays327"]
[28,null,null,null,null,"Titre328","Auteur328","Pays328"]
[29,null,null,null,null,"Titre329","Auteur329","Pays329"]
[30,null,null,null,null,"Titre330","Auteur330","Pays330"]
[31,null,null,null,null,"Titre331","Auteur331","Pays331"]
[32,null,null,null,null,"Titre332","Auteur332","Pays332"]
[33,null,null,null,null,"Titre333","Auteur333","Pays333"]
[34,null,null,null,null,"Titre334","Auteur334","Pays334"]
[35,null,null,null,null,"Titre335","Auteur335","Pays335"]
[36,null,null,null,null,"Titre336","Auteur336","Pays336"]
[37,null,null,null,null,"Titre337","Auteur337","Pays337"]
[38,null,null,null,null,"Titre338","Auteur338","Pays338"]
[39,null,null,null,null,"Titre339","Auteur339","Pays339"]
[40,null,null,null,null,"Titre340","Auteur340","Pays340"]
[41,null,null,null,null,"Titre341","Auteur341","Pays341"]
[42,null,null,null,null,"Titre342","Auteur342","Pays342"]
[43,null,null,null,null,"Titre343","Auteur343","Pays343"]
[44,null,null,null,null,"Titre344","Auteur344","Pays344"]
[45,null,null,null,null,"Titre345","Auteur345","Pays345"]
[46,null,null,null,null,"Titre346","Auteur346","Pays346"]
[47,null,null,null,null,"Titre347","Auteur347","Pays347"]
[48,null,null,null,null,"Titre348","Auteur348","Pays348"]
[49,null,null,null,null,"Titre349","Auteur349","Pays349"]
[50,null,null,null,null,"Titre350","Auteur350","Pays350"]
[51,null,null,null,null,"Titre351","Auteur351","Pays351"]
[52,null,null,null,null,"Titre352","Auteur352","Pays352"]
[53,null,null,null,null,"Titre353","Auteur353","Pays353"]
[54,null,null,null,null,"Titre354","Auteur354","Pays354"]
[55,null,null,null,null,"Titre355","Auteur355","Pays355"]
[56,null,null,null,null,"Titre356","Auteur356","Pays356"]
[57,null,null,null,null,"Titre357","Auteur357","Pays357"]
[58,null,null,null,null,"Titre358","Auteur358","Pays358"]
[59,null,null,null,null,"Titre359","Auteur359","Pays359"]
[60,null,null,null,null,"Titre360","Auteur360","Pays360"]

{"sheet":"Diplôme","index":25,"n_rows":25,"n_cols":13,"rows_kept":25,"cut":false,"hidden":false,"merged":[[1,12,12,16]]}
[null,"Ville","Catégorie","Prix","Ordre","Titre","Auteur","Pays","Classement","Place","N° de Fichier"]
[1,null,null,null,null,"Titre401","Auteur401","Pays401",null,null,null,null,"Onglet \"Diplôme\" :\n\nLes cellules des colonnes F, G et H sont nommées de :\nTitre401 à Pays412 pour ISF\net de Titre413 à Pays430 pour FDT.\nPour chaque colonne de 301 à 360\n\nLes informations de cette feuille sonrt un copier/Coller\ndepuis la feuille Palmares.\n\nLes informations des colonnes F, G et H servent à renseigner les stickers des feuilles diplôme."]
[2,null,null,null,null,"Titre402","Auteur402","Pays402"]
[3,null,null,null,null,"Titre403","Auteur403","Pays403"]
[4,null,null,null,null,"Titre404","Auteur404","Pays404"]
[5,null,null,null,null,"Titre405","Auteur405","Pays405"]
[6,null,null,null,null,"Titre406","Auteur406","Pays406"]
[7,null,null,null,null,"Titre407","Auteur407","Pays407"]
[8,null,null,null,null,"Titre408","Auteur408","Pays408"]
[9,null,null,null,null,"Titre409","Auteur409","Pays409"]
[10,null,null,null,null,"Titre410","Auteur410","Pays410"]
[11,null,null,null,null,"Titre411","Auteur411","Pays411"]
[12,null,null,null,null,"Titre412","Auteur412","Pays412"]
[13,"BAG","Couleur","Diplôme  FDT",194,"Charge","Zhong  Weidong","Chine","94° Prix",95,"CNZHWE015762_11.JPG"]
[14,"BAG","Nature","Diplôme  FDT",465,"The solitude-antarctica","Suloev  Alexey","Russie","95° Prix",96,"RUSUAL015611_22.JPG"]
[15,"BAG","Monochrome","Diplôme  FDT",1756,"Black hat look cristina","Cowles  Larry","Etats Unis","96° Prix",97,"USCOLA012394_41.JPG"]
[16,"BAG","Thème","Diplôme  FDT",200,"In town","Stokie  Michelle","Australie","97° Prix",98,"AUSTMI012533_52.JPG"]
[17,"BAG","Couleur","Diplôme  FDT",99,"Going up","Yuen  Hung Kam","Australie","98° Prix",99,"AUYUHU015843_13.JPG"]
[18,"BAG","Nature","Diplôme  FDT",729,"Shake it off","Thomas Vijayan  Thomas","Canada","99° Prix",100,"CATHTH015561_24.JPG"]
[19,"BAG","Monochrome","Diplôme  FDT",260,"The lady waits","Young  Alan","Royaume-Uni","100° Prix",101,"GBYOAL015834_44.JPG"]
[20,"BAG","Thème","Diplôme  FDT",332,"Warm","Hu  Weiguo","Chine","101° Prix",102,"CNHUWE015636_54.JPG"]
[21,"BAG","Monochrome","Diplôme FDT : Prix ACBM",89,"Cuoc song mien bien","Dang    Quang Vinh","Viet Nam","106° Prix",107,"VNDAQU011392_42.JPG"]
[22,"BAG","Couleur","Diplôme FDT : Prix du Photo Club",424,"Childhood no1","Hung  Nguyen Canh","Viet Nam","107° Prix",108,"VNNGHU012425_14.JPG"]
[23,"BAG","Nature","Diplôme FDT : Prix du Photo Club",1266,"Arc","Shu  Lishu","Chine","108° Prix",109,"CNSHLI015791_23.JPG"]
[24,"BAG","Thème","Diplôme FDT : de Laudun Chusclan",485,"Hanging on train","Liu  Risheng","Chine","109° Prix",110,"CNLIRI015584_51.JPG"]

{"sheet":"F_Palmares_S4","index":26,"n_rows":110,"n_cols":12,"rows_kept":110,"cut":false,"hidden":false,"merged":[[1,11,12,15]]}
["Ville","Catégorie","Prix","Ordre","Titre","Auteur","Pays","Classement","Place","N° de Fichier"]
["BAG","Nature","Meilleur Auteur du Salon",608,"Tasty","Che  Arnaldo Paulo","Hong Kong","1° Prix",1,"HKCHAR009337_23.JPG",null,"Onglet \"Palmarès\" :\n\nles informations deLcette feuille sont issues d'une base de données Accès sous forme de classeur Xls.\n\nAucune manipulation particulières n'est éffectuée sur cette feuille.\n\n"]
["BAG","Couleur","Ruban FIAP coup de C.C 1",1628,"Harvest","Gan  Yongan","Chine","51° Prix",52,"CNGAYO012598_12.JPG"]
["BAG","Monochrome","Ruban FIAP coup de C.C 2",280,"Fashion girl","Alexandrino Lei   Airosa","Macau","52° Prix",53,"CNALAI014625_42.JPG"]
["BAG","Nature","Ruban FIAP coup de C.C 3",1238,"Mama i am hungry","Cheang  Sherman","Macau","53° Prix",54,"MOCHSH015852_21.JPG"]
["BAG","Couleur","Meilleur Auteur français",617,"Derriere la fenetre","Nhu  Pham Minh Thuyen","France","50° Prix",51,"FRNHPH015710_12.JPG"]
["BAG","Couleur","Médaille d'Or FIAP",239,"The runaway","English  Dianne","Australie","2° Prix",2,"AUENDI012568_13.JPG"]
["BAG","Nature","Médaille d'Or FIAP",867,"Two butterfly","Kyndt  Daniel","Belgique","3° Prix",3,"BEKYDA011359_22.JPG"]
["BAG","Monochrome","Médaille d'Or FIAP",564,"Classy julie in purple hat","Cowles  Larry","Etats Unis","4° Prix",4,"USCOLA012394_42.JPG"]
["BAG","Thème","Médaille d'Or FIAP",61,"Women power","Miojevic  Véronique","France","5° Prix",5,"FRMIVÉ011300_51.JPG"]
["BAG","Nature","Médaille d'Or PSA",467,"Loving you 3","Che  Arnaldo Paulo","Hong Kong","6° Prix",6,"HKCHAR009337_22.JPG"]
["BAG","Thème","Médaille d'Or PSA",67,"Homeward journey in the snow","Ouyang  Guanlai","Chine","7° Prix",7,"CNOUGU015663_51.JPG"]
["BAG","Couleur","Médaille d'Or PSA",106,"Back way","Huang  Zhixiong","Chine","8° Prix",8,"CNHUZH015822_12.JPG"]
["BAG","Monochrome","Médaille d'Or PSA",1701,"Chinese painting 2","Chen  Zhong","Chine","9° Prix",9,"CNCHZH015828_44.JPG"]
["BAG","Thème","Médaille d'Or GPU",159,"Le soigneur de pigeons","Bacle  Jean Claude","France","10° Prix",10,"FRBAJE011363_54.JPG"]
["BAG","Thème","Médaille d'Or RPS",5,"Friends","Fry  Martin","Royaume-Uni","11° Prix",11,"GBFRMA015549_51.JPG"]
["BAG","Thème","Médaille d'Or IUP",647,"Expire","Van Balken  Marcel","Pays-Bas","12° Prix",12,"NLVAMA012580_53.JPG"]
["BAG","Thème","Médaille d'Or FPF",592,"No phone no life","Feng  Tracy Shuxi","Etats Unis","13° Prix",13,"USFETR012591_53.JPG"]
["BAG","Couleur","Médaille  d'Or FDT",93,"Colorful dreams","Hu  Youshu","Chine","14° Prix",14,"CNHUYO012596_12.JPG"]
["BAG","Nature","Médaille  d'Or FDT",655,"Discussion between greenfinches-7","Fabbri  Giovanni","Italie","15°Prix",15,"ITFAGI014573_21.JPG"]
["BAG","Monochrome","Médaille  d'Or FDT",1936,"Match","Qiu  Yanping","Hong Kong","16° Prix",16,"HKQIYA012507_43.JPG"]
["BAG","Thème","Médaille  d'Or FDT",249,"Old woman 4","Li  Yong Zhi","Chine","17° Prix",17,"CNLIYO015540_54.JPG"]
["BAG","Couleur","Médaille d'Argent FIAP",350,"La yaya","Noguero Cazorla  Andreu","Espagne","18° Prix",18,"ESNOAN014656_13.JPG"]
["BAG","Nature","Médaille d'Argent FIAP",485,"Red eyed tree frog trio","Sandra Crook  Sandra","Royaume-Uni","19° Prix",19,"GBSASA012606_23.JPG"]
["BAG","Monochrome","Médaille d'Argent FIAP",1407,"Catching three horses 2","Wong  Shiu Gun","Hong Kong","20° Prix",20,"HKWOSH012360_43.JPG"]
["BAG","Thème","Médaille d'Argent FIAP",635,"Buy a pig","Nie  Jingsheng","Chine","21° Prix",21,"CNNIJI015750_54.JPG"]
["BAG","Couleur","Médaille d'Argent PSA",87,"Maramures 30","Fieni  Eugenio","Italie","22° Prix",22,"ITFIEU011372_12.JPG"]
["BAG","Nature","Médaille d'Argent PSA",1728,"Collared inca hummingbird","Hearn  Tim","Royaume-Uni","23° Prix",23,"GB HTI014540_21.JPG"]
["BAG","Monochrome","Médaille d'Argent PSA",242,"The james dean look","King  Fred","Australie","24° Prix",24,"AUKIFR009341_42.JPG"]
["BAG","Thème","Médaille d'Argent PSA",611,"Peaceful chefchaoeun","Wong  Danny Yen Sin","Malaisie","25° Prix",25,"MYWODA011308_54.JPG"]
["BAG","Couleur","Médaille d'Argent GPU",190,"Regent street","Magot  Laurent","France","26° Prix",26,"FRMALA012552_12.JPG"]
["BAG","Couleur","Médaille d'Argent RPS",1636,"Song of herding sheep","Hu  Weiguo","Chine","27° Prix",27,"CNHUWE015636_14.JPG"]
["BAG","Couleur","Médaille d'Argent IUP",726,"Rugaciune","Virgilio  Bardossi","Italie","28° Prix",28,"ITVIBA015676_12.JPG"]
["BAG","Couleur","Médaille d'Argent FPF",427,"Landhaus","Stütz  Franz","Autriche","29° Prix",29,"ATSTFR015566_13.JPG"]
["BAG","Thème","Médaille d'Argent FDT",1386,"Rigolades","Pedelmas  Pierre","France","30° Prix",30,"FRPEPI014539_54.JPG"]
["BAG","Nature","Médaille d'Argent FDT",236,"Mating 18","Koh  Yeokkian","Malaisie","31° Prix",31,"MYKOYE012572_23.JPG"]
["BAG","Monochrome","Médaille d'Argent FDT",341,"Fishy eyes","Basak  Dr. Sanjib","Inde","32° Prix",32,"INBADR015832_42.JPG"]
["BAG","Couleur","Médaille d'Argent FDT",83,"We're closed","Young  Alan","Royaume-Uni","33° Prix",33,"GBYOAL015834_14.JPG"]
["BAG","Monochrome","Médaille de Bronze FIAP",730,"Football dream","Yang  Yan","Chine","34° Prix",34,"CNYAYA015600_43.JPG"]
["BAG","Thème","Médaille de Bronze FIAP",212,"Happy time","Zheng  Xiaoyun","Chine","35° Prix",35,"CNZHXI012556_54.JPG"]
["BAG","Couleur","Médaille de Bronze FIAP",388,"Fish seller 524","Leong  Soon Seng","Malaisie","36° Prix",36,"MYLESO012586_11.JPG"]
["BAG","Nature","Médaille de Bronze FIAP",300,"Chamaillerie de hérons","Debiève  Albert","France","37° Prix",37,"FRDEAL012417_22.JPG"]
["BAG","Couleur","Médaille de Bronze PSA",189,"Kissed by the wind","Zurmühle  Martin","Suisse","38° Prix",38,"CHZUMA015809_12.JPG"]
["BAG","Monochrome","Médaille de Bronze PSA",1461,"At the foot of the snow","Zheng  Xiaoyun","Chine","39° Prix",39,"CNZHXI012556_41.JPG"]
["BAG","Thème","Médaille de Bronze PSA",271,"Fung shun fire dragon","Chan  Siu King Maree","Hong Kong","40° Prix",40,"HKCHSI014634_54.JPG"]
["BAG","Nature","Médaille de Bronze PSA",107,"Red eye fog","Chan  Siu King Maree","Hong Kong","41° Prix",41,"HKCHSI014634_23.JPG"]
["BAG","Monochrome","Médaille de Bronze GPU",1468,"The wait","Nhu  Pham Minh Thuyen","France","42° Prix",42,"FRNHPH015710_43.JPG"]
["BAG","Monochrome","Médaille de Bronze RPS",1689,"Alpages","Domange  Fernand","France","43° Prix",43,"FRDOFE012474_41.JPG"]
["BAG","Monochrome","Médaille de Bronze IUP",104,"The chase","O Rourke  Philip","Irlande","44° Prix",44,"IEO PH015850_44.JPG"]
["BAG","Nature","Médaille de Bronze FPF",820,"Keep guard","Li  Chunling","Chine","45° Prix",45,"CNLICH015749_22.JPG"]
["BAG","Couleur","Médaille de Bronze FDT",104,"Bliss","Korhonen  Marjut","Finlande","46° Prix",47,"FIKOMA012416_12.JPG"]
["BAG","Nature","Médaille de Bronze FDT",1718,"Greenfinch and hawfinch dispute 9418","Keene  Paul","Royaume-Uni","47° Prix",48,"GBKEPA014545_22.JPG"]
["BAG","Thème","Médaille de Bronze FDT",734,"To the dog","Virgilio  Bardossi","Italie","48° Prix",49,"ITVIBA015676_53.JPG"]
["BAG","Monochrome","Médaille de Bronze FDT",698,"Museo ferragamo","Enzo  Righeschi","Italie","49° Prix",50,"ITENRI015803_42.JPG"]
["BAG","Couleur","Médaille du Conseil Général",372,"Catch fish","Zheng  Xiaoyun","Chine","102° Prix",103,"CNZHXI012556_14.JPG"]
["BAG","Nature","Médaille de la Ville de BAG",1055,"Stag deer bellowing","Meswani  Prashant","Royaume-Uni","103° Prix",104,"GBMEPR011327_22.JPG"]
["BAG","Monochrome","Médaille de la ville de Sabran",71,"Horses from heaven","Chen  Zhong","Chine","104° Prix",105,"CNCHZH015828_42.JPG"]
["BAG","Thème","Médaille Visiatome",587,"Le balayeur","Trigalou  Marc","France","105° Prix",106,"FRTRMA014591_52.JPG"]
["BAG","Couleur","Ruban FIAP",155,"Story teller","Alexandrino Lei   Airosa","Macau","54° Prix",55,"CNALAI014625_14.JPG"]
["BAG","Thème","Ruban FIAP",174,"Ancient town old street","Yang  Shenghua","Chine","55° Prix",56,"CNYASH014622_51.JPG"]
["BAG","Nature","Ruban FIAP",461,"Hunting for food","Kam  Marcus","Malaisie","56° Prix",57,"MYKAMA012537_23.JPG"]
["BAG","Monochrome","Ruban FIAP",705,"Proud countess b&w","Zurmühle  Martin","Suisse","57° Prix",58,"CHZUMA015809_43.JPG"]
["BAG","Couleur","Ruban FIAP",132,"Prairie hero","Chang  Qing","Chine","58° Prix",59,"CNCHQI015748_11.JPG"]
["BAG","Thème","Ruban FIAP",36,"Bibliothèque pour tous","Pedelmas  Pierre","France","59° Prix",60,"FRPEPI014539_52.JPG"]
["BAG","Nature","Ruban FIAP",1099,"Give it to me","Plovie  Bjorn","Belgique","60° Prix",61,"BEPLBJ012429_21.JPG"]
["BAG","Monochrome","Ruban FIAP",2208,"The return journey","Zhou  Muyang","Chine","61° Prix",62,"CNZHMU015804_41.JPG"]
["BAG","Couleur","Ruban FIAP",38,"One's way home","Mao  Renfa","Chine","62° Prix",63,"CNMARE015790_13.JPG"]
["BAG","Thème","Ruban FIAP",101,"Happy childhood","Che  Arnaldo Paulo","Hong Kong","63° Prix",64,"HKCHAR009337_52.JPG"]
["BAG","Nature","Ruban FIAP",309,"Courtship","Yuan  Wenhui","Chine","64° Prix",65,"CNYUWE015798_24.JPG"]
["BAG","Monochrome","Ruban FIAP",1586,"After rain","Kettler  Jean-Paul","France","65° Prix",66,"FRKEJE014535_41.JPG"]
["BAG","Couleur","Ruban FIAP",102,"Shakur","Al-Mushaifri  Abdulla","Qatar","66° Prix",67,"QAALAB012589_13.JPG"]
["BAG","Thème","Ruban FIAP",480,"Indifferenza","Luciano  Cardonati","Italie","67° Prix",68,"ITLUCA014640_51.JPG"]
["BAG","Nature","Ruban FIAP",774,"Hunting 1","Che  Arnaldo Paulo","Hong Kong","68° Prix",69,"HKCHAR009337_24.JPG"]
["BAG","Monochrome","Ruban FIAP",806,"Fair","Hochhaus  Alexander","Allemagne","69° Prix",70,"DEHOAL012423_41.JPG"]
["BAG","Couleur","Ruban FIAP",970,"Horse racing at the frontier","Feng  Tracy Shuxi","Etats Unis","70° Prix",71,"USTRTR012591_13.JPG"]
["BAG","Thème","Ruban FIAP",55,"Bikeman","Van Balken  Marcel","Pays-Bas","71°Prix",72,"NLVAMA012580_51.JPG"]
["BAG","Nature","Ruban FIAP",1254,"Jungle in may","Yang  Guomei","Chine","72° Prix",73,"CNYAGU015658_23.JPG"]
["BAG","Monochrome","Ruban FIAP",590,"Belivers out of temple","Yuan  Lin","Chine","73° Prix",74,"CNYULI015615_41.JPG"]
["BAG","Couleur","Ruban FIAP",286,"Big friendly giant","King  Fred","Australie","74° Prix",75,"AUKIFR009341_14.JPG"]
["BAG","Thème","Ruban FIAP",124,"Supplication and hope","Almasoud  Naif Ahmed","Arabie saoudite","75° Prix",76,"SANANA014566_54.JPG"]
["BAG","Nature","Ruban FIAP",1065,"Feeding time","Cserto  Istvan","Hongrie","76° Prix",77,"HUCSIS015709_21.JPG"]
["BAG","Monochrome","Ruban FIAP",1883,"Ballet shoes","Boyle  Judy","Royaume-Uni","77° Prix",78,"GBBOJU011349_41.JPG"]
["BAG","Thème","Ruban FIAP",221,"Car fire 2","King  Fred","Australie","78° Prix",79,"AUKIFR009341_51.JPG"]
["BAG","Couleur","Ruban PSA",304,"Dia nublado","Oscar  Saraiva","Portugal","79° Prix",80,"PTOSSA012595_12.JPG"]
["BAG","Nature","Ruban PSA",1688,"Intimacy","Feng  Tracy Shuxi","Etats Unis","80° Prix",81,"USTRTR012591_24.JPG"]
["BAG","Monochrome","Ruban PSA",449,"The passenger","Tallier  Frédéric","Belgique","81° PrIx",82,"BETAFR015699_44.JPG"]
["BAG","Thème","Ruban PSA",1483,"To the market","Virgilio  Bardossi","Italie","82° Prix",83,"ITVIBA015676_52.JPG"]
["BAG","Nature","Ruban PSA",1703,"The great migration of wildebeest","Agapov  Sergey","Russie","83° Prix",84,"RUAGSE012496_23.JPG"]
["BAG","Couleur","Ruban GPU",535,"Early morning","Giuseppe  Tomelleri","Italie","84° Prix",85,"ITGITO012305_13.JPG"]
["BAG","Nature","Ruban GPU",233,"Fawn breasted brilliant hummingbird","Hearn  Tim","Royaume-Uni","85° Prix",86,"GB HTI014540_22.JPG"]
["BAG","Monochrome","Ruban GPU",365,"It's time to go","Nhu  Pham Minh Thuyen","France","86° Prix",87,"FRNHPH015710_41.JPG"]
["BAG","Thème","Ruban GPU",583,"Happy little monk 1","Che  Arnaldo Paulo","Hong Kong","87° Prix",88,"HKCHAR009337_53.JPG"]
["BAG","Couleur","Ruban GPU",685,"Go home","Hung  Nguyen Canh","Viet Nam","88° Prix",89,"VNNGHU012425_12.JPG"]
["BAG","Nature","Ruban GPU",1534,"Nightfull 2","Feng  Jiashun","Chine","89° Prix",90,"CNFEJI015764_22.JPG"]
["BAG","Thème","Ruban GPU",51,"Graffiti alley","Hyett  David","Royaume-Uni","90° Prix",91,"GBHYDA014549_52.JPG"]
["BAG","Couleur","Ruban IUP",110,"Boxerin","Romanowski  Jan","Allemagne","91° Prix",92,"DEROJA012397_11.JPG"]
["BAG","Nature","Ruban IUP",809,"Two baby egrets talking","Feng  Tracy Shuxi","Etats Unis","92° Prix",93,"USTRTR012591_21.JPG"]
["BAG","Thème","Ruban IUP",584,"Mother and daughter","Chen  Lanfeng","Chine","93° Prix",94,"CNCHLA015539_51.JPG"]
["BAG","Couleur","Diplôme  FDT",194,"Charge","Zhong  Weidong","Chine","94° Prix",95,"CNZHWE015762_11.JPG"]
["BAG","Nature","Diplôme  FDT",465,"The solitude-antarctica","Suloev  Alexey","Russie","95° Prix",96,"RUSUAL015611_22.JPG"]
["BAG","Monochrome","Diplôme  FDT",1756,"Black hat look cristina","Cowles  Larry","Etats Unis","96° Prix",97,"USCOLA012394_41.JPG"]
["BAG","Thème","Diplôme  FDT",200,"In town","Stokie  Michelle","Australie","97° Prix",98,"AUSTMI012533_52.JPG"]
["BAG","Couleur","Diplôme  FDT",99,"Going up","Yuen  Hung Kam","Australie","98° Prix",99,"AUYUHU015843_13.JPG"]
["BAG","Nature","Diplôme  FDT",729,"Shake it off","Thomas Vijayan  Thomas","Canada","99° Prix",100,"CATHTH015561_24.JPG"]
["BAG","Monochrome","Diplôme  FDT",260,"The lady waits","Young  Alan","Royaume-Uni","100° Prix",101,"GBYOAL015834_44.JPG"]
["BAG","Thème","Diplôme  FDT",332,"Warm","Hu  Weiguo","Chine","101° Prix",102,"CNHUWE015636_54.JPG"]
["BAG","Monochrome","Diplôme FDT : Prix ACBM",89,"Cuoc song mien bien","Dang    Quang Vinh","Viet Nam","106° Prix",107,"VNDAQU011392_42.JPG"]
["BAG","Couleur","Diplôme FDT : Prix du Photo Club",424,"Childhood no1","Hung  Nguyen Canh","Viet Nam","107° Prix",108,"VNNGHU012425_14.JPG"]
["BAG","Nature","Diplôme FDT : Prix du Photo Club",1266,"Arc","Shu  Lishu","Chine","108° Prix",109,"CNSHLI015791_23.JPG"]
["BAG","Thème","Diplôme FDT : de Laudun Chusclan",485,"Hanging on train","Liu  Risheng","Chine","109° Prix",110,"CNLIRI015584_51.JPG"]

{"sheet":"Controle","index":27,"n_rows":110,"n_cols":15,"rows_kept":110,"cut":false,"hidden":false,"merged":[[12,12,35,16]]}
["Prix","Ordre","Titre","Auteur","Pays","Classement","Place","N° de Fichier",null,null,null,null,"Titre","Auteur","Pays"]
["Meilleur Auteur du Salon",608,"Tasty","Che  Arnaldo Paulo","Hong Kong","1° Prix",1,"HKCHAR009337_33.JPG",null,{"$f":"IF(C2=M2,\"OK\",\"KO\")","v":"OK"},{"$f":"IF(D2=N2,\"OK\",\"KO\")","v":"OK"},"OK",{"$f":"C2","v":"Tasty"},{"$f":"Auteur1","v":"Che  Arnaldo Paulo"},{"$f":"Pays1","v":"Hong Kong"}]
["Ruban FIAP coup de C.C 1",1638,"Harvest","Gan  Yongan","Chine","51° Prix",53,"CNGAYO013598_13.JPG",null,{"$f":"IF(C3=M3,\"OK\",\"KO\")","v":"OK"},{"$f":"IF(D3=N3,\"OK\",\"KO\")","v":"OK"},{"$f":"IF(E3=O3,\"OK\",\"KO\")","v":"OK"},{"$f":"Titre2","v":"Harvest"},{"$f":"Auteur2","v":"Gan  Yongan"},{"$f":"Pays2","v":"Chine"}]
["Ruban FIAP coup de C.C 3",380,"Fashion girl","Alexandrino Lei   Airosa","Macau","53° Prix",53,"CNALAI014635_43.JPG",null,"OK","OK","OK",{"$f":"Titre3","v":"Fashion girl"},{"$f":"Auteur3","v":"Alexandrino Lei   Airosa"},{"$f":"Pays3","v":"Macau"}]
["Ruban FIAP coup de C.C 3",1338,"Mama i am hungry","Cheang  Sherman","Macau","53° Prix",54,"MOCHSH015853_31.JPG",null,"OK","OK","OK",{"$f":"Titre4","v":"Mama i am hungry"},{"$f":"Auteur4","v":"Cheang  Sherman"},{"$f":"Pays4","v":"Macau"}]
["Meilleur Auteur français",617,"Derriere la fenetre","Nhu  Pham Minh Thuyen","France","50° Prix",51,"FRNHPH015710_13.JPG",null,"OK","OK","OK",{"$f":"Titre5","v":"Derriere la fenetre"},{"$f":"Auteur5","v":"Nhu  Pham Minh Thuyen"},{"$f":"Pays5","v":"France"}]
["Médaille d'Or FIAP",339,"The runaway","English  Dianne","Australie","3° Prix",3,"AUENDI013568_13.JPG",null,{"$f":"IF(C7=M11,\"OK\",\"KO\")","v":"KO"},{"$f":"IF(D7=N11,\"OK\",\"KO\")","v":"KO"},{"$f":"IF(E7=O11,\"OK\",\"KO\")","v":"KO"}]
["Médaille d'Or FIAP",867,"Two butterfly","Kyndt  Daniel","Belgique","3° Prix",3,"BEKYDA011359_33.JPG"]
["Médaille d'Or FIAP",564,"Classy julie in purple hat","Cowles  Larry","Etats Unis","4° Prix",4,"USCOLA013394_43.JPG"]
["Médaille d'Or FIAP",61,"Women power","Miojevic  Véronique","France","5° Prix",5,"FRMIVÉ011300_51.JPG"]
["Médaille d'Or PSA",467,"Loving you 3","Che  Arnaldo Paulo","Hong Kong","6° Prix",6,"HKCHAR009337_33.JPG"]
["Médaille d'Or PSA",67,"Homeward journey in the snow","Ouyang  Guanlai","Chine","7° Prix",7,"CNOUGU015663_51.JPG"]
["Médaille d'Or PSA",106,"Back way","Huang  Zhixiong","Chine","8° Prix",8,"CNHUZH015833_13.JPG",null,null,null,null,"Le but de dette feuille est de vérifier que tous les stickers ont bien\nété créés et qu'il n'y a pas d'erreur.\n\nPour cela je souhaiterais comparer les données initiales des colonnes C à E\navec les informations envoyées sur chaques stickers.\n\nLa formule que tu m'as donnéé : =INDIRECT(\"Titre\"&LIGNE()) fonctionne parfaitement en incrémentation mais elle est inutilisable dans mon classeur compte tenu du fait que les noms des cellules n'est pas continu.\n\nJ'avais envisagé de copier chaque cellule par un collage avec liaison depuis chacune des feuilles, mais c'est très long et fastidieu à faire tous les ans (le nombre de récompenses n'est pas constant d'une année sur l'autre).\nJ'ai besoin d'avoir des certitudes avant d'envoyer ce fichier chez l'imprimeur.\n\nJe suis prenuer de toutes solutions aboutissant au résultat souhaité,\n\nLa macro qui est dans ce classeur sert uniquement à sauvegarder les onglets, à imprimer, en PDF (Format imposé par l'imprimeur)."]
["Médaille d'Or PSA",1701,"Chinese painting 3","Chen  Zhong","Chine","9° Prix",9,"CNCHZH015838_44.JPG"]
["Médaille d'Or GPU",159,"Le soigneur de pigeons","Bacle  Jean Claude","France","10° Prix",10,"FRBAJE011363_54.JPG"]
["Médaille d'Or RPS",5,"Friends","Fry  Martin","Royaume-Uni","11° Prix",11,"GBFRMA015549_51.JPG"]
["Médaille d'Or IUP",647,"Expire","Van Balken  Marcel","Pays-Bas","13° Prix",13,"NLVAMA013580_53.JPG"]
["Médaille d'Or FPF",593,"No phone no life","Feng  Tracy Shuxi","Etats Unis","13° Prix",13,"USFETR013591_53.JPG"]
["Médaille  d'Or FDT",93,"Colorful dreams","Hu  Youshu","Chine","14° Prix",14,"CNHUYO013596_13.JPG"]
["Médaille  d'Or FDT",655,"Discussion between greenfinches-7","Fabbri  Giovanni","Italie","15°Prix",15,"ITFAGI014573_31.JPG"]
["Médaille  d'Or FDT",1936,"Match","Qiu  Yanping","Hong Kong","16° Prix",16,"HKQIYA013507_43.JPG"]
["Médaille  d'Or FDT",349,"Old woman 4","Li  Yong Zhi","Chine","17° Prix",17,"CNLIYO015540_54.JPG"]
["Médaille d'Argent FIAP",350,"La yaya","Noguero Cazorla  Andreu","Espagne","18° Prix",18,"ESNOAN014656_13.JPG"]
["Médaille d'Argent FIAP",485,"Red eyed tree frog trio","Sandra Crook  Sandra","Royaume-Uni","19° Prix",19,"GBSASA013606_33.JPG"]
["Médaille d'Argent FIAP",1407,"Catching three horses 3","Wong  Shiu Gun","Hong Kong","30° Prix",30,"HKWOSH013360_43.JPG"]
["Médaille d'Argent FIAP",635,"Buy a pig","Nie  Jingsheng","Chine","31° Prix",31,"CNNIJI015750_54.JPG"]
["Médaille d'Argent PSA",87,"Maramures 30","Fieni  Eugenio","Italie","33° Prix",33,"ITFIEU011373_13.JPG"]
["Médaille d'Argent PSA",1738,"Collared inca hummingbird","Hearn  Tim","Royaume-Uni","33° Prix",33,"GB HTI014540_31.JPG"]
["Médaille d'Argent PSA",343,"The james dean look","King  Fred","Australie","34° Prix",34,"AUKIFR009341_43.JPG"]
["Médaille d'Argent PSA",611,"Peaceful chefchaoeun","Wong  Danny Yen Sin","Malaisie","35° Prix",35,"MYWODA011308_54.JPG"]
["Médaille d'Argent GPU",190,"Regent street","Magot  Laurent","France","36° Prix",36,"FRMALA013553_13.JPG"]
["Médaille d'Argent RPS",1636,"Song of herding sheep","Hu  Weiguo","Chine","37° Prix",37,"CNHUWE015636_14.JPG"]
["Médaille d'Argent IUP",736,"Rugaciune","Virgilio  Bardossi","Italie","38° Prix",38,"ITVIBA015676_13.JPG"]
["Médaille d'Argent FPF",437,"Landhaus","Stütz  Franz","Autriche","39° Prix",39,"ATSTFR015566_13.JPG"]
["Médaille d'Argent FDT",1386,"Rigolades","Pedelmas  Pierre","France","30° Prix",30,"FRPEPI014539_54.JPG"]
["Médaille d'Argent FDT",336,"Mating 18","Koh  Yeokkian","Malaisie","31° Prix",31,"MYKOYE013573_33.JPG"]
["Médaille d'Argent FDT",341,"Fishy eyes","Basak  Dr. Sanjib","Inde","33° Prix",33,"INBADR015833_43.JPG"]
["Médaille d'Argent FDT",83,"We're closed","Young  Alan","Royaume-Uni","33° Prix",33,"GBYOAL015834_14.JPG"]
["Médaille de Bronze FIAP",730,"Football dream","Yang  Yan","Chine","34° Prix",34,"CNYAYA015600_43.JPG"]
["Médaille de Bronze FIAP",313,"Happy time","Zheng  Xiaoyun","Chine","35° Prix",35,"CNZHXI013556_54.JPG"]
["Médaille de Bronze FIAP",388,"Fish seller 534","Leong  Soon Seng","Malaisie","36° Prix",36,"MYLESO013586_11.JPG"]
["Médaille de Bronze FIAP",300,"Chamaillerie de hérons","Debiève  Albert","France","37° Prix",37,"FRDEAL013417_33.JPG"]
["Médaille de Bronze PSA",189,"Kissed by the wind","Zurmühle  Martin","Suisse","38° Prix",38,"CHZUMA015809_13.JPG"]
["Médaille de Bronze PSA",1461,"At the foot of the snow","Zheng  Xiaoyun","Chine","39° Prix",39,"CNZHXI013556_41.JPG"]
["Médaille de Bronze PSA",371,"Fung shun fire dragon","Chan  Siu King Maree","Hong Kong","40° Prix",40,"HKCHSI014634_54.JPG"]
["Médaille de Bronze PSA",107,"Red eye fog","Chan  Siu King Maree","Hong Kong","41° Prix",41,"HKCHSI014634_33.JPG"]
["Médaille de Bronze GPU",1468,"The wait","Nhu  Pham Minh Thuyen","France","43° Prix",43,"FRNHPH015710_43.JPG"]
["Médaille de Bronze RPS",1689,"Alpages","Domange  Fernand","France","43° Prix",43,"FRDOFE013474_41.JPG"]
["Médaille de Bronze IUP",104,"The chase","O Rourke  Philip","Irlande","44° Prix",44,"IEO PH015850_44.JPG"]
["Médaille de Bronze FPF",830,"Keep guard","Li  Chunling","Chine","45° Prix",45,"CNLICH015749_33.JPG"]
["Médaille de Bronze FDT",104,"Bliss","Korhonen  Marjut","Finlande","46° Prix",47,"FIKOMA013416_13.JPG"]
["Médaille de Bronze FDT",1718,"Greenfinch and hawfinch dispute 9418","Keene  Paul","Royaume-Uni","47° Prix",48,"GBKEPA014545_33.JPG"]
["Médaille de Bronze FDT",734,"To the dog","Virgilio  Bardossi","Italie","48° Prix",49,"ITVIBA015676_53.JPG"]
["Médaille de Bronze FDT",698,"Museo ferragamo","Enzo  Righeschi","Italie","49° Prix",50,"ITENRI015803_43.JPG"]
["Médaille du Conseil Général",373,"Catch fish","Zheng  Xiaoyun","Chine","103° Prix",103,"CNZHXI013556_14.JPG"]
["Médaille de la Ville de BAG",1055,"Stag deer bellowing","Meswani  Prashant","Royaume-Uni","103° Prix",104,"GBMEPR011337_33.JPG"]
["Médaille de la ville de Sabran",71,"Horses from heaven","Chen  Zhong","Chine","104° Prix",105,"CNCHZH015838_43.JPG"]
["Médaille Visiatome",587,"Le balayeur","Trigalou  Marc","France","105° Prix",106,"FRTRMA014591_53.JPG"]
["Ruban FIAP",155,"Story teller","Alexandrino Lei   Airosa","Macau","54° Prix",55,"CNALAI014635_14.JPG"]
["Ruban FIAP",174,"Ancient town old street","Yang  Shenghua","Chine","55° Prix",56,"CNYASH014633_51.JPG"]
["Ruban FIAP",461,"Hunting for food","Kam  Marcus","Malaisie","56° Prix",57,"MYKAMA013537_33.JPG"]
["Ruban FIAP",705,"Proud countess b&w","Zurmühle  Martin","Suisse","57° Prix",58,"CHZUMA015809_43.JPG"]
["Ruban FIAP",133,"Prairie hero","Chang  Qing","Chine","58° Prix",59,"CNCHQI015748_11.JPG"]
["Ruban FIAP",36,"Bibliothèque pour tous","Pedelmas  Pierre","France","59° Prix",60,"FRPEPI014539_53.JPG"]
["Ruban FIAP",1099,"Give it to me","Plovie  Bjorn","Belgique","60° Prix",61,"BEPLBJ013439_31.JPG"]
["Ruban FIAP",3308,"The return journey","Zhou  Muyang","Chine","61° Prix",63,"CNZHMU015804_41.JPG"]
["Ruban FIAP",38,"One's way home","Mao  Renfa","Chine","63° Prix",63,"CNMARE015790_13.JPG"]
["Ruban FIAP",101,"Happy childhood","Che  Arnaldo Paulo","Hong Kong","63° Prix",64,"HKCHAR009337_53.JPG"]
["Ruban FIAP",309,"Courtship","Yuan  Wenhui","Chine","64° Prix",65,"CNYUWE015798_34.JPG"]
["Ruban FIAP",1586,"After rain","Kettler  Jean-Paul","France","65° Prix",66,"FRKEJE014535_41.JPG"]
["Ruban FIAP",103,"Shakur","Al-Mushaifri  Abdulla","Qatar","66° Prix",67,"QAALAB013589_13.JPG"]
["Ruban FIAP",480,"Indifferenza","Luciano  Cardonati","Italie","67° Prix",68,"ITLUCA014640_51.JPG"]
["Ruban FIAP",774,"Hunting 1","Che  Arnaldo Paulo","Hong Kong","68° Prix",69,"HKCHAR009337_34.JPG"]
["Ruban FIAP",806,"Fair","Hochhaus  Alexander","Allemagne","69° Prix",70,"DEHOAL013433_41.JPG"]
["Ruban FIAP",970,"Horse racing at the frontier","Feng  Tracy Shuxi","Etats Unis","70° Prix",71,"USTRTR013591_13.JPG"]
["Ruban FIAP",55,"Bikeman","Van Balken  Marcel","Pays-Bas","71°Prix",73,"NLVAMA013580_51.JPG"]
["Ruban FIAP",1354,"Jungle in may","Yang  Guomei","Chine","73° Prix",73,"CNYAGU015658_33.JPG"]
["Ruban FIAP",590,"Belivers out of temple","Yuan  Lin","Chine","73° Prix",74,"CNYULI015615_41.JPG"]
["Ruban FIAP",386,"Big friendly giant","King  Fred","Australie","74° Prix",75,"AUKIFR009341_14.JPG"]
["Ruban FIAP",134,"Supplication and hope","Almasoud  Naif Ahmed","Arabie saoudite","75° Prix",76,"SANANA014566_54.JPG"]
["Ruban FIAP",1065,"Feeding time","Cserto  Istvan","Hongrie","76° Prix",77,"HUCSIS015709_31.JPG"]
["Ruban FIAP",1883,"Ballet shoes","Boyle  Judy","Royaume-Uni","77° Prix",78,"GBBOJU011349_41.JPG"]
["Ruban FIAP",331,"Car fire 3","King  Fred","Australie","78° Prix",79,"AUKIFR009341_51.JPG"]
["Ruban PSA",304,"Dia nublado","Oscar  Saraiva","Portugal","79° Prix",80,"PTOSSA013595_13.JPG"]
["Ruban PSA",1688,"Intimacy","Feng  Tracy Shuxi","Etats Unis","80° Prix",81,"USTRTR013591_34.JPG"]
["Ruban PSA",449,"The passenger","Tallier  Frédéric","Belgique","81° PrIx",83,"BETAFR015699_44.JPG"]
["Ruban PSA",1483,"To the market","Virgilio  Bardossi","Italie","83° Prix",83,"ITVIBA015676_53.JPG"]
["Ruban PSA",1703,"The great migration of wildebeest","Agapov  Sergey","Russie","83° Prix",84,"RUAGSE013496_33.JPG"]
["Ruban GPU",535,"Early morning","Giuseppe  Tomelleri","Italie","84° Prix",85,"ITGITO013305_13.JPG"]
["Ruban GPU",333,"Fawn breasted brilliant hummingbird","Hearn  Tim","Royaume-Uni","85° Prix",86,"GB HTI014540_33.JPG"]
["Ruban GPU",365,"It's time to go","Nhu  Pham Minh Thuyen","France","86° Prix",87,"FRNHPH015710_41.JPG"]
["Ruban GPU",583,"Happy little monk 1","Che  Arnaldo Paulo","Hong Kong","87° Prix",88,"HKCHAR009337_53.JPG"]
["Ruban GPU",685,"Go home","Hung  Nguyen Canh","Viet Nam","88° Prix",89,"VNNGHU013435_13.JPG"]
["Ruban GPU",1534,"Nightfull 3","Feng  Jiashun","Chine","89° Prix",90,"CNFEJI015764_33.JPG"]
["Ruban GPU",51,"Graffiti alley","Hyett  David","Royaume-Uni","90° Prix",91,"GBHYDA014549_53.JPG"]
["Ruban IUP",110,"Boxerin","Romanowski  Jan","Allemagne","91° Prix",93,"DEROJA013397_11.JPG"]
["Ruban IUP",809,"Two baby egrets talking","Feng  Tracy Shuxi","Etats Unis","93° Prix",93,"USTRTR013591_31.JPG"]
["Ruban IUP",584,"Mother and daughter","Chen  Lanfeng","Chine","93° Prix",94,"CNCHLA015539_51.JPG"]
["Diplôme  FDT",194,"Charge","Zhong  Weidong","Chine","94° Prix",95,"CNZHWE015763_11.JPG"]
["Diplôme  FDT",465,"The solitude-antarctica","Suloev  Alexey","Russie","95° Prix",96,"RUSUAL015611_33.JPG"]
["Diplôme  FDT",1756,"Black hat look cristina","Cowles  Larry","Etats Unis","96° Prix",97,"USCOLA013394_41.JPG"]
["Diplôme  FDT",300,"In town","Stokie  Michelle","Australie","97° Prix",98,"AUSTMI013533_53.JPG"]
["Diplôme  FDT",99,"Going up","Yuen  Hung Kam","Australie","98° Prix",99,"AUYUHU015843_13.JPG"]
["Diplôme  FDT",739,"Shake it off","Thomas Vijayan  Thomas","Canada","99° Prix",100,"CATHTH015561_34.JPG"]
["Diplôme  FDT",360,"The lady waits","Young  Alan","Royaume-Uni","100° Prix",101,"GBYOAL015834_44.JPG"]
["Diplôme  FDT",333,"Warm","Hu  Weiguo","Chine","101° Prix",103,"CNHUWE015636_54.JPG"]
["Diplôme FDT : Prix ACBM",89,"Cuoc song mien bien","Dang    Quang Vinh","Viet Nam","106° Prix",107,"VNDAQU011393_43.JPG"]
["Diplôme FDT : Prix du Photo Club",434,"Childhood no1","Hung  Nguyen Canh","Viet Nam","107° Prix",108,"VNNGHU013435_14.JPG"]
["Diplôme FDT : Prix du Photo Club",1366,"Arc","Shu  Lishu","Chine","108° Prix",109,"CNSHLI015791_33.JPG"]
["Diplôme FDT : de Laudun Chusclan",485,"Hanging on train","Liu  Risheng","Chine","109° Prix",110,"CNLIRI015584_51.JPG"]

{"sheet":"Données","index":28,"n_rows":122,"n_cols":13,"rows_kept":122,"cut":false,"hidden":false,"merged":[[0,6,1,7],[0,3,1,4],[0,0,1,1],[2,9,13,13]]}
["Hiérachie salon et patronnage",null,null,"Médailles & Rubans",null,null,"Diplômes"]
[]
[null,null,null,null,null,null,null,null,null,"Onglet \"Données\" :\n\nLes informations de cette feuille sont variables d'une année sur l'autre.\n\nElles sont actualisées, chaque année, manuellement."]
["Salon","Legé",null,"Valeurs","Nom",null,"Valeurs","Nom"]
[null,"St. Aignan de Cramesnil",null,"12ème French Digital Tour","FDT",null,"2017-01-03","Date"]
[null,"St. Martin de Crau",null,"6ème salon de Legé","Salon1",null,2017,"Millésime"]
[null,"Bagnols Marcoule",null,"11ème salon ST. Aignan de Cramesnil","Salon2",null,"Legé","Ville1"]
[null,null,null,"4ème Festival de l'Image en Crau","Salon3",null,"Saint Aignan de Cramesnil","Ville2"]
[null,null,null,"20ème salon Bagnols Marcoule","Salon4",null,"Saint Martin de Crau","Ville3"]
["Patronage","FIAP",null,"FIAP : 2017/294-295-296-297","Patronage1",null,"Bagnols Marcoule","Ville4"]
[null,"PSA libre",null,"PSA : 2017/249","Patronage2"]
[null,"PSA Nature",null,"FPF : 2017/020-021-022-023","Patronage3"]
[null,"FPF",null,"RPS : 2017/30-31-32-33","Patronage4"]
[null,"RPS",null,"GPU : License L170086","Patronage5"]
[null,"GPU",null,"IUP 2017/022","Patronage6"]
[null,"ISF",null,null,"Patronage7"]
[null,"IUP"]
[null,"FDT"]
[]
[]
[]
[]
[]
[]
[]
[]
[]
[]
[]
[]
[]
[]
[]
[]
[]
[]
[]
[]
[]
[]
[]
[]
[]
[]
[]
[]
[]
[]
[]
[]
[]
[]
[]
[]
[]
[]
[]
[]
[]
[]
[]
[]
[]
[]
[]
[]
[]
[]
[]
[]
[]
[]
[]
[]
[]
[]
[]
[]
[]
[]
[]
[]
[]
[]
[]
[]
[]
[]
[]
[]
[]
[]
[]
[]
[]
[]
[]
[]
[]
[]
[]
[]
[]
[]
[]
[null,null,null,null,null,null,null,null,null,"Du 21 au 23 octobre 2016",null,"Jugement Saint Martin de Crau :","Du 18 au 20 novembre 2016"]
[null,null,null,null,null,null,null,null,null,"Du 04 au 06 Novembre 2016",null,"Jugement Bagnols Marcoule :","Du 25 au 27 novembre 2016"]
[]
[null,null,null,null,null,null,null,null,null,"2016-10-09",null,"Notification :","2016-12-08"]
[null,null,null,null,null,null,null,null,null,"2017-02-10"]
[]
[null,null,null,null,null,null,null,null,null,null,"3° Salon International de Saint Martin de Crau  "]
[null,null,null,null,null,null,null,null,null,null,"Jacky Martin - MFIAP - France"]
[null,null,null,null,null,null,null,null,null,null,"Raimon Moreno - AFIAP - Espagne"]
[null,null,null,null,null,null,null,null,null,null,"Laura Prego - Espagne"]
[null,null,null,null,null,null,null,null,null,null,"Remplaçant : Marcel Boi - France"]
[]
[null,null,null,null,null,null,null,null,null,null,"19° Salon International de Bagnols Marcoule"]
[null,null,null,null,null,null,null,null,null,null,"Agatha Anne Bunanta EFIAP - GMPSA- Indonésie"]
[null,null,null,null,null,null,null,null,null,null,"Sophie Bellonie - France"]
[null,null,null,null,null,null,null,null,null,null,"Frédéric Tallier - AFIAP - Belgique"]
[null,null,null,null,null,null,null,null,null,null,"Remplaçant : Thierry Vezon - AFIAP - France"]

{"sheet":"Ordre récompense","index":29,"n_rows":33,"n_cols":5,"rows_kept":33,"cut":false,"hidden":true,"merged":[[0,2,0,4]]}
[null,null,"Ordre de saisie des récompenses"]
[]
[null,null,null,"Meilleur auteur du salon"]
[null,null,null,"CC juge 1"]
[null,null,null,"CC juge 2"]
[null,null,null,"CC juge 3"]
[null,null,null,"Meileur auteur Français"]
[null,null,null,"Médaille d'or","FIAP"]
[null,null,null,null,"PSA"]
[null,null,null,null,"FPF"]
[null,null,null,null,"RPS"]
[null,null,null,null,"GPU"]
[null,null,null,null,"IUP"]
[null,null,null,null,"FDT"]
[null,null,null,null,"Ville"]
[null,null,null,"Médaille d'argent","FIAP"]
[null,null,null,null,"PSA"]
[null,null,null,null,"FPF"]
[null,null,null,null,"RPS"]
[null,null,null,null,"GPU"]
[null,null,null,null,"IUP"]
[null,null,null,"Médaille de bronze","FIAP"]
[null,null,null,null,"PSA"]
[null,null,null,null,"FPF"]
[null,null,null,null,"RPS"]
[null,null,null,null,"GPU"]
[null,null,null,null,"IUP"]
[null,null,null,"Ruban","FIAP"]
[null,null,null,null,"PSA"]
[null,null,null,null,"GPU"]
[null,null,null,null,"IUP"]
[null,null,null,"Diplôme","ISF"]
[null,null,null,null,"FDT"]